Workbook

Sheet Data visualization
B1: TB BASICS Dashboard
AL2: 2. 急诊 | BU2: 3. 发热门诊 | DD2: 4. 呼吸门诊 | EM2: 5. 放射科 | FV2: 6. 结核门诊 | HE2: 7. 药房 | IN2: 8. 其他，请注明
B3: County/district
B4: Health Facility Name
B5: Type of institution
B6: No. of outpatient clinics/areas
B7: No. of assessed outpatient clinics/areas | C7: =COUNTA(droplist!B:B) -> 5
B8: No. of inpatient departments/wards fo TB
B9: No. of assessed inpatient departments/wards fo TB | C9: =COUNTA(droplist!E:E) -> 1
B10: No. of TB related laboratories
B11: No. of assessed TB related laboratories | C11: =COUNTA(droplist!H:H) -> 2

Sheet Data summary
B1: Baseline | C1: 3rd month | D1: 6th month | E1: 9th month | F1: 12th month | G1: 15th month | H1: Final
A2: Administrative controls | B2: =AVERAGE(B3:B6) -> 0.4360625 | C2: 0.5271375 | D2: 0.543775 | E2: 0.557025 | F2: 0.66665 | G2: 0.7605125 | H2: 0.7766875
A3: Facility-wide | B3: ='Facility-wide'!C20 -> 0.40625 | C3: ='Facility-wide'!H20 -> 0.53125 | D3: ='Facility-wide'!M20 -> 0.5625 | E3: ='Facility-wide'!R20 -> 0.5625 | F3: ='Facility-wide'!W20 -> 0.6875 | G3: ='Facility-wide'!AB20 -> 0.96875 | H3: ='Facility-wide'!AG20 -> 0.96875
A4: Outpatient | B4: =getMean("Outpatient department & clinic",24,3,1,4,7,COUNTA(droplist!$B:$B)) -> 0.3765 | C4: =getMean("Outpatient department & clinic",24,8,1,4,7,COUNTA(droplist!$B:$B)) -> 0.4235 | D4: =getMean("Outpatient department & clinic",24,13,1,4,7,COUNTA(droplist!$B:$B)) -> 0.4588 | E4: =getMean("Outpatient department & clinic",24,18,1,4,7,COUNTA(droplist!$B:$B)) -> 0.5118 | F4: =getMean("Outpatient department & clinic",24,23,1,4,7,COUNTA(droplist!$B:$B)) -> 0.5176 | G4: =getMean("Outpatient department & clinic",24,28,1,4,7,COUNTA(droplist!$B:$B)) -> 0.6118 | H4: =getMean("Outpatient department & clinic",24,33,1,4,7,COUNTA(droplist!$B:$B)) -> 0.6765
A5: Inpatient | B5: =getMean("Inpatient department & ward",21,3,1,4,7,COUNTA(droplist!$E:$E)) -> 0.4615 | C5: =getMean("Inpatient department & ward",21,8,1,4,7,COUNTA(droplist!$E:$E)) -> 0.6538 | D5: =getMean("Inpatient department & ward",21,13,1,4,7,COUNTA(droplist!$E:$E)) -> 0.6538 | E5: =getMean("Inpatient department & ward",21,18,1,4,7,COUNTA(droplist!$E:$E)) -> 0.6538 | F5: =getMean("Inpatient department & ward",21,33,1,4,7,COUNTA(droplist!$E:$E)) -> 0.9615 | G5: =getMean("Inpatient department & ward",21,28,1,4,7,COUNTA(droplist!$E:$E)) -> 0.9615 | H5: =getMean("Inpatient department & ward",21,33,1,4,7,COUNTA(droplist!$E:$E)) -> 0.9615
A6: Laboratory | B6: =getMean("Laboratory",11,3,1,4,7,COUNTA(droplist!$H:$H)) -> 0.5 | C6: =getMean("Laboratory",11,8,1,4,7,COUNTA(droplist!$H:$H)) -> 0.5 | D6: =getMean("Laboratory",11,13,1,4,7,COUNTA(droplist!$H:$H)) -> 0.5 | E6: =getMean("Laboratory",11,18,1,4,7,COUNTA(droplist!$H:$H)) -> 0.5 | F6: =getMean("Laboratory",11,33,1,4,7,COUNTA(droplist!$H:$H)) -> 0.5 | G6: =getMean("Laboratory",11,28,1,4,7,COUNTA(droplist!$H:$H)) -> 0.5 | H6: =getMean("Laboratory",11,33,1,4,7,COUNTA(droplist!$H:$H)) -> 0.5
A7: Environmental controls | B7: =AVERAGE(B8:B10) -> 0.5353666667 | C7: 0.5529333333 | D7: 0.5925 | E7: 0.5925 | F7: 0.6699 | G7: 0.6888666667 | H7: 0.7092333333
A8: Outpatient | B8: =getMean("Outpatient department & clinic",36,3,1,4,7,COUNTA(droplist!$B:$B)) -> 0.5278 | C8: =getMean("Outpatient department & clinic",36,8,1,4,7,COUNTA(droplist!$B:$B)) -> 0.5528 | D8: =getMean("Outpatient department & clinic",36,13,1,4,7,COUNTA(droplist!$B:$B)) -> 0.5528 | E8: =getMean("Outpatient department & clinic",36,18,1,4,7,COUNTA(droplist!$B:$B)) -> 0.5528 | F8: =getMean("Outpatient department & clinic",36,23,1,4,7,COUNTA(droplist!$B:$B)) -> 0.5653 | G8: =getMean("Outpatient department & clinic",36,28,1,4,7,COUNTA(droplist!$B:$B)) -> 0.6222 | H8: =getMean("Outpatient department & clinic",36,33,1,4,7,COUNTA(droplist!$B:$B)) -> 0.6833
A9: Inpatient | B9: =getMean("Inpatient department & ward",35,3,1,4,7,COUNTA(droplist!$E:$E)) -> 0.7727 | C9: =getMean("Inpatient department & ward",35,8,1,4,7,COUNTA(droplist!$E:$E)) -> 0.7727 | D9: =getMean("Inpatient department & ward",35,13,1,4,7,COUNTA(droplist!$E:$E)) -> 0.8636 | E9: =getMean("Inpatient department & ward",35,18,1,4,7,COUNTA(droplist!$E:$E)) -> 0.8636 | F9: =getMean("Inpatient department & ward",35,33,1,4,7,COUNTA(droplist!$E:$E)) -> 1 | G9: =getMean("Inpatient department & ward",35,28,1,4,7,COUNTA(droplist!$E:$E)) -> 1 | H9: =getMean("Inpatient department & ward",35,33,1,4,7,COUNTA(droplist!$E:$E)) -> 1
A10: Laboratory | B10: =getMean("Laboratory",23,3,1,4,7,COUNTA(droplist!$H:$H)) -> 0.3056 | C10: =getMean("Laboratory",23,8,1,4,7,COUNTA(droplist!$H:$H)) -> 0.3333 | D10: =getMean("Laboratory",23,13,1,4,7,COUNTA(droplist!$H:$H)) -> 0.3611 | E10: =getMean("Laboratory",23,18,1,4,7,COUNTA(droplist!$H:$H)) -> 0.3611 | F10: =getMean("Laboratory",23,33,1,4,7,COUNTA(droplist!$H:$H)) -> 0.4444 | G10: =getMean("Laboratory",23,28,1,4,7,COUNTA(droplist!$H:$H)) -> 0.4444 | H10: =getMean("Laboratory",23,33,1,4,7,COUNTA(droplist!$H:$H)) -> 0.4444
A11: Personal protective equipment | B11: =AVERAGE(B12:B14) -> 0.7166666667 | C11: 0.7166666667 | D11: 0.7166666667 | E11: 0.7166666667 | F11: 0.7444333333 | G11: 0.75 | H11: 0.7611
A12: Outpatient | B12: =getMean("Outpatient department & clinic",44,3,1,4,7,COUNTA(droplist!$B:$B)) -> 0.7333 | C12: =getMean("Outpatient department & clinic",44,8,1,4,7,COUNTA(droplist!$B:$B)) -> 0.7333 | D12: =getMean("Outpatient department & clinic",44,13,1,4,7,COUNTA(droplist!$B:$B)) -> 0.7333 | E12: =getMean("Outpatient department & clinic",44,18,1,4,7,COUNTA(droplist!$B:$B)) -> 0.7333 | F12: =getMean("Outpatient department & clinic",44,23,1,4,7,COUNTA(droplist!$B:$B)) -> 0.7333 | G12: =getMean("Outpatient department & clinic",44,28,1,4,7,COUNTA(droplist!$B:$B)) -> 0.75 | H12: =getMean("Outpatient department & clinic",44,33,1,4,7,COUNTA(droplist!$B:$B)) -> 0.7833
A13: Inpatient | B13: =getMean("Inpatient department & ward",43,3,1,4,7,COUNTA(droplist!$E:$E)) -> 0.9167 | C13: =getMean("Inpatient department & ward",43,8,1,4,7,COUNTA(droplist!$E:$E)) -> 0.9167 | D13: =getMean("Inpatient department & ward",43,13,1,4,7,COUNTA(droplist!$E:$E)) -> 0.9167 | E13: =getMean("Inpatient department & ward",43,18,1,4,7,COUNTA(droplist!$E:$E)) -> 0.9167 | F13: =getMean("Inpatient department & ward",43,33,1,4,7,COUNTA(droplist!$E:$E)) -> 1 | G13: =getMean("Inpatient department & ward",43,28,1,4,7,COUNTA(droplist!$E:$E)) -> 1 | H13: =getMean("Inpatient department & ward",43,33,1,4,7,COUNTA(droplist!$E:$E)) -> 1
A14: Laboratory | B14: =getMean("Laboratory",30,3,1,4,7,COUNTA(droplist!$H:$H)) -> 0.5 | C14: =getMean("Laboratory",30,8,1,4,7,COUNTA(droplist!$H:$H)) -> 0.5 | D14: =getMean("Laboratory",30,13,1,4,7,COUNTA(droplist!$H:$H)) -> 0.5 | E14: =getMean("Laboratory",30,18,1,4,7,COUNTA(droplist!$H:$H)) -> 0.5 | F14: =getMean("Laboratory",30,33,1,4,7,COUNTA(droplist!$H:$H)) -> 0.5 | G14: =getMean("Laboratory",30,28,1,4,7,COUNTA(droplist!$H:$H)) -> 0.5 | H14: =getMean("Laboratory",30,33,1,4,7,COUNTA(droplist!$H:$H)) -> 0.5
A15: Proportions increased %
A16: Administrative controls | C16: =IF(B$2<>0,((C$2-B$2)/B$2),"") -> 0.2088576752 | D16: 0.03156197387 | E16: 0.02436669578 | F16: 0.1968044522 | G16: 0.1407972699 | H16: 0.02126855246
A17: Environmental controls | C17: =IF(B$7<>0,((C$7-B$7)/B$7),"") -> 0.03281240271 | D17: 0.07155775259 | E17: 0 | F17: 0.1306329114 | G17: 0.02831268349 | H17: 0.02956546985
A18: Personal protective equipment | C18: =IF(B$11<>0,((C$11-B$11)/B$11),"") -> 0 | D18: 0 | E18: 0 | F18: 0.03874418605 | G18: 0.007477723548 | H18: 0.0148

Sheet Facility-wide
B1: Assessment phase | C1: Basic | H1: 3 months | M1: 6 months | R1: 9 months | W1: 12 months | AB1: 15 months | AG1: 18 months
B2: Date of assessment | C2: Date | H2: Date | M2: Date | R2: Date | W2: Date | AB2: Date
B3: Facility-wide indicators | C3: Rate | D3: Investigation | E3: Qualification | F3: Attachment | G3: Remark | H3: Rate | I3: Investigation | J3: Qualification | K3: Attachment | L3: Remark | M3: Rate | N3: Investigation | O3: Qualification | P3: Attachment | Q3: Remark | R3: Rate | S3: Investigation | T3: Qualification | U3: Attachment | V3: Remark | W3: Rate | X3: Investigation | Y3: Qualification | Z3: Attachment | AA3: Remark | AB3: Rate | AC3: Investigation | AD3: Qualification | AE3: Attachment | AF3: Remark | AH3: Investigation | AI3: Qualification | AJ3: Attachment | AK3: Remark
A4: 1 | B4: The facility has an infection control committee | C4: 2 | H4: 2 | M4: 2 | R4: 2 | W4: 2 | AB4: 2 | AG4: 2
A5: 2 | B5: An infection control practitioner or nurse has been assigned to carry out infection control activities in the facility | C5: 1 | H5: 2 | M5: 2 | R5: 2 | W5: 2 | AB5: 2 | AG5: 2
A6: 3 | B6: A written facility-specific infection control plan has been developed and is available to staff | C6: 1 | H6: 1 | M6: 1 | R6: 1 | W6: 2 | AB6: 2 | AG6: 2
A7: 4 | B7: There are funds budgeted specifically for infection control activities (trainings, assessments, maintenance, PPE) at this facility | C7: 1 | H7: 1 | M7: 1 | R7: 1 | W7: 2 | AB7: 2 | AG7: 2
A8: 5 | B8: TB IC specific education/training was provided in the last year | C8: 0 | H8: 0 | M8: 1 | R8: 1 | W8: 2 | AB8: 2 | AG8: 2
A9: 6 | B9: In the past year, an assessment of the facility for appropriate ventilation, patient and specimen flow has been performed (to reduce potential risk of airborne infections) | C9: 0 | H9: 1 | M9: 1 | R9: 1 | W9: 1 | AB9: 2 | AG9: 2
A10: 7 | B10: A system or mechanism to track all suspected TB cases, referrals, and their sputum specimen results is in place | C10: 2 | H10: 2 | M10: 2 | R10: 2 | W10: 2 | AB10: 2 | AG10: 2
A11: 8 | B11: There is a facility reporting system for all patients diagnosed with TB in accordance with national policies | C11: 2 | H11: 2 | M11: 2 | R11: 2 | W11: 2 | AB11: 2 | AG11: 2
A12: 9 | B12: There is a policy regulation is provide N-95 or FFP2, or Class 1 (or higher) respirators to staff who have contact with patients with suspected and confirmed TB and other infectious airborne diseases | C12: 1 | H12: 2 | M12: 2 | R12: 2 | W12: 2 | AB12: 2 | AG12: 2
A13: 10 | B13: There is policy/regulation/rule to train staff to use respirators annually | C13: 1 | H13: 1 | M13: 1 | R13: 1 | W13: 1 | AB13: 2 | AG13: 2
A14: 11 | B14: Respirator fit testing to provided to staff initially and annually | C14: 0 | H14: 0 | M14: 0 | R14: 0 | W14: 0 | AB14: 1 | AG14: 1
A15: 12 | B15: There have been no stock-outs of respirators in the past 3 months | C15: 2 | H15: 2 | M15: 2 | R15: 2 | W15: 2 | AB15: 2 | AG15: 2
A16: 13 | B16: Staff are screened for TB disease annually | C16: 0 | H16: 1 | M16: 1 | R16: 1 | W16: 2 | AB16: 2 | AG16: 2
A17: 14 | B17: A log is kept of all staff that are diagnosed with TB disease | C17: 0 | H17: 0 | M17: 0 | R17: 0 | W17: 0 | AB17: 2 | AG17: 2
A18: 15 | B18: Staff are offered treatment for active TB disease by the staff clinic or are linked to TB treatment services through a formal process | C18: 0 | H18: 0 | M18: 0 | R18: 0 | W18: 0 | AB18: 2 | AG18: 2
A19: 16 | B19: The facility has regulations in place to minimize the time patients spend in the healthcare facility for TB evaluation and treatment | C19: 0 | H19: 0 | M19: 0 | R19: 0 | W19: 0 | AB19: 2 | AG19: 2
B20: The implementation of all facility-wide indicators | C20: =SUM(C4:C19)/(2*(COUNTIF(C4:C19,"<>NA"))) -> 0.40625 | H20: =SUM(H4:H19)/(2*(COUNTIF(H4:H19,"<>NA"))) -> 0.53125 | M20: =SUM(M4:M19)/(2*(COUNTIF(M4:M19,"<>NA"))) -> 0.5625 | R20: =SUM(R4:R19)/(2*(COUNTIF(R4:R19,"<>NA"))) -> 0.5625 | W20: =SUM(W4:W19)/(2*(COUNTIF(W4:W19,"<>NA"))) -> 0.6875 | AB20: =SUM(AB4:AB19)/(2*(COUNTIF(AB4:AB19,"<>NA"))) -> 0.96875 | AG20: =SUM(AG4:AG19)/(2*(COUNTIF(AG4:AG19,"<>NA"))) -> 0.96875
B21: Assessor | C21: Assessor Name:: | H21: Assessor Name:: | M21: Assessor Name:: | R21: Assessor Name:: | W21: Assessor Name:: | AB21: Assessor Name:: | AG21: Assessor Name::

Sheet Outpatient department & clinic
B1: Date viewing mode
B2: Outpatient area | C2: 1. Outpatient | AL2: 2. Internal Medicine 1 | BU2: 3. Internal Medicine 2 | CE2: 3. Internal Medicine 2 | DD2: 4. Respiratory Medicine
B3: Assessment phase | C3: Basic | H3: 3 months | M3: 6 months | R3: 9 months | W3: 12 months | AB3: 15 months | AG3: 18 months | AL3: Basic | AQ3: 3 months | AV3: 6 months | BA3: 9 months | BF3: 12 months | BK3: 15 months | BP3: 18 months | BU3: Basic | BZ3: 3 months | CE3: 6 months | CJ3: 9 months | CO3: 12 months | CT3: 15 months | CY3: 18 months | DD3: Basic | DI3: 3 months | DN3: 6 months | DS3: 9 months | DX3: 12 months | EC3: 15 months | EH3: 18 months | EM3: Basic | ER3: 3 months | EW3: 6 months | FB3: 9 months | FG3: 12 months | FL3: 15 months | FQ3: 18 months | FV3: Basic | GA3: 3 months | GF3: 6 months | GK3: 9 months | GP3: 12 months | GU3: 15 months | GZ3: 18 months | HE3: Basic | HJ3: 3 months | HO3: 6 months | HT3: 9 months | HY3: 12 months | ID3: 15 months | II3: 18 months | IN3: Basic | IS3: 3 months | IX3: 6 months | JC3: 9 months | JH3: 12 months | JM3: 15 months | JR3: 18 months
B4: Date of assessment | C4: Date | H4: Date | M4: Date | R4: Date | W4: Date | AB4: Date | AG4: Date | AL4: Date | AQ4: Date | AV4: Date | BA4: Date | BF4: Date | BK4: Date | BP4: Date | BU4: Date | BZ4: Date | CE4: Date | CJ4: Date | CO4: Date | CT4: Date | CY4: Date | DD4: Date | DI4: Date | DN4: Date | DS4: Date | DX4: Date | EC4: Date | EH4: Date | EM4: Date | ER4: Date | EW4: Date | FB4: Date | FG4: Date | FL4: Date | FQ4: Date | FV4: Date | GA4: Date | GF4: Date | GK4: Date | GP4: Date | GU4: Date | GZ4: Date | HE4: Date | HJ4: Date | HO4: Date | HT4: Date | HY4: Date | ID4: Date | II4: Date | IN4: Date | IS4: Date | IX4: Date | JC4: Date | JH4: Date | JM4: Date | JR4: Date
B5: Administrative controls indicators | C5: Rate | D5: Investigation | E5: Qualification | F5: Attachment | G5: Remark | H5: Rate | I5: Investigation | J5: Qualification | K5: Attachment | L5: Remark | M5: Rate | N5: Investigation | O5: Qualification | P5: Attachment | Q5: Remark | R5: Rate | S5: Investigation | T5: Qualification | U5: Attachment | V5: Remark | W5: Rate | X5: Investigation | Y5: Qualification | Z5: Attachment | AA5: Remark | AB5: Rate | AC5: Investigation | AD5: Qualification | AE5: Attachment | AF5: Remark | AH5: Investigation | AI5: Qualification | AJ5: Attachment | AK5: Remark | AL5: Rate | AM5: Investigation | AN5: Qualification | AO5: Attachment | AP5: Remark | AQ5: Rate | AR5: Investigation | AS5: Qualification | AT5: Attachment | AU5: Remark | AV5: Rate | AW5: Investigation | AX5: Qualification | AY5: Attachment | AZ5: Remark | BA5: Rate | BB5: Investigation | BC5: Qualification | BD5: Attachment | BE5: Remark | BF5: Rate | BG5: Investigation | BH5: Qualification | BI5: Attachment | BJ5: Remark | BK5: Rate | BL5: Investigation | BM5: Qualification | BN5: Attachment | BO5: Remark | BP5: Rate | BQ5: Investigation | BR5: Qualification | BS5: Attachment | BT5: Remark | BU5: Rate | BV5: Investigation | BW5: Qualification | BX5: Attachment | BY5: Remark | BZ5: Rate | CA5: Investigation | CB5: Qualification | CC5: Attachment | CD5: Remark | CE5: Rate | CF5: Investigation | CG5: Qualification | CH5: Attachment | CI5: Remark | CJ5: Rate | CK5: Investigation | CL5: Qualification | CM5: Attachment | CN5: Remark | CO5: Rate | CP5: Investigation | CQ5: Qualification | CR5: Attachment | CS5: Remark | CU5: Investigation | CV5: Qualification | CW5: Attachment | CX5: Remark | CY5: Rate | CZ5: Investigation | DA5: Qualification | DB5: Attachment | DC5: Remark | DD5: Rate | DE5: Investigation | DF5: Qualification | DG5: Attachment | DH5: Remark | DI5: Rate | DJ5: Investigation | DK5: Qualification | DL5: Attachment | DM5: Remark | DN5: Rate | DO5: Investigation | DP5: Qualification | DQ5: Attachment | DR5: Remark | DS5: Rate | DT5: Investigation | DU5: Qualification | DV5: Attachment | DW5: Remark | DX5: Rate | DY5: Investigation | DZ5: Qualification | EA5: Attachment | EB5: Remark | EC5: Rate | ED5: Investigation | EE5: Qualification | EF5: Attachment | EG5: Remark | EH5: Rate | EI5: Investigation | EJ5: Qualification | EK5: Attachment | EL5: Remark | EM5: Rate | EN5: Investigation | EO5: Qualification | EP5: Attachment | EQ5: Remark | ER5: Rate | ES5: Investigation | ET5: Qualification | EU5: Attachment | EV5: Remark | EW5: Rate | EX5: Investigation | EY5: Qualification | EZ5: Attachment | FA5: Remark | FB5: Rate | FC5: Investigation | FD5: Qualification | FE5: Attachment | FF5: Remark | FH5: Investigation | FI5: Qualification | FJ5: Attachment | FK5: Remark | FL5: Rate | FM5: Investigation | FN5: Qualification | FO5: Attachment | FP5: Remark | FQ5: Rate | FR5: Investigation | FS5: Qualification | FT5: Attachment | FU5: Remark | FV5: Rate | FW5: Investigation | FX5: Qualification | FY5: Attachment | FZ5: Remark | GA5: Rate | GB5: Investigation | GC5: Qualification | GD5: Attachment | GE5: Remark | GF5: Rate | GG5: Investigation | GH5: Qualification | GI5: Attachment | GJ5: Remark | GK5: Rate | GL5: Investigation | GM5: Qualification | GN5: Attachment | GO5: Remark | GP5: Rate | GQ5: Investigation | GR5: Qualification | GS5: Attachment | GT5: Remark | GU5: Rate | GV5: Investigation | GW5: Qualification | GX5: Attachment | GY5: Remark | GZ5: Rate | HA5: Investigation | HB5: Qualification | HC5: Attachment | HD5: Remark | HE5: Rate | HF5: Investigation | HG5: Qualification | HH5: Attachment | HI5: Remark | HJ5: Rate | HK5: Investigation | HL5: Qualification | HM5: Attachment | HN5: Remark | HO5: Rate | HP5: Investigation | HQ5: Qualification | HR5: Attachment | HS5: Remark | HU5: Investigation | HV5: Qualification | HW5: Attachment | HX5: Remark | HY5: Rate | HZ5: Investigation | IA5: Qualification | IB5: Attachment | IC5: Remark | ID5: Rate | IE5: Investigation | IF5: Qualification | IG5: Attachment | IH5: Remark | II5: Rate | IJ5: Investigation | IK5: Qualification | IL5: Attachment | IM5: Remark | IN5: Rate | IO5: Investigation | IP5: Qualification | IQ5: Attachment | IR5: Remark | IS5: Rate | IT5: Investigation | IU5: Qualification | IV5: Attachment | IW5: Remark | IX5: Rate | IY5: Investigation | IZ5: Qualification | JA5: Attachment | JB5: Remark | JC5: Rate | JD5: Investigation | JE5: Qualification | JF5: Attachment | JG5: Remark | JH5: Rate | JI5: Investigation | JJ5: Qualification | JK5: Attachment | JL5: Remark | JM5: Rate | JN5: Investigation | JO5: Qualification | JP5: Attachment | JQ5: Remark | JR5: Rate | JS5: Investigation | JT5: Qualification | JU5: Attachment | JV5: Remark
A6: 1 | B6: Patients are routinely asked about cough upon entering the department (e.g. at registration or admission) | C6: 2 | H6: 2 | M6: 2 | R6: 2 | W6: 2 | AB6: 2 | AG6: 2 | AL6: 2 | AQ6: 2 | AV6: 2 | BA6: 2 | BF6: 2 | BK6: 2 | BP6: 2 | BU6: 2 | BZ6: 2 | CE6: 2 | CJ6: 2 | CO6: 2 | CT6: 2 | CY6: 2 | DD6: 2 | DI6: 2 | DN6: 2 | DS6: 2 | DX6: 2 | EC6: 2 | EH6: 2 | HE6: 2 | HJ6: 2 | HO6: 2 | HT6: 2 | HY6: 2 | ID6: 2 | II6: 2
A7: 2 | B7: Patients receive guidance and education on cough etiquette | C7: 0 | H7: 1 | M7: 1 | R7: 1 | W7: 1 | AB7: 1 | AG7: 1 | AL7: 0 | AQ7: 1 | AV7: 1 | BA7: 1 | BF7: 1 | BK7: 1 | BP7: 2 | BU7: 0 | BZ7: 1 | CE7: 1 | CJ7: 1 | CO7: 1 | CT7: 1 | CY7: 2 | DD7: 0 | DI7: 1 | DN7: 1 | DS7: 1 | DX7: 1 | EC7: 2 | EH7: 2 | HE7: 0 | HJ7: 1 | HO7: 1 | HT7: 1 | HY7: 1 | ID7: 2 | II7: 2
A8: 3 | B8: A “cough monitor” assists with triage/gives cough etiquette guidance | C8: 0 | H8: 0 | M8: 1 | R8: 1 | W8: 1 | AB8: 1 | AG8: 1 | AL8: 0 | AQ8: 0 | AV8: 1 | BA8: 1 | BF8: 1 | BK8: 1 | BP8: 2 | BU8: 0 | BZ8: 0 | CE8: 0 | CJ8: 1 | CO8: 1 | CT8: 1 | CY8: 2 | DD8: 0 | DI8: 0 | DN8: 1 | DS8: 1 | DX8: 1 | EC8: 2 | EH8: 2 | HE8: 0 | HJ8: 0 | HO8: 1 | HT8: 1 | HY8: 1 | ID8: 2 | II8: 2
A9: 4 | B9: Patients with cough or other symptoms of TB are promptly separated from others | C9: 0 | H9: 0 | M9: 0 | R9: 1 | W9: 1 | AB9: 1 | AG9: 1 | AL9: 0 | AQ9: 0 | AV9: 0 | BA9: 1 | BF9: 1 | BK9: 1 | BP9: 1 | BU9: 0 | BZ9: 0 | CE9: 0 | CJ9: 0 | CO9: 0 | CT9: 1 | CY9: 1 | DD9: 0 | DI9: 1 | DN9: 1 | DS9: 1 | DX9: 1 | EC9: 2 | EH9: 2 | HE9: 0 | HJ9: 1 | HO9: 1 | HT9: 1 | HY9: 1 | ID9: 2 | II9: 2
A10: 5 | B10: Patients with cough or other symptoms of TB are “fast tracked” to a care giver or other clinical services | C10: 2 | H10: 2 | M10: 2 | R10: 2 | W10: 2 | AB10: 2 | AG10: 2 | AL10: 2 | AQ10: 2 | AV10: 2 | BA10: 2 | BF10: 2 | BK10: 2 | BP10: 2 | BU10: 2 | BZ10: 2 | CE10: 2 | CJ10: 2 | CO10: 2 | CT10: 2 | CY10: 2 | DD10: 2 | DI10: 2 | DN10: 2 | DS10: 2 | DX10: 2 | EC10: 2 | EH10: 2 | HE10: 2 | HJ10: 2 | HO10: 2 | HT10: 2 | HY10: 2 | ID10: 2 | II10: 2
A11: 6 | B11: Signage for cough etiquette is present | C11: 1 | H11: 1 | M11: 1 | R11: 1 | W11: 1 | AB11: 1 | AG11: 1 | AL11: 1 | AQ11: 1 | AV11: 1 | BA11: 1 | BF11: 1 | BK11: 1 | BP11: 2 | BU11: 1 | BZ11: 1 | CE11: 1 | CJ11: 1 | CO11: 1 | CT11: 1 | CY11: 2 | DD11: 1 | DI11: 1 | DN11: 1 | DS11: 1 | DX11: 1 | EC11: 2 | EH11: 2 | HE11: 1 | HJ11: 1 | HO11: 1 | HT11: 1 | HY11: 1 | ID11: 2 | II11: 2
A12: 7 | B12: Supplies are available for coughing patients (tissues, masks, cloths, trash bins, etc.) | C12: 2 | H12: 2 | M12: 2 | R12: 2 | W12: 2 | AB12: 2 | AG12: 2 | AL12: 2 | AQ12: 2 | AV12: 2 | BA12: 2 | BF12: 2 | BK12: 2 | BP12: 2 | BU12: 2 | BZ12: 2 | CE12: 2 | CJ12: 2 | CO12: 2 | CT12: 2 | CY12: 2 | DD12: 2 | DI12: 2 | DN12: 2 | DS12: 2 | DX12: 2 | EC12: 2 | EH12: 2 | HE12: 2 | HJ12: 2 | HO12: 2 | HT12: 2 | HY12: 2 | ID12: 2 | II12: 2
A13: 8 | B13: Sputum samples are collected in a designated area with good ventilation away from others | C13: 0 | H13: 1 | M13: 1 | R13: 1 | W13: 1 | AB13: 1 | AG13: 1 | AL13: 0 | AQ13: 1 | AV13: 1 | BA13: 1 | BF13: 1 | BK13: 1 | BP13: 1 | BU13: 0 | BZ13: 0 | CE13: 0 | CJ13: 0 | CO13: 0 | CT13: 1 | CY13: 1 | DD13: 0 | DI13: 1 | DN13: 1 | DS13: 1 | DX13: 1 | EC13: 2 | EH13: 2 | HE13: 0 | HJ13: 1 | HO13: 1 | HT13: 1 | HY13: 1 | ID13: 1 | II13: 1
A14: 9 | B14: Sputum smear results are received within 24 hours (the time between sputum collection and sending the test result to the doctor) | C14: 2 | H14: 2 | M14: 2 | R14: 2 | W14: 2 | AB14: 2 | AG14: 2 | AL14: 2 | AQ14: 2 | AV14: 2 | BA14: 2 | BF14: 2 | BK14: 2 | BP14: 2 | BU14: 2 | BZ14: 2 | CE14: 2 | CJ14: 2 | CO14: 2 | CT14: 2 | CY14: 2 | DD14: 2 | DI14: 2 | DN14: 2 | DS14: 2 | DX14: 2 | EC14: 2 | EH14: 2 | HE14: 2 | HJ14: 2 | HO14: 2 | HT14: 2 | HY14: 2 | ID14: 2 | II14: 2
A15: 10 | B15: Xpert MTB/RIF results are received within 24 hours (the time between sputum collection and receiving the test result) | C15: NA | H15: NA | M15: NA | R15: NA | W15: NA | AB15: NA | AG15: NA | AL15: NA | AQ15: NA | AV15: NA | BA15: NA | BF15: NA | BK15: NA | BP15: NA | BU15: NA | BZ15: NA | CE15: NA | CJ15: NA | CO15: NA | CT15: NA | CY15: NA | DD15: NA | DI15: NA | DN15: NA | DS15: NA | DX15: NA | EC15: NA | EH15: NA | HE15: NA | HJ15: NA | HO15: NA | HT15: NA | HY15: NA | ID15: NA | II15: NA
A16: 11 | B16: TB treatment is started within 24 hours of when lab results are received, or the treatment regimen was adjusted within 24 hours of when lab results are received | C16: 2 | H16: 2 | M16: 2 | R16: 2 | W16: 2 | AB16: 2 | AG16: 2 | AL16: 2 | AQ16: 2 | AV16: 2 | BA16: 2 | BF16: 2 | BK16: 2 | BP16: 2 | BU16: 2 | BZ16: 2 | CE16: 2 | CJ16: 2 | CO16: 2 | CT16: 2 | CY16: 2 | DD16: 2 | DI16: 2 | DN16: 2 | DS16: 2 | DX16: 2 | EC16: 2 | EH16: 2 | HE16: 2 | HJ16: 2 | HO16: 2 | HT16: 2 | HY16: 2 | ID16: 2 | II16: 2
A17: 12 | B17: Drug resistance testing is performed in persons with suspected drug-resistant TB (five categories as defined by China NTP: 1. Chronic infectious patients /patients with failed treatment; 2. Smear positive patients also have close contact with MDR-TB patients; 3. Patients failed initial treatment; 4. Recurrent patients and patients who return for treatment; 5. New cases stay smear positive at the end of three months treatment) | C17: 2 | H17: 2 | M17: 2 | R17: 2 | W17: 2 | AB17: 2 | AG17: 2 | AL17: 2 | AQ17: 2 | AV17: 2 | BA17: 2 | BF17: 2 | BK17: 2 | BP17: 2 | BU17: 2 | BZ17: 2 | CE17: 2 | CJ17: 2 | CO17: 2 | CT17: 2 | CY17: 2 | DD17: 2 | DI17: 2 | DN17: 2 | DS17: 2 | DX17: 2 | EC17: 2 | EH17: 2 | HE17: 2 | HJ17: 2 | HO17: 2 | HT17: 2 | HY17: 2 | ID17: 2 | II17: 2
A18: 13 | B18: Patients with suspected TB are separated from other patients | C18: 0 | H18: 0 | M18: 0 | R18: 0 | W18: 0 | AB18: 1 | AG18: 2 | AL18: 0 | AQ18: 0 | AV18: 0 | BA18: 1 | BF18: 1 | BK18: 1 | BP18: 1 | BU18: 0 | BZ18: 0 | CE18: 0 | CJ18: 1 | CO18: 1 | CT18: 1 | CY18: 1 | DD18: 0 | DI18: 0 | DN18: 0 | DS18: 1 | DX18: 1 | EC18: 2 | EH18: 2 | HE18: 0 | HJ18: 0 | HO18: 0 | HT18: 1 | HY18: 1 | ID18: 2 | II18: 2
A19: 14 | B19: Diagnosed TB patients are separated from other patients | C19: 0 | H19: 0 | M19: 0 | R19: 0 | W19: 0 | AB19: 1 | AG19: 2 | AL19: 0 | AQ19: 0 | AV19: 1 | BA19: 1 | BF19: 1 | BK19: 1 | BP19: 1 | BU19: 0 | BZ19: 0 | CE19: 0 | CJ19: 1 | CO19: 1 | CT19: 1 | CY19: 1 | DD19: 0 | DI19: 0 | DN19: 1 | DS19: 1 | DX19: 1 | EC19: 2 | EH19: 2 | HE19: 0 | HJ19: 0 | HO19: 1 | HT19: 1 | HY19: 1 | ID19: 2 | II19: 2
A20: 15 | B20: Patients with suspected drug-resistant TB are separated from other patients (five categories of suspected drug-resistant TB as defined by China NTP: 1. Chronic infectious patients /patients with failed treatment; 2. Smear positive patients also has close contact with MDR-TB patients; 3. Patients failed initial treatment; 4. Recurrent patients and patients who return for treatment; 5. New cases stay smear positive at the end of three months treatment) | C20: 0 | H20: 0 | M20: 0 | R20: 0 | W20: 0 | AB20: 0 | AG20: 2 | AL20: 0 | AQ20: 0 | AV20: 0 | BA20: 1 | BF20: 1 | BK20: 1 | BP20: 1 | BU20: 0 | BZ20: 0 | CE20: 0 | CJ20: 1 | CO20: 1 | CT20: 1 | CY20: 1 | DD20: 0 | DI20: 0 | DN20: 1 | DS20: 1 | DX20: 1 | EC20: 2 | EH20: 2 | HE20: 0 | HJ20: 0 | HO20: 1 | HT20: 1 | HY20: 1 | ID20: 2 | II20: 2
A21: 16 | B21: Diagnosed DR-TB patients are separated from other patients | C21: 1 | H21: 1 | M21: 1 | R21: 1 | W21: 1 | AB21: 1 | AG21: 1 | AL21: 1 | AQ21: 1 | AV21: 1 | BA21: 1 | BF21: 1 | BK21: 1 | BP21: 1 | BU21: 1 | BZ21: 1 | CE21: 1 | CJ21: 1 | CO21: 1 | CT21: 1 | CY21: 1 | DD21: 1 | DI21: 1 | DN21: 1 | DS21: 1 | DX21: 1 | EC21: 2 | EH21: 2 | HE21: 1 | HJ21: 1 | HO21: 1 | HT21: 1 | HY21: 1 | ID21: 2 | II21: 2
A22: 17 | B22: Patients with immunocompromising conditions (e.g. diabetes, HIV, etc.) are separated from patients with suspected and confirmed TB | C22: 0 | H22: 0 | M22: 0 | R22: 0 | W22: 0 | AB22: 0 | AG22: 1 | AL22: 0 | AQ22: 0 | AV22: 0 | BA22: 0 | BF22: 1 | BK22: 1 | BP22: 1 | BU22: 0 | BZ22: 0 | CE22: 0 | CJ22: 0 | CO22: 0 | CT22: 1 | CY22: 1 | DD22: 0 | DI22: 0 | DN22: 0 | DS22: 0 | DX22: 0 | EC22: 2 | EH22: 2 | HE22: 0 | HJ22: 0 | HO22: 0 | HT22: 0 | HY22: 0 | ID22: 2 | II22: 2
A23: 18 | B23: There is a formal system for linking patients diagnosed with TB in the inpatient setting to outpatient care for follow-up (or to TB/DOT clinic for follow-up) | C23: 2 | H23: 2 | M23: 2 | R23: 2 | W23: 2 | AB23: 2 | AG23: 2 | AL23: 2 | AQ23: 2 | AV23: 2 | BA23: 2 | BF23: 2 | BK23: 2 | BP23: 2 | BU23: 2 | BZ23: 2 | CE23: 2 | CJ23: 2 | CO23: 2 | CT23: 2 | CY23: 2 | DD23: 2 | DI23: 2 | DN23: 2 | DS23: 2 | DX23: 2 | EC23: 2 | EH23: 2 | HE23: 2 | HJ23: 2 | HO23: 2 | HT23: 2 | HY23: 2 | ID23: 2 | II23: 2
B24: The implementation of administrative controls indicators | C24: =SUM(C6:C23)/(2*(COUNTIF(C6:C23,"<>NA"))) -> 0.4705882353 | H24: =SUM(H6:H23)/(2*(COUNTIF(H6:H23,"<>NA"))) -> 0.5294117647 | M24: =SUM(M6:M23)/(2*(COUNTIF(M6:M23,"<>NA"))) -> 0.5588235294 | R24: =SUM(R6:R23)/(2*(COUNTIF(R6:R23,"<>NA"))) -> 0.5882352941 | W24: =SUM(W6:W23)/(2*(COUNTIF(W6:W23,"<>NA"))) -> 0.5882352941 | AB24: =SUM(AB6:AB23)/(2*(COUNTIF(AB6:AB23,"<>NA"))) -> 0.6470588235 | AG24: =SUM(AG6:AG23)/(2*(COUNTIF(AG6:AG23,"<>NA"))) -> 0.7941176471 | AL24: =SUM(AL6:AL23)/(2*(COUNTIF(AL6:AL23,"<>NA"))) -> 0.4705882353 | AQ24: =SUM(AQ6:AQ23)/(2*(COUNTIF(AQ6:AQ23,"<>NA"))) -> 0.5294117647 | AV24: =SUM(AV6:AV23)/(2*(COUNTIF(AV6:AV23,"<>NA"))) -> 0.5882352941 | BA24: =SUM(BA6:BA23)/(2*(COUNTIF(BA6:BA23,"<>NA"))) -> 0.6764705882 | BF24: =SUM(BF6:BF23)/(2*(COUNTIF(BF6:BF23,"<>NA"))) -> 0.7058823529 | BK24: =SUM(BK6:BK23)/(2*(COUNTIF(BK6:BK23,"<>NA"))) -> 0.7058823529 | BP24: =SUM(BP6:BP23)/(2*(COUNTIF(BP6:BP23,"<>NA"))) -> 0.7941176471 | BU24: =SUM(BU6:BU23)/(2*(COUNTIF(BU6:BU23,"<>NA"))) -> 0.4705882353 | BZ24: =SUM(BZ6:BZ23)/(2*(COUNTIF(BZ6:BZ23,"<>NA"))) -> 0.5 | CE24: =SUM(CE6:CE23)/(2*(COUNTIF(CE6:CE23,"<>NA"))) -> 0.5 | CJ24: =SUM(CJ6:CJ23)/(2*(COUNTIF(CJ6:CJ23,"<>NA"))) -> 0.6176470588 | CO24: =SUM(CO6:CO23)/(2*(COUNTIF(CO6:CO23,"<>NA"))) -> 0.6176470588 | CT24: =SUM(CT6:CT23)/(2*(COUNTIF(CT6:CT23,"<>NA"))) -> 0.7058823529 | CY24: =SUM(CY6:CY23)/(2*(COUNTIF(CY6:CY23,"<>NA"))) -> 0.7941176471 | DD24: =SUM(DD6:DD23)/(2*(COUNTIF(DD6:DD23,"<>NA"))) -> 0.4705882353 | DI24: =SUM(DI6:DI23)/(2*(COUNTIF(DI6:DI23,"<>NA"))) -> 0.5588235294 | DN24: =SUM(DN6:DN23)/(2*(COUNTIF(DN6:DN23,"<>NA"))) -> 0.6470588235 | DS24: =SUM(DS6:DS23)/(2*(COUNTIF(DS6:DS23,"<>NA"))) -> 0.6764705882 | DX24: =SUM(DX6:DX23)/(2*(COUNTIF(DX6:DX23,"<>NA"))) -> 0.6764705882 | EC24: =SUM(EC6:EC23)/(2*(COUNTIF(EC6:EC23,"<>NA"))) -> 1 | EH24: =SUM(EH6:EH23)/(2*(COUNTIF(EH6:EH23,"<>NA"))) -> 1 | EM24: =SUM(EM6:EM23)/(2*(COUNTIF(EM6:EM23,"<>NA"))) -> 0 | ER24: =SUM(ER6:ER23)/(2*(COUNTIF(ER6:ER23,"<>NA"))) -> 0 | EW24: =SUM(EW6:EW23)/(2*(COUNTIF(EW6:EW23,"<>NA"))) -> 0 | FB24: =SUM(FB6:FB23)/(2*(COUNTIF(FB6:FB23,"<>NA"))) -> 0 | FG24: =SUM(FG6:FG23)/(2*(COUNTIF(FG6:FG23,"<>NA"))) -> 0 | FL24: =SUM(FL6:FL23)/(2*(COUNTIF(FL6:FL23,"<>NA"))) -> 0 | FQ24: =SUM(FQ6:FQ23)/(2*(COUNTIF(FQ6:FQ23,"<>NA"))) -> 0 | FV24: =SUM(FV6:FV23)/(2*(COUNTIF(FV6:FV23,"<>NA"))) -> 0 | GA24: =SUM(GA6:GA23)/(2*(COUNTIF(GA6:GA23,"<>NA"))) -> 0 | GF24: =SUM(GF6:GF23)/(2*(COUNTIF(GF6:GF23,"<>NA"))) -> 0 | GK24: =SUM(GK6:GK23)/(2*(COUNTIF(GK6:GK23,"<>NA"))) -> 0 | GP24: =SUM(GP6:GP23)/(2*(COUNTIF(GP6:GP23,"<>NA"))) -> 0 | GU24: =SUM(GU6:GU23)/(2*(COUNTIF(GU6:GU23,"<>NA"))) -> 0 | GZ24: =SUM(GZ6:GZ23)/(2*(COUNTIF(GZ6:GZ23,"<>NA"))) -> 0 | HE24: =SUM(HE6:HE23)/(2*(COUNTIF(HE6:HE23,"<>NA"))) -> 0.4705882353 | HJ24: =SUM(HJ6:HJ23)/(2*(COUNTIF(HJ6:HJ23,"<>NA"))) -> 0.5588235294 | HO24: =SUM(HO6:HO23)/(2*(COUNTIF(HO6:HO23,"<>NA"))) -> 0.6470588235 | HT24: =SUM(HT6:HT23)/(2*(COUNTIF(HT6:HT23,"<>NA"))) -> 0.6764705882 | HY24: =SUM(HY6:HY23)/(2*(COUNTIF(HY6:HY23,"<>NA"))) -> 0.6764705882 | ID24: =SUM(ID6:ID23)/(2*(COUNTIF(ID6:ID23,"<>NA"))) -> 0.9705882353 | II24: =SUM(II6:II23)/(2*(COUNTIF(II6:II23,"<>NA"))) -> 0.9705882353 | IN24: =SUM(IN6:IN23)/(2*(COUNTIF(IN6:IN23,"<>NA"))) -> 0 | IS24: =SUM(IS6:IS23)/(2*(COUNTIF(IS6:IS23,"<>NA"))) -> 0 | IX24: =SUM(IX6:IX23)/(2*(COUNTIF(IX6:IX23,"<>NA"))) -> 0 | JC24: =SUM(JC6:JC23)/(2*(COUNTIF(JC6:JC23,"<>NA"))) -> 0 | JH24: =SUM(JH6:JH23)/(2*(COUNTIF(JH6:JH23,"<>NA"))) -> 0 | JM24: =SUM(JM6:JM23)/(2*(COUNTIF(JM6:JM23,"<>NA"))) -> 0 | JR24: =SUM(JR6:JR23)/(2*(COUNTIF(JR6:JR23,"<>NA"))) -> 0
B25: Environmental controls indicators | C25: Rate | D25: Investigation | E25: Qualification | F25: Attachment | G25: Remark | H25: Rate | I25: Investigation | J25: Qualification | K25: Attachment | L25: Remark | M25: Rate | N25: Investigation | O25: Qualification | P25: Attachment | Q25: Remark | R25: Rate | S25: Investigation | T25: Qualification | U25: Attachment | V25: Remark | W25: Rate | X25: Investigation | Y25: Qualification | Z25: Attachment | AA25: Remark | AB25: Rate | AC25: Investigation | AD25: Qualification | AE25: Attachment | AF25: Remark | AG25: Rate | AH25: Investigation | AI25: Qualification | AJ25: Attachment | AK25: Remark | AL25: Rate | AM25: Investigation | AN25: Qualification | AO25: Attachment | AP25: Remark | AQ25: Rate | AR25: Investigation | AS25: Qualification | AT25: Attachment | AU25: Remark | AV25: Rate | AW25: Investigation | AX25: Qualification | AY25: Attachment | AZ25: Remark | BA25: Rate | BB25: Investigation | BC25: Qualification | BD25: Attachment | BE25: Remark | BF25: Rate | BG25: Investigation | BH25: Qualification | BI25: Attachment | BJ25: Remark | BK25: Rate | BL25: Investigation | BM25: Qualification | BN25: Attachment | BO25: Remark | BP25: Rate | BQ25: Investigation | BR25: Qualification | BS25: Attachment | BT25: Remark | BU25: Rate | BV25: Investigation | BW25: Qualification | BX25: Attachment | BY25: Remark | BZ25: Rate | CA25: Investigation | CB25: Qualification | CC25: Attachment | CD25: Remark | CE25: Rate | CF25: Investigation | CG25: Qualification | CH25: Attachment | CI25: Remark | CJ25: Rate | CK25: Investigation | CL25: Qualification | CM25: Attachment | CN25: Remark | CO25: Rate | CP25: Investigation | CQ25: Qualification | CR25: Attachment | CS25: Remark | CT25: Rate | CU25: Investigation | CV25: Qualification | CW25: Attachment | CX25: Remark | CY25: Rate | CZ25: Investigation | DA25: Qualification | DB25: Attachment | DC25: Remark | DD25: Rate | DE25: Investigation | DF25: Qualification | DG25: Attachment | DH25: Remark | DI25: Rate | DJ25: Investigation | DK25: Qualification | DL25: Attachment | DM25: Remark | DN25: Rate | DO25: Investigation | DP25: Qualification | DQ25: Attachment | DR25: Remark | DS25: Rate | DT25: Investigation | DU25: Qualification | DV25: Attachment | DW25: Remark | DX25: Rate | DY25: Investigation | DZ25: Qualification | EA25: Attachment | EB25: Remark | EC25: Rate | ED25: Investigation | EE25: Qualification | EF25: Attachment | EG25: Remark | EH25: Rate | EI25: Investigation | EJ25: Qualification | EK25: Attachment | EL25: Remark | EM25: Rate | EN25: Investigation | EO25: Qualification | EP25: Attachment | EQ25: Remark | ER25: Rate | ES25: Investigation | ET25: Qualification | EU25: Attachment | EV25: Remark | EW25: Rate | EX25: Investigation | EY25: Qualification | EZ25: Attachment | FA25: Remark | FB25: Rate | FC25: Investigation | FD25: Qualification | FE25: Attachment | FF25: Remark | FH25: Investigation | FI25: Qualification | FJ25: Attachment | FK25: Remark | FL25: Rate | FM25: Investigation | FN25: Qualification | FO25: Attachment | FP25: Remark | FQ25: Rate | FR25: Investigation | FS25: Qualification | FT25: Attachment | FU25: Remark | FV25: Rate | FW25: Investigation | FX25: Qualification | FY25: Attachment | FZ25: Remark | GA25: Rate | GB25: Investigation | GC25: Qualification | GD25: Attachment | GE25: Remark | GF25: Rate | GG25: Investigation | GH25: Qualification | GI25: Attachment | GJ25: Remark | GK25: Rate | GL25: Investigation | GM25: Qualification | GN25: Attachment | GO25: Remark | GP25: Rate | GQ25: Investigation | GR25: Qualification | GS25: Attachment | GT25: Remark | GU25: Rate | GV25: Investigation | GW25: Qualification | GX25: Attachment | GY25: Remark | GZ25: Rate | HA25: Investigation | HB25: Qualification | HC25: Attachment | HD25: Remark | HE25: Rate | HF25: Investigation | HG25: Qualification | HH25: Attachment | HI25: Remark | HJ25: Rate | HK25: Investigation | HL25: Qualification | HM25: Attachment | HN25: Remark | HO25: Rate | HP25: Investigation | HQ25: Qualification | HR25: Attachment | HS25: Remark | HU25: Investigation | HV25: Qualification | HW25: Attachment | HX25: Remark | HY25: Rate | HZ25: Investigation | IA25: Qualification | IB25: Attachment | IC25: Remark | ID25: Rate | IE25: Investigation | IF25: Qualification | IG25: Attachment | IH25: Remark | II25: Rate | IJ25: Investigation | IK25: Qualification | IL25: Attachment | IM25: Remark | IN25: Rate | IO25: Investigation | IP25: Qualification | IQ25: Attachment | IR25: Remark | IS25: Rate | IT25: Investigation | IU25: Qualification | IV25: Attachment | IW25: Remark | IX25: Rate | IY25: Investigation | IZ25: Qualification | JA25: Attachment | JB25: Remark | JC25: Rate | JD25: Investigation | JE25: Qualification | JF25: Attachment | JG25: Remark | JH25: Rate | JI25: Investigation | JJ25: Qualification | JK25: Attachment | JL25: Remark | JM25: Rate | JN25: Investigation | JO25: Qualification | JP25: Attachment | JQ25: Remark | JR25: Rate | JS25: Investigation | JT25: Qualification | JU25: Attachment | JV25: Remark
A26: 19 | B26: Natural ventilation: Openings on opposing walls of room | C26: 0 | H26: 0 | M26: 0 | R26: 0 | W26: 0 | AB26: 0 | AG26: 0 | AL26: 0 | AQ26: 1 | AV26: 1 | BA26: 1 | BF26: 1 | BK26: 1 | BP26: 1 | BU26: 0 | BZ26: 1 | CE26: 1 | CJ26: 1 | CO26: 1 | CT26: 1 | CY26: 1 | DD26: 1 | DI26: 1 | DN26: 1 | DS26: 1 | DX26: 1 | EC26: 1 | EH26: 1 | HE26: 0 | HJ26: 1 | HO26: 1 | HT26: 1 | HY26: 1 | ID26: 1 | II26: 1
A27: 20 | B27: Natural ventilation: Areas of openings (window/door) of at least 10% of area of room (length*width of the floor) on opposing sides of room (total areas of windows and doors ≥20% total area of the floor) | C27: 2 | H27: 2 | M27: 2 | R27: 2 | W27: 2 | AB27: 2 | AG27: 2 | AL27: 2 | AQ27: 2 | AV27: 2 | BA27: 2 | BF27: 2 | BK27: 2 | BP27: 2 | BU27: 2 | BZ27: 2 | CE27: 2 | CJ27: 2 | CO27: 2 | CT27: 2 | CY27: 2 | DD27: 2 | DI27: 2 | DN27: 2 | DS27: 2 | DX27: 2 | EC27: 2 | EH27: 2 | HE27: 2 | HJ27: 2 | HO27: 2 | HT27: 2 | HY27: 2 | ID27: 2 | II27: 2
A28: 21 | B28: Natural ventilation: Signage is in place to keep doors and windows open | C28: 0 | H28: 0 | M28: 0 | R28: 0 | W28: 0 | AB28: 0 | AG28: 1 | AL28: 0 | AQ28: 0 | AV28: 0 | BA28: 0 | BF28: 1 | BK28: 1 | BP28: 2 | BU28: 0 | BZ28: 0 | CE28: 0 | CJ28: 0 | CO28: 0 | CT28: 1 | CY28: 2 | DD28: 0 | DI28: 0 | DN28: 0 | DS28: 0 | DX28: 0 | EC28: 2 | EH28: 2 | HE28: 0 | HJ28: 0 | HO28: 0 | HT28: 0 | HY28: 0 | ID28: 2 | II28: 2
A29: 22 | B29: Natural ventilation: All appropriate windows/doors are open on observation | C29: 2 | H29: 2 | M29: 2 | R29: 2 | W29: 2 | AB29: 2 | AG29: 2 | AL29: 1 | AQ29: 1 | AV29: 1 | BA29: 1 | BF29: 1 | BK29: 1 | BP29: 2 | BU29: 1 | BZ29: 1 | CE29: 1 | CJ29: 1 | CO29: 1 | CT29: 1 | CY29: 2 | DD29: 1 | DI29: 1 | DN29: 1 | DS29: 1 | DX29: 1 | EC29: 2 | EH29: 2 | HE29: 1 | HJ29: 1 | HO29: 1 | HT29: 1 | HY29: 1 | ID29: 2 | II29: 2
A30: 23 | B30: Natural ventilation and mechanical ventilation: No chemical or human odors relative to the outdoors | C30: 2 | H30: 2 | M30: 2 | R30: 2 | W30: 2 | AB30: 2 | AG30: 2 | AL30: 2 | AQ30: 2 | AV30: 2 | BA30: 2 | BF30: 2 | BK30: 2 | BP30: 2 | BU30: 2 | BZ30: 2 | CE30: 2 | CJ30: 2 | CO30: 2 | CT30: 2 | CY30: 2 | DD30: 2 | DI30: 2 | DN30: 2 | DS30: 2 | DX30: 2 | EC30: 2 | EH30: 2 | HE30: 2 | HJ30: 2 | HO30: 2 | HT30: 2 | HY30: 2 | ID30: 2 | II30: 2
A31: 24 | B31: Mechanical and natural ventilation: Visualization of airflow patterns with smoke from supply and exhaust grilles/openings (use smoke tube, incense etc. for smoke) | C31: 2 | H31: 2 | M31: 2 | R31: 2 | W31: 2 | AB31: 2 | AG31: 2 | AL31: 2 | AQ31: 2 | AV31: 2 | BA31: 2 | BF31: 2 | BK31: 2 | BP31: 2 | BU31: 2 | BZ31: 2 | CE31: 2 | CJ31: 2 | CO31: 2 | CT31: 2 | CY31: 2 | DD31: 2 | DI31: 2 | DN31: 2 | DS31: 2 | DX31: 2 | EC31: 2 | EH31: 2 | HE31: 2 | HJ31: 2 | HO31: 2 | HT31: 2 | HY31: 2 | ID31: 2 | II31: 2
A32: 25 | B32: Mechanical ventilation: Regular maintenance for directional and extractor fans is conducted | C32: 1 | H32: 1 | M32: 1 | R32: 1 | W32: 1 | AB32: 1 | AG32: 1 | AL32: 1 | AQ32: 1 | AV32: 1 | BA32: 1 | BF32: 1 | BK32: 1 | BP32: 1 | BU32: 1 | BZ32: 1 | CE32: 1 | CJ32: 1 | CO32: 1 | CT32: 1 | CY32: 1 | DD32: 1 | DI32: 1 | DN32: 1 | DS32: 1 | DX32: 1 | EC32: 2 | EH32: 2 | HE32: 1 | HJ32: 1 | HO32: 1 | HT32: 1 | HY32: 1 | ID32: 2 | II32: 2
A33: 26 | B33: Patients are not crowded in waiting areas, hallways or wards | C33: 2 | H33: 2 | M33: 2 | R33: 2 | W33: 2 | AB33: 2 | AG33: 2 | AL33: 2 | AQ33: 2 | AV33: 2 | BA33: 2 | BF33: 2 | BK33: 2 | BP33: 2 | BU33: 2 | BZ33: 2 | CE33: 2 | CJ33: 2 | CO33: 2 | CT33: 2 | CY33: 2 | DD33: 2 | DI33: 2 | DN33: 2 | DS33: 2 | DX33: 2 | EC33: 2 | EH33: 2 | HE33: 2 | HJ33: 2 | HO33: 2 | HT33: 2 | HY33: 2 | ID33: 2 | II33: 2
A34: 27 | B34: Traditional UVGI is being used properly (based on China standards) | C34: NA | H34: NA | M34: NA | R34: NA | W34: NA | AB34: NA | AG34: NA | AL34: NA | AQ34: NA | AV34: NA | BA34: NA | BF34: NA | BK34: NA | BP34: NA | BU34: NA | BZ34: NA | CE34: NA | CJ34: NA | CO34: NA | CT34: NA | CY34: NA | DD34: NA | DI34: NA | DN34: NA | DS34: NA | DX34: NA | EC34: NA | EH34: NA | HE34: NA | HJ34: NA | HO34: NA | HT34: NA | HY34: NA | ID34: NA | II34: NA
A35: 28 | B35: Upper-room UVGI is being used properly (based on China standards) | C35: 1 | H35: 1 | M35: 1 | R35: 1 | W35: 1 | AB35: 1 | AG35: 1 | AL35: NA | AQ35: NA | AV35: NA | BA35: NA | BF35: NA | BK35: NA | BP35: NA | BU35: NA | BZ35: NA | CE35: NA | CJ35: NA | CO35: NA | CT35: NA | CY35: NA | DD35: 2 | DI35: 2 | DN35: 2 | DS35: 2 | DX35: 2 | EC35: 2 | EH35: 2 | HE35: NA | HJ35: NA | HO35: NA | HT35: NA | HY35: NA | ID35: NA | II35: NA
B36: The implementation of environmental controls indicators | C36: =SUM(C26:C35)/(2*(COUNTIF(C26:C35,"<>NA"))) -> 0.6666666667 | H36: =SUM(H26:H35)/(2*(COUNTIF(H26:H35,"<>NA"))) -> 0.6666666667 | M36: =SUM(M26:M35)/(2*(COUNTIF(M26:M35,"<>NA"))) -> 0.6666666667 | R36: =SUM(R26:R35)/(2*(COUNTIF(R26:R35,"<>NA"))) -> 0.6666666667 | W36: =SUM(W26:W35)/(2*(COUNTIF(W26:W35,"<>NA"))) -> 0.6666666667 | AB36: =SUM(AB26:AB35)/(2*(COUNTIF(AB26:AB35,"<>NA"))) -> 0.6666666667 | AG36: =SUM(AG26:AG35)/(2*(COUNTIF(AG26:AG35,"<>NA"))) -> 0.7222222222 | AL36: =SUM(AL26:AL35)/(2*(COUNTIF(AL26:AL35,"<>NA"))) -> 0.625 | AQ36: =SUM(AQ26:AQ35)/(2*(COUNTIF(AQ26:AQ35,"<>NA"))) -> 0.6875 | AV36: =SUM(AV26:AV35)/(2*(COUNTIF(AV26:AV35,"<>NA"))) -> 0.6875 | BA36: =SUM(BA26:BA35)/(2*(COUNTIF(BA26:BA35,"<>NA"))) -> 0.6875 | BF36: =SUM(BF26:BF35)/(2*(COUNTIF(BF26:BF35,"<>NA"))) -> 0.75 | BK36: =SUM(BK26:BK35)/(2*(COUNTIF(BK26:BK35,"<>NA"))) -> 0.75 | BP36: =SUM(BP26:BP35)/(2*(COUNTIF(BP26:BP35,"<>NA"))) -> 0.875 | BU36: =SUM(BU26:BU35)/(2*(COUNTIF(BU26:BU35,"<>NA"))) -> 0.625 | BZ36: =SUM(BZ26:BZ35)/(2*(COUNTIF(BZ26:BZ35,"<>NA"))) -> 0.6875 | CE36: =SUM(CE26:CE35)/(2*(COUNTIF(CE26:CE35,"<>NA"))) -> 0.6875 | CJ36: =SUM(CJ26:CJ35)/(2*(COUNTIF(CJ26:CJ35,"<>NA"))) -> 0.6875 | CO36: =SUM(CO26:CO35)/(2*(COUNTIF(CO26:CO35,"<>NA"))) -> 0.6875 | CT36: =SUM(CT26:CT35)/(2*(COUNTIF(CT26:CT35,"<>NA"))) -> 0.75 | CY36: =SUM(CY26:CY35)/(2*(COUNTIF(CY26:CY35,"<>NA"))) -> 0.875 | DD36: =SUM(DD26:DD35)/(2*(COUNTIF(DD26:DD35,"<>NA"))) -> 0.7222222222 | DI36: =SUM(DI26:DI35)/(2*(COUNTIF(DI26:DI35,"<>NA"))) -> 0.7222222222 | DN36: =SUM(DN26:DN35)/(2*(COUNTIF(DN26:DN35,"<>NA"))) -> 0.7222222222 | DS36: =SUM(DS26:DS35)/(2*(COUNTIF(DS26:DS35,"<>NA"))) -> 0.7222222222 | DX36: =SUM(DX26:DX35)/(2*(COUNTIF(DX26:DX35,"<>NA"))) -> 0.7222222222 | EC36: =SUM(EC26:EC35)/(2*(COUNTIF(EC26:EC35,"<>NA"))) -> 0.9444444444 | EH36: =SUM(EH26:EH35)/(2*(COUNTIF(EH26:EH35,"<>NA"))) -> 0.9444444444 | EM36: =SUM(EM26:EM35)/(2*(COUNTIF(EM26:EM35,"<>NA"))) -> 0 | ER36: =SUM(ER26:ER35)/(2*(COUNTIF(ER26:ER35,"<>NA"))) -> 0 | EW36: =SUM(EW26:EW35)/(2*(COUNTIF(EW26:EW35,"<>NA"))) -> 0 | FB36: =SUM(FB26:FB35)/(2*(COUNTIF(FB26:FB35,"<>NA"))) -> 0 | FG36: =SUM(FG26:FG35)/(2*(COUNTIF(FG26:FG35,"<>NA"))) -> 0 | FL36: =SUM(FL26:FL35)/(2*(COUNTIF(FL26:FL35,"<>NA"))) -> 0 | FQ36: =SUM(FQ26:FQ35)/(2*(COUNTIF(FQ26:FQ35,"<>NA"))) -> 0 | FV36: =SUM(FV26:FV35)/(2*(COUNTIF(FV26:FV35,"<>NA"))) -> 0 | GA36: =SUM(GA26:GA35)/(2*(COUNTIF(GA26:GA35,"<>NA"))) -> 0 | GF36: =SUM(GF26:GF35)/(2*(COUNTIF(GF26:GF35,"<>NA"))) -> 0 | GK36: =SUM(GK26:GK35)/(2*(COUNTIF(GK26:GK35,"<>NA"))) -> 0 | GP36: =SUM(GP26:GP35)/(2*(COUNTIF(GP26:GP35,"<>NA"))) -> 0 | GU36: =SUM(GU26:GU35)/(2*(COUNTIF(GU26:GU35,"<>NA"))) -> 0 | GZ36: =SUM(GZ26:GZ35)/(2*(COUNTIF(GZ26:GZ35,"<>NA"))) -> 0 | HE36: =SUM(HE26:HE35)/(2*(COUNTIF(HE26:HE35,"<>NA"))) -> 0.625 | HJ36: =SUM(HJ26:HJ35)/(2*(COUNTIF(HJ26:HJ35,"<>NA"))) -> 0.6875 | HO36: =SUM(HO26:HO35)/(2*(COUNTIF(HO26:HO35,"<>NA"))) -> 0.6875 | HT36: =SUM(HT26:HT35)/(2*(COUNTIF(HT26:HT35,"<>NA"))) -> 0.6875 | HY36: =SUM(HY26:HY35)/(2*(COUNTIF(HY26:HY35,"<>NA"))) -> 0.6875 | ID36: =SUM(ID26:ID35)/(2*(COUNTIF(ID26:ID35,"<>NA"))) -> 0.9375 | II36: =SUM(II26:II35)/(2*(COUNTIF(II26:II35,"<>NA"))) -> 0.9375 | IN36: =SUM(IN26:IN35)/(2*(COUNTIF(IN26:IN35,"<>NA"))) -> 0 | IS36: =SUM(IS26:IS35)/(2*(COUNTIF(IS26:IS35,"<>NA"))) -> 0 | IX36: =SUM(IX26:IX35)/(2*(COUNTIF(IX26:IX35,"<>NA"))) -> 0 | JC36: =SUM(JC26:JC35)/(2*(COUNTIF(JC26:JC35,"<>NA"))) -> 0 | JH36: =SUM(JH26:JH35)/(2*(COUNTIF(JH26:JH35,"<>NA"))) -> 0 | JM36: =SUM(JM26:JM35)/(2*(COUNTIF(JM26:JM35,"<>NA"))) -> 0 | JR36: =SUM(JR26:JR35)/(2*(COUNTIF(JR26:JR35,"<>NA"))) -> 0
B37: Personal protective equipment indicators | C37: Rate | D37: Investigation | E37: Qualification | F37: Attachment | G37: Remark | H37: Rate | I37: Investigation | J37: Qualification | K37: Attachment | L37: Remark | M37: Rate | N37: Investigation | O37: Qualification | P37: Attachment | Q37: Remark | R37: Rate | S37: Investigation | T37: Qualification | U37: Attachment | V37: Remark | W37: Rate | X37: Investigation | Y37: Qualification | Z37: Attachment | AA37: Remark | AB37: Rate | AC37: Investigation | AD37: Qualification | AE37: Attachment | AF37: Remark | AG37: Rate | AH37: Investigation | AI37: Qualification | AJ37: Attachment | AK37: Remark | AL37: Rate | AM37: Investigation | AN37: Qualification | AO37: Attachment | AP37: Remark | AQ37: Rate | AR37: Investigation | AS37: Qualification | AT37: Attachment | AU37: Remark | AV37: Rate | AW37: Investigation | AX37: Qualification | AY37: Attachment | AZ37: Remark | BA37: Rate | BB37: Investigation | BC37: Qualification | BD37: Attachment | BE37: Remark | BF37: Rate | BG37: Investigation | BH37: Qualification | BI37: Attachment | BJ37: Remark | BK37: Rate | BL37: Investigation | BM37: Qualification | BN37: Attachment | BO37: Remark | BP37: Rate | BQ37: Investigation | BR37: Qualification | BS37: Attachment | BT37: Remark | BU37: Rate | BV37: Investigation | BW37: Qualification | BX37: Attachment | BY37: Remark | BZ37: Rate | CA37: Investigation | CB37: Qualification | CC37: Attachment | CD37: Remark | CE37: Rate | CF37: Investigation | CG37: Qualification | CH37: Attachment | CI37: Remark | CJ37: Rate | CK37: Investigation | CL37: Qualification | CM37: Attachment | CN37: Remark | CO37: Rate | CP37: Investigation | CQ37: Qualification | CR37: Attachment | CS37: Remark | CT37: Rate | CU37: Investigation | CV37: Qualification | CW37: Attachment | CX37: Remark | CY37: Rate | CZ37: Investigation | DA37: Qualification | DB37: Attachment | DC37: Remark | DD37: Rate | DE37: Investigation | DF37: Qualification | DG37: Attachment | DH37: Remark | DI37: Rate | DJ37: Investigation | DK37: Qualification | DL37: Attachment | DM37: Remark | DN37: Rate | DO37: Investigation | DP37: Qualification | DQ37: Attachment | DR37: Remark | DS37: Rate | DT37: Investigation | DU37: Qualification | DV37: Attachment | DW37: Remark | DX37: Rate | DY37: Investigation | DZ37: Qualification | EA37: Attachment | EB37: Remark | EC37: Rate | ED37: Investigation | EE37: Qualification | EF37: Attachment | EG37: Remark | EH37: Rate | EI37: Investigation | EJ37: Qualification | EK37: Attachment | EL37: Remark | EM37: Rate | EN37: Investigation | EO37: Qualification | EP37: Attachment | EQ37: Remark | ER37: Rate | ES37: Investigation | ET37: Qualification | EU37: Attachment | EV37: Remark | EW37: Rate | EX37: Investigation | EY37: Qualification | EZ37: Attachment | FA37: Remark | FB37: Rate | FC37: Investigation | FD37: Qualification | FE37: Attachment | FF37: Remark | FH37: Investigation | FI37: Qualification | FJ37: Attachment | FK37: Remark | FL37: Rate | FM37: Investigation | FN37: Qualification | FO37: Attachment | FP37: Remark | FQ37: Rate | FR37: Investigation | FS37: Qualification | FT37: Attachment | FU37: Remark | FV37: Rate | FW37: Investigation | FX37: Qualification | FY37: Attachment | FZ37: Remark | GA37: Rate | GB37: Investigation | GC37: Qualification | GD37: Attachment | GE37: Remark | GF37: Rate | GG37: Investigation | GH37: Qualification | GI37: Attachment | GJ37: Remark | GK37: Rate | GL37: Investigation | GM37: Qualification | GN37: Attachment | GO37: Remark | GP37: Rate | GQ37: Investigation | GR37: Qualification | GS37: Attachment | GT37: Remark | GU37: Rate | GV37: Investigation | GW37: Qualification | GX37: Attachment | GY37: Remark | GZ37: Rate | HA37: Investigation | HB37: Qualification | HC37: Attachment | HD37: Remark | HE37: Rate | HF37: Investigation | HG37: Qualification | HH37: Attachment | HI37: Remark | HJ37: Rate | HK37: Investigation | HL37: Qualification | HM37: Attachment | HN37: Remark | HO37: Rate | HP37: Investigation | HQ37: Qualification | HR37: Attachment | HS37: Remark | HU37: Investigation | HV37: Qualification | HW37: Attachment | HX37: Remark | HY37: Rate | HZ37: Investigation | IA37: Qualification | IB37: Attachment | IC37: Remark | ID37: Rate | IE37: Investigation | IF37: Qualification | IG37: Attachment | IH37: Remark | II37: Rate | IJ37: Investigation | IK37: Qualification | IL37: Attachment | IM37: Remark | IN37: Rate | IO37: Investigation | IP37: Qualification | IQ37: Attachment | IR37: Remark | IS37: Rate | IT37: Investigation | IU37: Qualification | IV37: Attachment | IW37: Remark | IX37: Rate | IY37: Investigation | IZ37: Qualification | JA37: Attachment | JB37: Remark | JC37: Rate | JD37: Investigation | JE37: Qualification | JF37: Attachment | JG37: Remark | JH37: Rate | JI37: Investigation | JJ37: Qualification | JK37: Attachment | JL37: Remark | JM37: Rate | JN37: Investigation | JO37: Qualification | JP37: Attachment | JQ37: Remark | JR37: Rate | JS37: Investigation | JT37: Qualification | JU37: Attachment | JV37: Remark
A38: 29 | B38: Surgical masks are available for patients with cough or other TB symptoms | C38: 1 | H38: 1 | M38: 1 | R38: 1 | W38: 1 | AB38: 1 | AG38: 1 | AL38: 1 | AQ38: 1 | AV38: 1 | BA38: 1 | BF38: 1 | BK38: 1 | BP38: 2 | BU38: 1 | BZ38: 1 | CE38: 1 | CJ38: 1 | CO38: 1 | CT38: 1 | CY38: 2 | DD38: 1 | DI38: 1 | DN38: 1 | DS38: 1 | DX38: 1 | EC38: 2 | EH38: 2 | HE38: 1 | HJ38: 1 | HO38: 1 | HT38: 1 | HY38: 1 | ID38: 2 | II38: 2
A39: 30 | B39: Respirators that meet the national or international standards are readily available to all staff who have contact with patients with TB or suspected of having TB in this department | C39: 2 | H39: 2 | M39: 2 | R39: 2 | W39: 2 | AB39: 2 | AG39: 2 | AL39: 2 | AQ39: 2 | AV39: 2 | BA39: 2 | BF39: 2 | BK39: 2 | BP39: 2 | BU39: 2 | BZ39: 2 | CE39: 2 | CJ39: 2 | CO39: 2 | CT39: 2 | CY39: 2 | DD39: 2 | DI39: 2 | DN39: 2 | DS39: 2 | DX39: 2 | EC39: 2 | EH39: 2 | HE39: 2 | HJ39: 2 | HO39: 2 | HT39: 2 | HY39: 2 | ID39: 2 | II39: 2
A40: 31 | B40: Staff were trained on proper respirator use in the past year | C40: 2 | H40: 2 | M40: 2 | R40: 2 | W40: 2 | AB40: 2 | AG40: 2 | AL40: 2 | AQ40: 2 | AV40: 2 | BA40: 2 | BF40: 2 | BK40: 2 | BP40: 2 | BU40: 2 | BZ40: 2 | CE40: 2 | CJ40: 2 | CO40: 2 | CT40: 2 | CY40: 2 | DD40: 2 | DI40: 2 | DN40: 2 | DS40: 2 | DX40: 2 | EC40: 2 | EH40: 2 | HE40: 2 | HJ40: 2 | HO40: 2 | HT40: 2 | HY40: 2 | ID40: 2 | II40: 2
A41: 32 | B41: Staff can demonstrate proper respirator use (i.e., putting on, removing, seal check, and storage) | C41: 2 | H41: 2 | M41: 2 | R41: 2 | W41: 2 | AB41: 2 | AG41: 2 | AL41: 2 | AQ41: 2 | AV41: 2 | BA41: 2 | BF41: 2 | BK41: 2 | BP41: 2 | BU41: 2 | BZ41: 2 | CE41: 2 | CJ41: 2 | CO41: 2 | CT41: 2 | CY41: 2 | DD41: 2 | DI41: 2 | DN41: 2 | DS41: 2 | DX41: 2 | EC41: 2 | EH41: 2 | HE41: 2 | HJ41: 2 | HO41: 2 | HT41: 2 | HY41: 2 | ID41: 2 | II41: 2
A42: 33 | B42: There have been no stock-outs of surgical masks in the past 3 months | C42: 2 | H42: 2 | M42: 2 | R42: 2 | W42: 2 | AB42: 2 | AG42: 2 | AL42: 2 | AQ42: 2 | AV42: 2 | BA42: 2 | BF42: 2 | BK42: 2 | BP42: 2 | BU42: 2 | BZ42: 2 | CE42: 2 | CJ42: 2 | CO42: 2 | CT42: 2 | CY42: 2 | DD42: 2 | DI42: 2 | DN42: 2 | DS42: 2 | DX42: 2 | EC42: 2 | EH42: 2 | HE42: 2 | HJ42: 2 | HO42: 2 | HT42: 2 | HY42: 2 | ID42: 2 | II42: 2
A43: 34 | B43: There have been no stock-outs of respirators in the past 3 months | C43: 2 | H43: 2 | M43: 2 | R43: 2 | W43: 2 | AB43: 2 | AG43: 2 | AL43: 2 | AQ43: 2 | AV43: 2 | BA43: 2 | BF43: 2 | BK43: 2 | BP43: 2 | BU43: 2 | BZ43: 2 | CE43: 2 | CJ43: 2 | CO43: 2 | CT43: 2 | CY43: 2 | DD43: 2 | DI43: 2 | DN43: 2 | DS43: 2 | DX43: 2 | EC43: 2 | EH43: 2 | HE43: 2 | HJ43: 2 | HO43: 2 | HT43: 2 | HY43: 2 | ID43: 2 | II43: 2
B44: The implementation of personal protective equipment indicators | C44: =SUM(C38:C43)/(2*(COUNTIF(C38:C43,"<>NA"))) -> 0.9166666667 | H44: =SUM(H38:H43)/(2*(COUNTIF(H38:H43,"<>NA"))) -> 0.9166666667 | M44: =SUM(M38:M43)/(2*(COUNTIF(M38:M43,"<>NA"))) -> 0.9166666667 | R44: =SUM(R38:R43)/(2*(COUNTIF(R38:R43,"<>NA"))) -> 0.9166666667 | W44: =SUM(W38:W43)/(2*(COUNTIF(W38:W43,"<>NA"))) -> 0.9166666667 | AB44: =SUM(AB38:AB43)/(2*(COUNTIF(AB38:AB43,"<>NA"))) -> 0.9166666667 | AG44: =SUM(AG38:AG43)/(2*(COUNTIF(AG38:AG43,"<>NA"))) -> 0.9166666667 | AL44: =SUM(AL38:AL43)/(2*(COUNTIF(AL38:AL43,"<>NA"))) -> 0.9166666667 | AQ44: =SUM(AQ38:AQ43)/(2*(COUNTIF(AQ38:AQ43,"<>NA"))) -> 0.9166666667 | AV44: =SUM(AV38:AV43)/(2*(COUNTIF(AV38:AV43,"<>NA"))) -> 0.9166666667 | BA44: =SUM(BA38:BA43)/(2*(COUNTIF(BA38:BA43,"<>NA"))) -> 0.9166666667 | BF44: =SUM(BF38:BF43)/(2*(COUNTIF(BF38:BF43,"<>NA"))) -> 0.9166666667 | BK44: =SUM(BK38:BK43)/(2*(COUNTIF(BK38:BK43,"<>NA"))) -> 0.9166666667 | BP44: =SUM(BP38:BP43)/(2*(COUNTIF(BP38:BP43,"<>NA"))) -> 1 | BU44: =SUM(BU38:BU43)/(2*(COUNTIF(BU38:BU43,"<>NA"))) -> 0.9166666667 | BZ44: =SUM(BZ38:BZ43)/(2*(COUNTIF(BZ38:BZ43,"<>NA"))) -> 0.9166666667 | CE44: =SUM(CE38:CE43)/(2*(COUNTIF(CE38:CE43,"<>NA"))) -> 0.9166666667 | CJ44: =SUM(CJ38:CJ43)/(2*(COUNTIF(CJ38:CJ43,"<>NA"))) -> 0.9166666667 | CO44: =SUM(CO38:CO43)/(2*(COUNTIF(CO38:CO43,"<>NA"))) -> 0.9166666667 | CT44: =SUM(CT38:CT43)/(2*(COUNTIF(CT38:CT43,"<>NA"))) -> 0.9166666667 | CY44: =SUM(CY38:CY43)/(2*(COUNTIF(CY38:CY43,"<>NA"))) -> 1 | DD44: =SUM(DD38:DD43)/(2*(COUNTIF(DD38:DD43,"<>NA"))) -> 0.9166666667 | DI44: =SUM(DI38:DI43)/(2*(COUNTIF(DI38:DI43,"<>NA"))) -> 0.9166666667 | DN44: =SUM(DN38:DN43)/(2*(COUNTIF(DN38:DN43,"<>NA"))) -> 0.9166666667 | DS44: =SUM(DS38:DS43)/(2*(COUNTIF(DS38:DS43,"<>NA"))) -> 0.9166666667 | DX44: =SUM(DX38:DX43)/(2*(COUNTIF(DX38:DX43,"<>NA"))) -> 0.9166666667 | EC44: =SUM(EC38:EC43)/(2*(COUNTIF(EC38:EC43,"<>NA"))) -> 1 | EH44: =SUM(EH38:EH43)/(2*(COUNTIF(EH38:EH43,"<>NA"))) -> 1 | EM44: =SUM(EM38:EM43)/(2*(COUNTIF(EM38:EM43,"<>NA"))) -> 0 | ER44: =SUM(ER38:ER43)/(2*(COUNTIF(ER38:ER43,"<>NA"))) -> 0 | EW44: =SUM(EW38:EW43)/(2*(COUNTIF(EW38:EW43,"<>NA"))) -> 0 | FB44: =SUM(FB38:FB43)/(2*(COUNTIF(FB38:FB43,"<>NA"))) -> 0 | FG44: =SUM(FG38:FG43)/(2*(COUNTIF(FG38:FG43,"<>NA"))) -> 0 | FL44: =SUM(FL38:FL43)/(2*(COUNTIF(FL38:FL43,"<>NA"))) -> 0 | FQ44: =SUM(FQ38:FQ43)/(2*(COUNTIF(FQ38:FQ43,"<>NA"))) -> 0 | FV44: =SUM(FV38:FV43)/(2*(COUNTIF(FV38:FV43,"<>NA"))) -> 0 | GA44: =SUM(GA38:GA43)/(2*(COUNTIF(GA38:GA43,"<>NA"))) -> 0 | GF44: =SUM(GF38:GF43)/(2*(COUNTIF(GF38:GF43,"<>NA"))) -> 0 | GK44: =SUM(GK38:GK43)/(2*(COUNTIF(GK38:GK43,"<>NA"))) -> 0 | GP44: =SUM(GP38:GP43)/(2*(COUNTIF(GP38:GP43,"<>NA"))) -> 0 | GU44: =SUM(GU38:GU43)/(2*(COUNTIF(GU38:GU43,"<>NA"))) -> 0 | GZ44: =SUM(GZ38:GZ43)/(2*(COUNTIF(GZ38:GZ43,"<>NA"))) -> 0 | HE44: =SUM(HE38:HE43)/(2*(COUNTIF(HE38:HE43,"<>NA"))) -> 0.9166666667 | HJ44: =SUM(HJ38:HJ43)/(2*(COUNTIF(HJ38:HJ43,"<>NA"))) -> 0.9166666667 | HO44: =SUM(HO38:HO43)/(2*(COUNTIF(HO38:HO43,"<>NA"))) -> 0.9166666667 | HT44: =SUM(HT38:HT43)/(2*(COUNTIF(HT38:HT43,"<>NA"))) -> 0.9166666667 | HY44: =SUM(HY38:HY43)/(2*(COUNTIF(HY38:HY43,"<>NA"))) -> 0.9166666667 | ID44: =SUM(ID38:ID43)/(2*(COUNTIF(ID38:ID43,"<>NA"))) -> 1 | II44: =SUM(II38:II43)/(2*(COUNTIF(II38:II43,"<>NA"))) -> 1 | IN44: =SUM(IN38:IN43)/(2*(COUNTIF(IN38:IN43,"<>NA"))) -> 0 | IS44: =SUM(IS38:IS43)/(2*(COUNTIF(IS38:IS43,"<>NA"))) -> 0 | IX44: =SUM(IX38:IX43)/(2*(COUNTIF(IX38:IX43,"<>NA"))) -> 0 | JC44: =SUM(JC38:JC43)/(2*(COUNTIF(JC38:JC43,"<>NA"))) -> 0 | JH44: =SUM(JH38:JH43)/(2*(COUNTIF(JH38:JH43,"<>NA"))) -> 0 | JM44: =SUM(JM38:JM43)/(2*(COUNTIF(JM38:JM43,"<>NA"))) -> 0 | JR44: =SUM(JR38:JR43)/(2*(COUNTIF(JR38:JR43,"<>NA"))) -> 0
B45: The overall implementation of all indicators | C45: =AVERAGE(C24,C36,C44) -> 0.6846405229 | H45: =AVERAGE(H24,H36,H44) -> 0.704248366 | M45: =AVERAGE(M24,M36,M44) -> 0.7140522876 | R45: =AVERAGE(R24,R36,R44) -> 0.7238562092 | W45: =AVERAGE(W24,W36,W44) -> 0.7238562092 | AB45: =AVERAGE(AB24,AB36,AB44) -> 0.7434640523 | AG45: =AVERAGE(AG24,AG36,AG44) -> 0.8110021786 | AL45: =AVERAGE(AL24,AL36,AL44) -> 0.670751634 | AQ45: =AVERAGE(AQ24,AQ36,AQ44) -> 0.7111928105 | AV45: =AVERAGE(AV24,AV36,AV44) -> 0.7308006536 | BA45: =AVERAGE(BA24,BA36,BA44) -> 0.7602124183 | BF45: =AVERAGE(BF24,BF36,BF44) -> 0.7908496732 | BK45: =AVERAGE(BK24,BK36,BK44) -> 0.7908496732 | BP45: =AVERAGE(BP24,BP36,BP44) -> 0.8897058824 | BU45: =AVERAGE(BU24,BU36,BU44) -> 0.670751634 | BZ45: =AVERAGE(BZ24,BZ36,BZ44) -> 0.7013888889 | CE45: =AVERAGE(CE24,CE36,CE44) -> 0.7013888889 | CJ45: =AVERAGE(CJ24,CJ36,CJ44) -> 0.7406045752 | CO45: =AVERAGE(CO24,CO36,CO44) -> 0.7406045752 | CT45: =AVERAGE(CT24,CT36,CT44) -> 0.7908496732 | CY45: =AVERAGE(CY24,CY36,CY44) -> 0.8897058824 | DD45: =AVERAGE(DD24,DD36,DD44) -> 0.7031590414 | DI45: =AVERAGE(DI24,DI36,DI44) -> 0.7325708061 | DN45: =AVERAGE(DN24,DN36,DN44) -> 0.7619825708 | DS45: =AVERAGE(DS24,DS36,DS44) -> 0.7717864924 | DX45: =AVERAGE(DX24,DX36,DX44) -> 0.7717864924 | EC45: =AVERAGE(EC24,EC36,EC44) -> 0.9814814815 | EH45: =AVERAGE(EH24,EH36,EH44) -> 0.9814814815 | EM45: =AVERAGE(EM24,EM36,EM44) -> 0 | ER45: =AVERAGE(ER24,ER36,ER44) -> 0 | EW45: =AVERAGE(EW24,EW36,EW44) -> 0 | FB45: =AVERAGE(FB24,FB36,FB44) -> 0 | FG45: =AVERAGE(FG24,FG36,FG44) -> 0 | FL45: =AVERAGE(FL24,FL36,FL44) -> 0 | FQ45: =AVERAGE(FQ24,FQ36,FQ44) -> 0 | FV45: =AVERAGE(FV24,FV36,FV44) -> 0 | GA45: =AVERAGE(GA24,GA36,GA44) -> 0 | GF45: =AVERAGE(GF24,GF36,GF44) -> 0 | GK45: =AVERAGE(GK24,GK36,GK44) -> 0 | GP45: =AVERAGE(GP24,GP36,GP44) -> 0 | GU45: =AVERAGE(GU24,GU36,GU44) -> 0 | GZ45: =AVERAGE(GZ24,GZ36,GZ44) -> 0 | HE45: =AVERAGE(HE24,HE36,HE44) -> 0.670751634 | HJ45: =AVERAGE(HJ24,HJ36,HJ44) -> 0.720996732 | HO45: =AVERAGE(HO24,HO36,HO44) -> 0.7504084967 | HT45: =AVERAGE(HT24,HT36,HT44) -> 0.7602124183 | HY45: =AVERAGE(HY24,HY36,HY44) -> 0.7602124183 | ID45: =AVERAGE(ID24,ID36,ID44) -> 0.9693627451 | II45: =AVERAGE(II24,II36,II44) -> 0.9693627451 | IN45: =AVERAGE(IN24,IN36,IN44) -> 0 | IS45: =AVERAGE(IS24,IS36,IS44) -> 0 | IX45: =AVERAGE(IX24,IX36,IX44) -> 0 | JC45: =AVERAGE(JC24,JC36,JC44) -> 0 | JH45: =AVERAGE(JH24,JH36,JH44) -> 0 | JM45: =AVERAGE(JM24,JM36,JM44) -> 0 | JR45: =AVERAGE(JR24,JR36,JR44) -> 0
B46: Assessor | C46: Assessor Name: | H46: Assessor Name: | M46: Assessor Name: | R46: Assessor Name: | W46: Assessor Name: | AB46: Assessor Name: | AL46: Assessor Name: | AQ46: Assessor Name: | AV46: Assessor Name: | BA46: Assessor Name: | BF46: Assessor Name: | BK46: Assessor Name: | BP46: Assessor Name: | BU46: Assessor Name: | BZ46: Assessor Name: | CE46: Assessor Name: | CJ46: Assessor Name: | CO46: Assessor Name: | CT46: Assessor Name: | CY46: Assessor Name: | DD46: Assessor Name: | DI46: Assessor Name: | DN46: Assessor Name: | DS46: Assessor Name: | DX46: Assessor Name: | EC46: Assessor Name: | EH46: Assessor Name: | EM46: Assessor Name: | ER46: Assessor Name: | EW46: Assessor Name: | FB46: Assessor Name: | FG46: Assessor Name: | FL46: Assessor Name: | FQ46: Assessor Name: | FV46: Assessor Name: | GA46: Assessor Name: | GF46: Assessor Name: | GK46: Assessor Name: | GP46: Assessor Name: | GU46: Assessor Name: | GZ46: Assessor Name: | HE46: Assessor Name: | HJ46: Assessor Name: | HO46: Assessor Name: | HT46: Assessor Name: | HY46: Assessor Name: | ID46: Assessor Name: | II46: Assessor Name: | IN46: Assessor Name: | IS46: Assessor Name: | IX46: Assessor Name: | JC46: Assessor Name: | JH46: Assessor Name: | JM46: Assessor Name: | JR46: Assessor Name:

Sheet Inpatient department & ward
B1: Date viewing mode
B2: Inpatient department/wards | C2: 1. Ward1 | R2: 1. Ward1
B3: Assessment phase | C3: Basic | H3: 3 months | M3: 6 months | R3: 9 months | W3: 12 months | AB3: 15 months | AG3: 18 months | AL3: Basic | AQ3: 3 months | AV3: 6 months | BA3: 9 months | BF3: 12 months | BK3: 15 months | BP3: 18 months | BU3: Basic | BZ3: 3 months | CE3: 6 months | CJ3: 9 months | CO3: 12 months | CT3: 15 months | CY3: 18 months | DD3: Basic | DI3: 3 months | DN3: 6 months | DS3: 9 months | DX3: 12 months | EC3: 15 months | EH3: 18 months | EM3: Basic | ER3: 3 months | EW3: 6 months | FB3: 9 months | FG3: 12 months | FL3: 15 months | FQ3: 18 months | FV3: Basic | GA3: 3 months | GF3: 6 months | GK3: 9 months | GP3: 12 months | GU3: 15 months | GZ3: 18 months | HE3: Basic | HJ3: 3 months | HO3: 6 months | HT3: 9 months | HY3: 12 months | ID3: 15 months | II3: 18 months | IN3: Basic | IS3: 3 months | IX3: 6 months | JC3: 9 months | JH3: 12 months | JM3: 15 months | JR3: 18 months
B4: Date of assessment | C4: Date | H4: Date | M4: Date | R4: Date | W4: Date | AB4: Date | AG4: Date | AL4: Date | AQ4: Date | AV4: Date | BA4: Date | BF4: Date | BK4: Date | BP4: Date | BU4: Date | BZ4: Date | CE4: Date | CJ4: Date | CO4: Date | CT4: Date | CY4: Date | DD4: Date | DI4: Date | DN4: Date | DX4: Date | EC4: Date | EH4: Date | EM4: Date | ER4: Date | EW4: Date | FB4: Date | FG4: Date | FL4: Date | FQ4: Date | FV4: Date | GA4: Date | GF4: Date | GK4: Date | GP4: Date | GU4: Date | GZ4: Date | HE4: Date | HJ4: Date | HO4: Date | HT4: Date | HY4: Date | ID4: Date | II4: Date | IN4: Date | IS4: Date | IX4: Date | JC4: Date | JH4: Date | JM4: Date | JR4: Date
B5: Administrative controls indicators | C5: Rate | D5: Investigation | E5: Qualification | F5: Attachment | G5: Remark | H5: Rate | I5: Investigation | J5: Qualification | K5: Attachment | L5: Remark | M5: Rate | N5: Investigation | O5: Qualification | P5: Attachment | Q5: Remark | R5: Rate | S5: Investigation | T5: Qualification | U5: Attachment | V5: Remark | W5: Rate | X5: Investigation | Y5: Qualification | Z5: Attachment | AA5: Remark | AB5: Rate | AC5: Investigation | AD5: Qualification | AE5: Attachment | AF5: Remark | AH5: Investigation | AI5: Qualification | AJ5: Attachment | AK5: Remark | AL5: Rate | AM5: Investigation | AN5: Qualification | AO5: Attachment | AP5: Remark | AQ5: Rate | AR5: Investigation | AS5: Qualification | AT5: Attachment | AU5: Remark | AV5: Rate | AW5: Investigation | AX5: Qualification | AY5: Attachment | AZ5: Remark | BA5: Rate | BB5: Investigation | BC5: Qualification | BD5: Attachment | BE5: Remark | BF5: Rate | BG5: Investigation | BH5: Qualification | BI5: Attachment | BJ5: Remark | BK5: Rate | BL5: Investigation | BM5: Qualification | BN5: Attachment | BO5: Remark | BP5: Rate | BQ5: Investigation | BR5: Qualification | BS5: Attachment | BT5: Remark | BU5: Rate | BV5: Investigation | BW5: Qualification | BX5: Attachment | BY5: Remark | BZ5: Rate | CA5: Investigation | CB5: Qualification | CC5: Attachment | CD5: Remark | CE5: Rate | CF5: Investigation | CG5: Qualification | CH5: Attachment | CI5: Remark | CJ5: Rate | CK5: Investigation | CL5: Qualification | CM5: Attachment | CN5: Remark | CO5: Rate | CP5: Investigation | CQ5: Qualification | CR5: Attachment | CS5: Remark | CU5: Investigation | CV5: Qualification | CW5: Attachment | CX5: Remark | CY5: Rate | CZ5: Investigation | DA5: Qualification | DB5: Attachment | DC5: Remark | DD5: Rate | DE5: Investigation | DF5: Qualification | DG5: Attachment | DH5: Remark | DI5: Rate | DJ5: Investigation | DK5: Qualification | DL5: Attachment | DM5: Remark | DN5: Rate | DO5: Investigation | DP5: Qualification | DQ5: Attachment | DR5: Remark | DS5: Rate | DT5: Investigation | DU5: Qualification | DV5: Attachment | DW5: Remark | DX5: Rate | DY5: Investigation | DZ5: Qualification | EA5: Attachment | EB5: Remark | EC5: Rate | ED5: Investigation | EE5: Qualification | EF5: Attachment | EG5: Remark | EH5: Rate | EI5: Investigation | EJ5: Qualification | EK5: Attachment | EL5: Remark | EM5: Rate | EN5: Investigation | EO5: Qualification | EP5: Attachment | EQ5: Remark | ER5: Rate | ES5: Investigation | ET5: Qualification | EU5: Attachment | EV5: Remark | EW5: Rate | EX5: Investigation | EY5: Qualification | EZ5: Attachment | FA5: Remark | FB5: Rate | FC5: Investigation | FD5: Qualification | FE5: Attachment | FF5: Remark | FH5: Investigation | FI5: Qualification | FJ5: Attachment | FK5: Remark | FL5: Rate | FM5: Investigation | FN5: Qualification | FO5: Attachment | FP5: Remark | FQ5: Rate | FR5: Investigation | FS5: Qualification | FT5: Attachment | FU5: Remark | FV5: Rate | FW5: Investigation | FX5: Qualification | FY5: Attachment | FZ5: Remark | GA5: Rate | GB5: Investigation | GC5: Qualification | GD5: Attachment | GE5: Remark | GF5: Rate | GG5: Investigation | GH5: Qualification | GI5: Attachment | GJ5: Remark | GK5: Rate | GL5: Investigation | GM5: Qualification | GN5: Attachment | GO5: Remark | GP5: Rate | GQ5: Investigation | GR5: Qualification | GS5: Attachment | GT5: Remark | GU5: Rate | GV5: Investigation | GW5: Qualification | GX5: Attachment | GY5: Remark | GZ5: Rate | HA5: Investigation | HB5: Qualification | HC5: Attachment | HD5: Remark | HE5: Rate | HF5: Investigation | HG5: Qualification | HH5: Attachment | HI5: Remark | HJ5: Rate | HK5: Investigation | HL5: Qualification | HM5: Attachment | HN5: Remark | HO5: Rate | HP5: Investigation | HQ5: Qualification | HR5: Attachment | HS5: Remark | HU5: Investigation | HV5: Qualification | HW5: Attachment | HX5: Remark | HY5: Rate | HZ5: Investigation | IA5: Qualification | IB5: Attachment | IC5: Remark | ID5: Rate | IE5: Investigation | IF5: Qualification | IG5: Attachment | IH5: Remark | II5: Rate | IJ5: Investigation | IK5: Qualification | IL5: Attachment | IM5: Remark | IN5: Rate | IO5: Investigation | IP5: Qualification | IQ5: Attachment | IR5: Remark | IS5: Rate | IT5: Investigation | IU5: Qualification | IV5: Attachment | IW5: Remark | IX5: Rate | IY5: Investigation | IZ5: Qualification | JA5: Attachment | JB5: Remark | JC5: Rate | JD5: Investigation | JE5: Qualification | JF5: Attachment | JG5: Remark | JH5: Rate | JI5: Investigation | JJ5: Qualification | JK5: Attachment | JL5: Remark | JM5: Rate | JN5: Investigation | JO5: Qualification | JP5: Attachment | JQ5: Remark | JR5: Rate | JS5: Investigation | JT5: Qualification | JU5: Attachment | JV5: Remark
A6: 1 | B6: Patients are routinely asked about cough upon entering the ward (e.g. at admission) | C6: 0 | D6: 6 | H6: 2 | M6: 2 | R6: 2 | W6: 2 | AB6: 2 | AG6: 2
A7: 2 | B7: Patients receive guidance and education on cough etiquette | C7: 1 | H7: 1 | M7: 1 | R7: 1 | W7: 2 | AB7: 2 | AG7: 2
A8: 3 | B8: Patients with cough or other symptoms of TB are promptly separated from others | C8: 1 | H8: 1 | M8: 1 | R8: 1 | W8: 1 | AB8: 2 | AG8: 2
A9: 4 | B9: Signage for cough etiquette is present | C9: 1 | H9: 1 | M9: 1 | R9: 1 | W9: 2 | AB9: 2 | AG9: 2
A10: 5 | B10: Supplies are available for coughing patients (tissues, masks, cloths, trash bins, etc.) | C10: 2 | H10: 2 | M10: 2 | R10: 2 | W10: 2 | AB10: 2 | AG10: 2
A11: 6 | B11: Sputum samples are collected in a designated area with good ventilation away from others | C11: 0 | H11: 1 | M11: 1 | R11: 1 | W11: 2 | AB11: 2 | AG11: 2
A12: 7 | B12: Sputum smear results are received within 24 hours (the time between sputum collection and sending the test result to the doctor) | C12: 2 | H12: 2 | M12: 2 | R12: 2 | W12: 2 | AB12: 2 | AG12: 2
A13: 8 | B13: Xpert MTB/RIF results are received within 24 hours (the time between sputum collection and sending the test result to the doctor) | C13: NA | H13: NA | M13: NA | R13: NA | W13: NA | AB13: NA | AG13: NA
A14: 9 | B14: Drug resistance testing is performed in persons with suspected drug-resistant TB (five categories as defined by China NTP: 1. Chronic infectious patients /patients with failed treatment; 2. Smear positive patients also have close contact with MDR-TB patients; 3. Patients failed initial treatment; 4. Recurrent patients and patients who return for treatment; 5. New cases stay smear positive at the end of three months treatment) | C14: 2 | H14: 2 | M14: 2 | R14: 2 | W14: 2 | AB14: 2 | AG14: 2
A15: 10 | B15: Patients with suspected TB are separated from other patients in a separate room/ward | C15: 0 | H15: 0 | M15: 0 | R15: 0 | W15: 0 | AB15: 2 | AG15: 2
A16: 11 | B16: Diagnosed TB patients are separated from other patients in a separate room/ward | C16: 0 | H16: 1 | M16: 1 | R16: 1 | W16: 2 | AB16: 2 | AG16: 2
A17: 12 | B17: Patients with suspected drug-resistant TB are separated from other patients in a separate room/ward (five categories of suspected drug-resistant TB as defined by China NTP: 1. Chronic infectious patients /patients with failed treatment; 2. Smear positive patients also have close contact with MDR-TB patients; 3. Patients failed initial treatment; 4. Recurrent patients and patients who return for treatment; 5. New cases stay smear positive at the end of three months treatment) | C17: 0 | H17: 1 | M17: 1 | R17: 1 | W17: 2 | AB17: 2 | AG17: 2
A18: 13 | B18: Diagnosed DR TB patients are separated from other patients in a separate room/ward | C18: NA | H18: NA | M18: NA | R18: NA | W18: NA | AB18: NA | AG18: NA
A19: 14 | B19: Whether or not have non-TB patients in the TB ward? | C19: 1 | H19: 1 | M19: 1 | R19: 1 | W19: 1 | AB19: 1 | AG19: 1
A20: 15 | B20: There is a formal system for linking patients diagnosed with TB in the inpatient setting to outpatient care for follow-up (or to TB/DOT clinic for follow-up) | C20: 2 | H20: 2 | M20: 2 | R20: 2 | W20: 2 | AB20: 2 | AG20: 2
B21: The implementation of administrative controls indicators | C21: =SUM(C6:C20)/(2*(COUNTIF(C6:C20,"<>NA"))) -> 0.4615384615 | H21: =SUM(H6:H20)/(2*(COUNTIF(H6:H20,"<>NA"))) -> 0.6538461538 | M21: =SUM(M6:M20)/(2*(COUNTIF(M6:M20,"<>NA"))) -> 0.6538461538 | R21: =SUM(R6:R20)/(2*(COUNTIF(R6:R20,"<>NA"))) -> 0.6538461538 | W21: =SUM(W6:W20)/(2*(COUNTIF(W6:W20,"<>NA"))) -> 0.8461538462 | AB21: =SUM(AB6:AB20)/(2*(COUNTIF(AB6:AB20,"<>NA"))) -> 0.9615384615 | AG21: =SUM(AG6:AG20)/(2*(COUNTIF(AG6:AG20,"<>NA"))) -> 0.9615384615 | AL21: =SUM(AL6:AL20)/(2*(COUNTIF(AL6:AL20,"<>NA"))) -> 0 | AQ21: =SUM(AQ6:AQ20)/(2*(COUNTIF(AQ6:AQ20,"<>NA"))) -> 0 | AV21: =SUM(AV6:AV20)/(2*(COUNTIF(AV6:AV20,"<>NA"))) -> 0 | BA21: =SUM(BA6:BA20)/(2*(COUNTIF(BA6:BA20,"<>NA"))) -> 0 | BF21: =SUM(BF6:BF20)/(2*(COUNTIF(BF6:BF20,"<>NA"))) -> 0 | BK21: =SUM(BK6:BK20)/(2*(COUNTIF(BK6:BK20,"<>NA"))) -> 0 | BP21: =SUM(BP6:BP20)/(2*(COUNTIF(BP6:BP20,"<>NA"))) -> 0 | BU21: =SUM(BU6:BU20)/(2*(COUNTIF(BU6:BU20,"<>NA"))) -> 0 | BZ21: =SUM(BZ6:BZ20)/(2*(COUNTIF(BZ6:BZ20,"<>NA"))) -> 0 | CE21: =SUM(CE6:CE20)/(2*(COUNTIF(CE6:CE20,"<>NA"))) -> 0 | CJ21: =SUM(CJ6:CJ20)/(2*(COUNTIF(CJ6:CJ20,"<>NA"))) -> 0 | CO21: =SUM(CO6:CO20)/(2*(COUNTIF(CO6:CO20,"<>NA"))) -> 0 | CT21: =SUM(CT6:CT20)/(2*(COUNTIF(CT6:CT20,"<>NA"))) -> 0 | CY21: =SUM(CY6:CY20)/(2*(COUNTIF(CY6:CY20,"<>NA"))) -> 0 | DD21: =SUM(DD6:DD20)/(2*(COUNTIF(DD6:DD20,"<>NA"))) -> 0 | DI21: =SUM(DI6:DI20)/(2*(COUNTIF(DI6:DI20,"<>NA"))) -> 0 | DN21: =SUM(DN6:DN20)/(2*(COUNTIF(DN6:DN20,"<>NA"))) -> 0 | DS21: =SUM(DS6:DS20)/(2*(COUNTIF(DS6:DS20,"<>NA"))) -> 0 | DX21: =SUM(DX6:DX20)/(2*(COUNTIF(DX6:DX20,"<>NA"))) -> 0 | EC21: =SUM(EC6:EC20)/(2*(COUNTIF(EC6:EC20,"<>NA"))) -> 0 | EH21: =SUM(EH6:EH20)/(2*(COUNTIF(EH6:EH20,"<>NA"))) -> 0 | EM21: =SUM(EM6:EM20)/(2*(COUNTIF(EM6:EM20,"<>NA"))) -> 0 | ER21: =SUM(ER6:ER20)/(2*(COUNTIF(ER6:ER20,"<>NA"))) -> 0 | EW21: =SUM(EW6:EW20)/(2*(COUNTIF(EW6:EW20,"<>NA"))) -> 0 | FB21: =SUM(FB6:FB20)/(2*(COUNTIF(FB6:FB20,"<>NA"))) -> 0 | FG21: =SUM(FG6:FG20)/(2*(COUNTIF(FG6:FG20,"<>NA"))) -> 0 | FL21: =SUM(FL6:FL20)/(2*(COUNTIF(FL6:FL20,"<>NA"))) -> 0 | FQ21: =SUM(FQ6:FQ20)/(2*(COUNTIF(FQ6:FQ20,"<>NA"))) -> 0 | FV21: =SUM(FV6:FV20)/(2*(COUNTIF(FV6:FV20,"<>NA"))) -> 0 | GA21: =SUM(GA6:GA20)/(2*(COUNTIF(GA6:GA20,"<>NA"))) -> 0 | GF21: =SUM(GF6:GF20)/(2*(COUNTIF(GF6:GF20,"<>NA"))) -> 0 | GK21: =SUM(GK6:GK20)/(2*(COUNTIF(GK6:GK20,"<>NA"))) -> 0 | GP21: =SUM(GP6:GP20)/(2*(COUNTIF(GP6:GP20,"<>NA"))) -> 0 | GU21: =SUM(GU6:GU20)/(2*(COUNTIF(GU6:GU20,"<>NA"))) -> 0 | GZ21: =SUM(GZ6:GZ20)/(2*(COUNTIF(GZ6:GZ20,"<>NA"))) -> 0 | HE21: =SUM(HE6:HE20)/(2*(COUNTIF(HE6:HE20,"<>NA"))) -> 0 | HJ21: =SUM(HJ6:HJ20)/(2*(COUNTIF(HJ6:HJ20,"<>NA"))) -> 0 | HO21: =SUM(HO6:HO20)/(2*(COUNTIF(HO6:HO20,"<>NA"))) -> 0 | HT21: =SUM(HT6:HT20)/(2*(COUNTIF(HT6:HT20,"<>NA"))) -> 0 | HY21: =SUM(HY6:HY20)/(2*(COUNTIF(HY6:HY20,"<>NA"))) -> 0 | ID21: =SUM(ID6:ID20)/(2*(COUNTIF(ID6:ID20,"<>NA"))) -> 0 | II21: =SUM(II6:II20)/(2*(COUNTIF(II6:II20,"<>NA"))) -> 0 | IN21: =SUM(IN6:IN20)/(2*(COUNTIF(IN6:IN20,"<>NA"))) -> 0 | IS21: =SUM(IS6:IS20)/(2*(COUNTIF(IS6:IS20,"<>NA"))) -> 0 | IX21: =SUM(IX6:IX20)/(2*(COUNTIF(IX6:IX20,"<>NA"))) -> 0 | JC21: =SUM(JC6:JC20)/(2*(COUNTIF(JC6:JC20,"<>NA"))) -> 0 | JH21: =SUM(JH6:JH20)/(2*(COUNTIF(JH6:JH20,"<>NA"))) -> 0 | JM21: =SUM(JM6:JM20)/(2*(COUNTIF(JM6:JM20,"<>NA"))) -> 0 | JR21: =SUM(JR6:JR20)/(2*(COUNTIF(JR6:JR20,"<>NA"))) -> 0
B22: Environmental controls indicators | C22: Rate | D22: Investigation | E22: Qualification | F22: Attachment | G22: Remark | H22: Rate | I22: Investigation | J22: Qualification | K22: Attachment | L22: Remark | M22: Rate | N22: Investigation | O22: Qualification | P22: Attachment | Q22: Remark | R22: Rate | S22: Investigation | T22: Qualification | U22: Attachment | V22: Remark | W22: Rate | X22: Investigation | Y22: Qualification | Z22: Attachment | AA22: Remark | AB22: Rate | AC22: Investigation | AD22: Qualification | AE22: Attachment | AF22: Remark | AH22: Investigation | AI22: Qualification | AJ22: Attachment | AK22: Remark | AL22: Rate | AM22: Investigation | AN22: Qualification | AO22: Attachment | AP22: Remark | AQ22: Rate | AR22: Investigation | AS22: Qualification | AT22: Attachment | AU22: Remark | AV22: Rate | AW22: Investigation | AX22: Qualification | AY22: Attachment | AZ22: Remark | BA22: Rate | BB22: Investigation | BC22: Qualification | BD22: Attachment | BE22: Remark | BF22: Rate | BG22: Investigation | BH22: Qualification | BI22: Attachment | BJ22: Remark | BK22: Rate | BL22: Investigation | BM22: Qualification | BN22: Attachment | BO22: Remark | BP22: Rate | BQ22: Investigation | BR22: Qualification | BS22: Attachment | BT22: Remark | BU22: Rate | BV22: Investigation | BW22: Qualification | BX22: Attachment | BY22: Remark | BZ22: Rate | CA22: Investigation | CB22: Qualification | CC22: Attachment | CD22: Remark | CE22: Rate | CF22: Investigation | CG22: Qualification | CH22: Attachment | CI22: Remark | CJ22: Rate | CK22: Investigation | CL22: Qualification | CM22: Attachment | CN22: Remark | CO22: Rate | CP22: Investigation | CQ22: Qualification | CR22: Attachment | CS22: Remark | CU22: Investigation | CV22: Qualification | CW22: Attachment | CX22: Remark | CY22: Rate | CZ22: Investigation | DA22: Qualification | DB22: Attachment | DC22: Remark | DD22: Rate | DE22: Investigation | DF22: Qualification | DG22: Attachment | DH22: Remark | DI22: Rate | DJ22: Investigation | DK22: Qualification | DL22: Attachment | DM22: Remark | DN22: Rate | DO22: Investigation | DP22: Qualification | DQ22: Attachment | DR22: Remark | DS22: Rate | DT22: Investigation | DU22: Qualification | DV22: Attachment | DW22: Remark | DX22: Rate | DY22: Investigation | DZ22: Qualification | EA22: Attachment | EB22: Remark | EC22: Rate | ED22: Investigation | EE22: Qualification | EF22: Attachment | EG22: Remark | EH22: Rate | EI22: Investigation | EJ22: Qualification | EK22: Attachment | EL22: Remark | EM22: Rate | EN22: Investigation | EO22: Qualification | EP22: Attachment | EQ22: Remark | ER22: Rate | ES22: Investigation | ET22: Qualification | EU22: Attachment | EV22: Remark | EW22: Rate | EX22: Investigation | EY22: Qualification | EZ22: Attachment | FA22: Remark | FB22: Rate | FC22: Investigation | FD22: Qualification | FE22: Attachment | FF22: Remark | FH22: Investigation | FI22: Qualification | FJ22: Attachment | FK22: Remark | FL22: Rate | FM22: Investigation | FN22: Qualification | FO22: Attachment | FP22: Remark | FQ22: Rate | FR22: Investigation | FS22: Qualification | FT22: Attachment | FU22: Remark | FV22: Rate | FW22: Investigation | FX22: Qualification | FY22: Attachment | FZ22: Remark | GA22: Rate | GB22: Investigation | GC22: Qualification | GD22: Attachment | GE22: Remark | GF22: Rate | GG22: Investigation | GH22: Qualification | GI22: Attachment | GJ22: Remark | GK22: Rate | GL22: Investigation | GM22: Qualification | GN22: Attachment | GO22: Remark | GP22: Rate | GQ22: Investigation | GR22: Qualification | GS22: Attachment | GT22: Remark | GU22: Rate | GV22: Investigation | GW22: Qualification | GX22: Attachment | GY22: Remark | GZ22: Rate | HA22: Investigation | HB22: Qualification | HC22: Attachment | HD22: Remark | HE22: Rate | HF22: Investigation | HG22: Qualification | HH22: Attachment | HI22: Remark | HJ22: Rate | HK22: Investigation | HL22: Qualification | HM22: Attachment | HN22: Remark | HO22: Rate | HP22: Investigation | HQ22: Qualification | HR22: Attachment | HS22: Remark | HU22: Investigation | HV22: Qualification | HW22: Attachment | HX22: Remark | HY22: Rate | HZ22: Investigation | IA22: Qualification | IB22: Attachment | IC22: Remark | ID22: Rate | IE22: Investigation | IF22: Qualification | IG22: Attachment | IH22: Remark | II22: Rate | IJ22: Investigation | IK22: Qualification | IL22: Attachment | IM22: Remark | IN22: Rate | IO22: Investigation | IP22: Qualification | IQ22: Attachment | IR22: Remark | IS22: Rate | IT22: Investigation | IU22: Qualification | IV22: Attachment | IW22: Remark | IX22: Rate | IY22: Investigation | IZ22: Qualification | JA22: Attachment | JB22: Remark | JC22: Rate | JD22: Investigation | JE22: Qualification | JF22: Attachment | JG22: Remark | JH22: Rate | JI22: Investigation | JJ22: Qualification | JK22: Attachment | JL22: Remark | JM22: Rate | JN22: Investigation | JO22: Qualification | JP22: Attachment | JQ22: Remark | JR22: Rate | JS22: Investigation | JT22: Qualification | JU22: Attachment | JV22: Remark
A23: 16 | B23: Natural ventilation: Openings on opposing walls of room | C23: 2 | H23: 2 | M23: 2 | R23: 2 | W23: 2 | AB23: 2 | AG23: 2
A24: 17 | B24: Natural ventilation: Areas of openings (window/door) of at least 10% of area of room (length*width of the floor) on opposing sides of room (total areas of windows and doors ≥20% total area of the floor) | C24: 2 | H24: 2 | M24: 2 | R24: 2 | W24: 2 | AB24: 2 | AG24: 2
A25: 18 | B25: Natural ventilation: Signage is in place to keep doors and windows open | C25: 0 | H25: 0 | M25: 0 | R25: 0 | W25: 2 | AB25: 2 | AG25: 2
A26: 19 | B26: Natural ventilation: All appropriate windows/doors are open on observation | C26: 1 | H26: 1 | M26: 2 | R26: 2 | W26: 2 | AB26: 2 | AG26: 2
A27: 20 | B27: Natural ventilation and mechanical ventilation: No chemical or human odors relative to the outdoors | C27: 2 | H27: 2 | M27: 2 | R27: 2 | W27: 2 | AB27: 2 | AG27: 2
A28: 21 | B28: Mechanical and natural ventilation: Visualization of airflow patterns with smoke from supply and exhaust grilles/openings (use smoke tube, incense etc. for smoke) | C28: 1 | H28: 1 | M28: 2 | R28: 2 | W28: 2 | AB28: 2 | AG28: 2
A29: 22 | B29: Mechanical ventilation: Regular maintenance for directional and extractor fans is conducted | C29: 1 | H29: 1 | M29: 1 | R29: 1 | W29: 1 | AB29: 2 | AG29: 2
A30: 23 | B30: Occupancy of wards does not exceed one person per 6 square meters | C30: 2 | H30: 2 | M30: 2 | R30: 2 | W30: 2 | AB30: 2 | AG30: 2
A31: 24 | B31: If beds are present, there is at least 1.1 meters between two beds, for prevention of droplet transmission | C31: 2 | H31: 2 | M31: 2 | R31: 2 | W31: 2 | AB31: 2 | AG31: 2
A32: 25 | B32: Patients are not crowded in waiting areas, hallways or wards | C32: 2 | H32: 2 | M32: 2 | R32: 2 | W32: 2 | AB32: 2 | AG32: 2
A33: 26 | B33: Traditional UVGI is being used properly (based on China standards) | C33: 2 | H33: 2 | M33: 2 | R33: 2 | W33: 2 | AB33: 2 | AG33: 2
A34: 27 | B34: Upper-room UVGI is being used properly (based on China standards) | C34: NA | H34: NA | M34: NA | R34: NA | W34: NA | AB34: NA | AG34: NA
B35: The implementation of environmental controls indicators | C35: =SUM(C23:C34)/(2*(COUNTIF(C23:C34,"<>NA"))) -> 0.7727272727 | H35: =SUM(H23:H34)/(2*(COUNTIF(H23:H34,"<>NA"))) -> 0.7727272727 | M35: =SUM(M23:M34)/(2*(COUNTIF(M23:M34,"<>NA"))) -> 0.8636363636 | R35: =SUM(R23:R34)/(2*(COUNTIF(R23:R34,"<>NA"))) -> 0.8636363636 | W35: =SUM(W23:W34)/(2*(COUNTIF(W23:W34,"<>NA"))) -> 0.9545454545 | AB35: =SUM(AB23:AB34)/(2*(COUNTIF(AB23:AB34,"<>NA"))) -> 1 | AG35: =SUM(AG23:AG34)/(2*(COUNTIF(AG23:AG34,"<>NA"))) -> 1 | AL35: =SUM(AL23:AL34)/(2*(COUNTIF(AL23:AL34,"<>NA"))) -> 0 | AQ35: =SUM(AQ23:AQ34)/(2*(COUNTIF(AQ23:AQ34,"<>NA"))) -> 0 | AV35: =SUM(AV23:AV34)/(2*(COUNTIF(AV23:AV34,"<>NA"))) -> 0 | BA35: =SUM(BA23:BA34)/(2*(COUNTIF(BA23:BA34,"<>NA"))) -> 0 | BF35: =SUM(BF23:BF34)/(2*(COUNTIF(BF23:BF34,"<>NA"))) -> 0 | BK35: =SUM(BK23:BK34)/(2*(COUNTIF(BK23:BK34,"<>NA"))) -> 0 | BP35: =SUM(BP23:BP34)/(2*(COUNTIF(BP23:BP34,"<>NA"))) -> 0 | BU35: =SUM(BU23:BU34)/(2*(COUNTIF(BU23:BU34,"<>NA"))) -> 0 | BZ35: =SUM(BZ23:BZ34)/(2*(COUNTIF(BZ23:BZ34,"<>NA"))) -> 0 | CE35: =SUM(CE23:CE34)/(2*(COUNTIF(CE23:CE34,"<>NA"))) -> 0 | CJ35: =SUM(CJ23:CJ34)/(2*(COUNTIF(CJ23:CJ34,"<>NA"))) -> 0 | CO35: =SUM(CO23:CO34)/(2*(COUNTIF(CO23:CO34,"<>NA"))) -> 0 | CT35: =SUM(CT23:CT34)/(2*(COUNTIF(CT23:CT34,"<>NA"))) -> 0 | CY35: =SUM(CY23:CY34)/(2*(COUNTIF(CY23:CY34,"<>NA"))) -> 0 | DD35: =SUM(DD23:DD34)/(2*(COUNTIF(DD23:DD34,"<>NA"))) -> 0 | DI35: =SUM(DI23:DI34)/(2*(COUNTIF(DI23:DI34,"<>NA"))) -> 0 | DN35: =SUM(DN23:DN34)/(2*(COUNTIF(DN23:DN34,"<>NA"))) -> 0 | DS35: =SUM(DS23:DS34)/(2*(COUNTIF(DS23:DS34,"<>NA"))) -> 0 | DX35: =SUM(DX23:DX34)/(2*(COUNTIF(DX23:DX34,"<>NA"))) -> 0 | EC35: =SUM(EC23:EC34)/(2*(COUNTIF(EC23:EC34,"<>NA"))) -> 0 | EH35: =SUM(EH23:EH34)/(2*(COUNTIF(EH23:EH34,"<>NA"))) -> 0 | EM35: =SUM(EM23:EM34)/(2*(COUNTIF(EM23:EM34,"<>NA"))) -> 0 | ER35: =SUM(ER23:ER34)/(2*(COUNTIF(ER23:ER34,"<>NA"))) -> 0 | EW35: =SUM(EW23:EW34)/(2*(COUNTIF(EW23:EW34,"<>NA"))) -> 0 | FB35: =SUM(FB23:FB34)/(2*(COUNTIF(FB23:FB34,"<>NA"))) -> 0 | FG35: =SUM(FG23:FG34)/(2*(COUNTIF(FG23:FG34,"<>NA"))) -> 0 | FL35: =SUM(FL23:FL34)/(2*(COUNTIF(FL23:FL34,"<>NA"))) -> 0 | FQ35: =SUM(FQ23:FQ34)/(2*(COUNTIF(FQ23:FQ34,"<>NA"))) -> 0 | FV35: =SUM(FV23:FV34)/(2*(COUNTIF(FV23:FV34,"<>NA"))) -> 0 | GA35: =SUM(GA23:GA34)/(2*(COUNTIF(GA23:GA34,"<>NA"))) -> 0 | GF35: =SUM(GF23:GF34)/(2*(COUNTIF(GF23:GF34,"<>NA"))) -> 0 | GK35: =SUM(GK23:GK34)/(2*(COUNTIF(GK23:GK34,"<>NA"))) -> 0 | GP35: =SUM(GP23:GP34)/(2*(COUNTIF(GP23:GP34,"<>NA"))) -> 0 | GU35: =SUM(GU23:GU34)/(2*(COUNTIF(GU23:GU34,"<>NA"))) -> 0 | GZ35: =SUM(GZ23:GZ34)/(2*(COUNTIF(GZ23:GZ34,"<>NA"))) -> 0 | HE35: =SUM(HE23:HE34)/(2*(COUNTIF(HE23:HE34,"<>NA"))) -> 0 | HJ35: =SUM(HJ23:HJ34)/(2*(COUNTIF(HJ23:HJ34,"<>NA"))) -> 0 | HO35: =SUM(HO23:HO34)/(2*(COUNTIF(HO23:HO34,"<>NA"))) -> 0 | HT35: =SUM(HT23:HT34)/(2*(COUNTIF(HT23:HT34,"<>NA"))) -> 0 | HY35: =SUM(HY23:HY34)/(2*(COUNTIF(HY23:HY34,"<>NA"))) -> 0 | ID35: =SUM(ID23:ID34)/(2*(COUNTIF(ID23:ID34,"<>NA"))) -> 0 | II35: =SUM(II23:II34)/(2*(COUNTIF(II23:II34,"<>NA"))) -> 0 | IN35: =SUM(IN23:IN34)/(2*(COUNTIF(IN23:IN34,"<>NA"))) -> 0 | IS35: =SUM(IS23:IS34)/(2*(COUNTIF(IS23:IS34,"<>NA"))) -> 0 | IX35: =SUM(IX23:IX34)/(2*(COUNTIF(IX23:IX34,"<>NA"))) -> 0 | JC35: =SUM(JC23:JC34)/(2*(COUNTIF(JC23:JC34,"<>NA"))) -> 0 | JH35: =SUM(JH23:JH34)/(2*(COUNTIF(JH23:JH34,"<>NA"))) -> 0 | JM35: =SUM(JM23:JM34)/(2*(COUNTIF(JM23:JM34,"<>NA"))) -> 0 | JR35: =SUM(JR23:JR34)/(2*(COUNTIF(JR23:JR34,"<>NA"))) -> 0
B36: Personal protective equipment indicators | C36: Rate | D36: Investigation | E36: Qualification | F36: Attachment | G36: Remark | H36: Rate | I36: Investigation | J36: Qualification | K36: Attachment | L36: Remark | M36: Rate | N36: Investigation | O36: Qualification | P36: Attachment | Q36: Remark | R36: Rate | S36: Investigation | T36: Qualification | U36: Attachment | V36: Remark | W36: Rate | X36: Investigation | Y36: Qualification | Z36: Attachment | AA36: Remark | AB36: Rate | AC36: Investigation | AD36: Qualification | AE36: Attachment | AF36: Remark | AH36: Investigation | AI36: Qualification | AJ36: Attachment | AK36: Remark | AL36: Rate | AM36: Investigation | AN36: Qualification | AO36: Attachment | AP36: Remark | AQ36: Rate | AR36: Investigation | AS36: Qualification | AT36: Attachment | AU36: Remark | AV36: Rate | AW36: Investigation | AX36: Qualification | AY36: Attachment | AZ36: Remark | BA36: Rate | BB36: Investigation | BC36: Qualification | BD36: Attachment | BE36: Remark | BF36: Rate | BG36: Investigation | BH36: Qualification | BI36: Attachment | BJ36: Remark | BK36: Rate | BL36: Investigation | BM36: Qualification | BN36: Attachment | BO36: Remark | BP36: Rate | BQ36: Investigation | BR36: Qualification | BS36: Attachment | BT36: Remark | BU36: Rate | BV36: Investigation | BW36: Qualification | BX36: Attachment | BY36: Remark | BZ36: Rate | CA36: Investigation | CB36: Qualification | CC36: Attachment | CD36: Remark | CE36: Rate | CF36: Investigation | CG36: Qualification | CH36: Attachment | CI36: Remark | CJ36: Rate | CK36: Investigation | CL36: Qualification | CM36: Attachment | CN36: Remark | CO36: Rate | CP36: Investigation | CQ36: Qualification | CR36: Attachment | CS36: Remark | CU36: Investigation | CV36: Qualification | CW36: Attachment | CX36: Remark | CY36: Rate | CZ36: Investigation | DA36: Qualification | DB36: Attachment | DC36: Remark | DD36: Rate | DE36: Investigation | DF36: Qualification | DG36: Attachment | DH36: Remark | DI36: Rate | DJ36: Investigation | DK36: Qualification | DL36: Attachment | DM36: Remark | DN36: Rate | DO36: Investigation | DP36: Qualification | DQ36: Attachment | DR36: Remark | DS36: Rate | DT36: Investigation | DU36: Qualification | DV36: Attachment | DW36: Remark | DX36: Rate | DY36: Investigation | DZ36: Qualification | EA36: Attachment | EB36: Remark | EC36: Rate | ED36: Investigation | EE36: Qualification | EF36: Attachment | EG36: Remark | EH36: Rate | EI36: Investigation | EJ36: Qualification | EK36: Attachment | EL36: Remark | EM36: Rate | EN36: Investigation | EO36: Qualification | EP36: Attachment | EQ36: Remark | ER36: Rate | ES36: Investigation | ET36: Qualification | EU36: Attachment | EV36: Remark | EW36: Rate | EX36: Investigation | EY36: Qualification | EZ36: Attachment | FA36: Remark | FB36: Rate | FC36: Investigation | FD36: Qualification | FE36: Attachment | FF36: Remark | FH36: Investigation | FI36: Qualification | FJ36: Attachment | FK36: Remark | FL36: Rate | FM36: Investigation | FN36: Qualification | FO36: Attachment | FP36: Remark | FQ36: Rate | FR36: Investigation | FS36: Qualification | FT36: Attachment | FU36: Remark | FV36: Rate | FW36: Investigation | FX36: Qualification | FY36: Attachment | FZ36: Remark | GA36: Rate | GB36: Investigation | GC36: Qualification | GD36: Attachment | GE36: Remark | GF36: Rate | GG36: Investigation | GH36: Qualification | GI36: Attachment | GJ36: Remark | GK36: Rate | GL36: Investigation | GM36: Qualification | GN36: Attachment | GO36: Remark | GP36: Rate | GQ36: Investigation | GR36: Qualification | GS36: Attachment | GT36: Remark | GU36: Rate | GV36: Investigation | GW36: Qualification | GX36: Attachment | GY36: Remark | GZ36: Rate | HA36: Investigation | HB36: Qualification | HC36: Attachment | HD36: Remark | HE36: Rate | HF36: Investigation | HG36: Qualification | HH36: Attachment | HI36: Remark | HJ36: Rate | HK36: Investigation | HL36: Qualification | HM36: Attachment | HN36: Remark | HO36: Rate | HP36: Investigation | HQ36: Qualification | HR36: Attachment | HS36: Remark | HU36: Investigation | HV36: Qualification | HW36: Attachment | HX36: Remark | HY36: Rate | HZ36: Investigation | IA36: Qualification | IB36: Attachment | IC36: Remark | ID36: Rate | IE36: Investigation | IF36: Qualification | IG36: Attachment | IH36: Remark | II36: Rate | IJ36: Investigation | IK36: Qualification | IL36: Attachment | IM36: Remark | IN36: Rate | IO36: Investigation | IP36: Qualification | IQ36: Attachment | IR36: Remark | IS36: Rate | IT36: Investigation | IU36: Qualification | IV36: Attachment | IW36: Remark | IX36: Rate | IY36: Investigation | IZ36: Qualification | JA36: Attachment | JB36: Remark | JC36: Rate | JD36: Investigation | JE36: Qualification | JF36: Attachment | JG36: Remark | JH36: Rate | JI36: Investigation | JJ36: Qualification | JK36: Attachment | JL36: Remark | JM36: Rate | JN36: Investigation | JO36: Qualification | JP36: Attachment | JQ36: Remark | JR36: Rate | JS36: Investigation | JT36: Qualification | JU36: Attachment | JV36: Remark
A37: 28 | B37: Surgical masks are available for patients with cough or other TB symptoms | C37: 1 | H37: 1 | M37: 1 | R37: 1 | W37: 1 | AB37: 2 | AG37: 2
A38: 29 | B38: Respirators that meet the national or international standard are readily available to all staff who have contact with patients with TB or suspected of having TB in this ward | C38: 2 | H38: 2 | M38: 2 | R38: 2 | W38: 2 | AB38: 2 | AG38: 2
A39: 30 | B39: Staff were trained on proper respirator use in the past year | C39: 2 | H39: 2 | M39: 2 | R39: 2 | W39: 2 | AB39: 2 | AG39: 2
A40: 31 | B40: Staff can demonstrate proper respirator use (i.e., putting on, removing, seal check, and storage) | C40: 2 | H40: 2 | M40: 2 | R40: 2 | W40: 2 | AB40: 2 | AG40: 2
A41: 32 | B41: There have been no stock-outs of surgical masks in the past 3 months | C41: 2 | H41: 2 | M41: 2 | R41: 2 | W41: 2 | AB41: 2 | AG41: 2
A42: 33 | B42: There have been no stock-outs of respirators in the past 3 months | C42: 2 | H42: 2 | M42: 2 | R42: 2 | W42: 2 | AB42: 2 | AG42: 2
B43: The implementation of personal protective equipment indicators | C43: =SUM(C37:C42)/(2*(COUNTIF(C37:C42,"<>NA"))) -> 0.9166666667 | H43: =SUM(H37:H42)/(2*(COUNTIF(H37:H42,"<>NA"))) -> 0.9166666667 | M43: =SUM(M37:M42)/(2*(COUNTIF(M37:M42,"<>NA"))) -> 0.9166666667 | R43: =SUM(R37:R42)/(2*(COUNTIF(R37:R42,"<>NA"))) -> 0.9166666667 | W43: =SUM(W37:W42)/(2*(COUNTIF(W37:W42,"<>NA"))) -> 0.9166666667 | AB43: =SUM(AB37:AB42)/(2*(COUNTIF(AB37:AB42,"<>NA"))) -> 1 | AG43: =SUM(AG37:AG42)/(2*(COUNTIF(AG37:AG42,"<>NA"))) -> 1 | AL43: =SUM(AL37:AL42)/(2*(COUNTIF(AL37:AL42,"<>NA"))) -> 0 | AQ43: =SUM(AQ37:AQ42)/(2*(COUNTIF(AQ37:AQ42,"<>NA"))) -> 0 | AV43: =SUM(AV37:AV42)/(2*(COUNTIF(AV37:AV42,"<>NA"))) -> 0 | BA43: =SUM(BA37:BA42)/(2*(COUNTIF(BA37:BA42,"<>NA"))) -> 0 | BF43: =SUM(BF37:BF42)/(2*(COUNTIF(BF37:BF42,"<>NA"))) -> 0 | BK43: =SUM(BK37:BK42)/(2*(COUNTIF(BK37:BK42,"<>NA"))) -> 0 | BP43: =SUM(BP37:BP42)/(2*(COUNTIF(BP37:BP42,"<>NA"))) -> 0 | BU43: =SUM(BU37:BU42)/(2*(COUNTIF(BU37:BU42,"<>NA"))) -> 0 | BZ43: =SUM(BZ37:BZ42)/(2*(COUNTIF(BZ37:BZ42,"<>NA"))) -> 0 | CE43: =SUM(CE37:CE42)/(2*(COUNTIF(CE37:CE42,"<>NA"))) -> 0 | CJ43: =SUM(CJ37:CJ42)/(2*(COUNTIF(CJ37:CJ42,"<>NA"))) -> 0 | CO43: =SUM(CO37:CO42)/(2*(COUNTIF(CO37:CO42,"<>NA"))) -> 0 | CT43: =SUM(CT37:CT42)/(2*(COUNTIF(CT37:CT42,"<>NA"))) -> 0 | CY43: =SUM(CY37:CY42)/(2*(COUNTIF(CY37:CY42,"<>NA"))) -> 0 | DD43: =SUM(DD37:DD42)/(2*(COUNTIF(DD37:DD42,"<>NA"))) -> 0 | DI43: =SUM(DI37:DI42)/(2*(COUNTIF(DI37:DI42,"<>NA"))) -> 0 | DN43: =SUM(DN37:DN42)/(2*(COUNTIF(DN37:DN42,"<>NA"))) -> 0 | DS43: =SUM(DS37:DS42)/(2*(COUNTIF(DS37:DS42,"<>NA"))) -> 0 | DX43: =SUM(DX37:DX42)/(2*(COUNTIF(DX37:DX42,"<>NA"))) -> 0 | EC43: =SUM(EC37:EC42)/(2*(COUNTIF(EC37:EC42,"<>NA"))) -> 0 | EH43: =SUM(EH37:EH42)/(2*(COUNTIF(EH37:EH42,"<>NA"))) -> 0 | EM43: =SUM(EM37:EM42)/(2*(COUNTIF(EM37:EM42,"<>NA"))) -> 0 | ER43: =SUM(ER37:ER42)/(2*(COUNTIF(ER37:ER42,"<>NA"))) -> 0 | EW43: =SUM(EW37:EW42)/(2*(COUNTIF(EW37:EW42,"<>NA"))) -> 0 | FB43: =SUM(FB37:FB42)/(2*(COUNTIF(FB37:FB42,"<>NA"))) -> 0 | FG43: =SUM(FG37:FG42)/(2*(COUNTIF(FG37:FG42,"<>NA"))) -> 0 | FL43: =SUM(FL37:FL42)/(2*(COUNTIF(FL37:FL42,"<>NA"))) -> 0 | FQ43: =SUM(FQ37:FQ42)/(2*(COUNTIF(FQ37:FQ42,"<>NA"))) -> 0 | FV43: =SUM(FV37:FV42)/(2*(COUNTIF(FV37:FV42,"<>NA"))) -> 0 | GA43: =SUM(GA37:GA42)/(2*(COUNTIF(GA37:GA42,"<>NA"))) -> 0 | GF43: =SUM(GF37:GF42)/(2*(COUNTIF(GF37:GF42,"<>NA"))) -> 0 | GK43: =SUM(GK37:GK42)/(2*(COUNTIF(GK37:GK42,"<>NA"))) -> 0 | GP43: =SUM(GP37:GP42)/(2*(COUNTIF(GP37:GP42,"<>NA"))) -> 0 | GU43: =SUM(GU37:GU42)/(2*(COUNTIF(GU37:GU42,"<>NA"))) -> 0 | GZ43: =SUM(GZ37:GZ42)/(2*(COUNTIF(GZ37:GZ42,"<>NA"))) -> 0 | HE43: =SUM(HE37:HE42)/(2*(COUNTIF(HE37:HE42,"<>NA"))) -> 0 | HJ43: =SUM(HJ37:HJ42)/(2*(COUNTIF(HJ37:HJ42,"<>NA"))) -> 0 | HO43: =SUM(HO37:HO42)/(2*(COUNTIF(HO37:HO42,"<>NA"))) -> 0 | HT43: =SUM(HT37:HT42)/(2*(COUNTIF(HT37:HT42,"<>NA"))) -> 0 | HY43: =SUM(HY37:HY42)/(2*(COUNTIF(HY37:HY42,"<>NA"))) -> 0 | ID43: =SUM(ID37:ID42)/(2*(COUNTIF(ID37:ID42,"<>NA"))) -> 0 | II43: =SUM(II37:II42)/(2*(COUNTIF(II37:II42,"<>NA"))) -> 0 | IN43: =SUM(IN37:IN42)/(2*(COUNTIF(IN37:IN42,"<>NA"))) -> 0 | IS43: =SUM(IS37:IS42)/(2*(COUNTIF(IS37:IS42,"<>NA"))) -> 0 | IX43: =SUM(IX37:IX42)/(2*(COUNTIF(IX37:IX42,"<>NA"))) -> 0 | JC43: =SUM(JC37:JC42)/(2*(COUNTIF(JC37:JC42,"<>NA"))) -> 0 | JH43: =SUM(JH37:JH42)/(2*(COUNTIF(JH37:JH42,"<>NA"))) -> 0 | JM43: =SUM(JM37:JM42)/(2*(COUNTIF(JM37:JM42,"<>NA"))) -> 0 | JR43: =SUM(JR37:JR42)/(2*(COUNTIF(JR37:JR42,"<>NA"))) -> 0
B44: The overall implementation of all indicators | C44: =AVERAGE(C21,C35,C43) -> 0.716977467 | H44: =AVERAGE(H21,H35,H43) -> 0.7810800311 | M44: =AVERAGE(M21,M35,M43) -> 0.8113830614 | R44: =AVERAGE(R21,R35,R43) -> 0.8113830614 | W44: =AVERAGE(W21,W35,W43) -> 0.9057886558 | AB44: =AVERAGE(AB21,AB35,AB43) -> 0.9871794872 | AG44: =AVERAGE(AG21,AG35,AG43) -> 0.9871794872 | AL44: =AVERAGE(AL21,AL35,AL43) -> 0 | AQ44: =AVERAGE(AQ21,AQ35,AQ43) -> 0 | AV44: =AVERAGE(AV21,AV35,AV43) -> 0 | BA44: =AVERAGE(BA21,BA35,BA43) -> 0 | BF44: =AVERAGE(BF21,BF35,BF43) -> 0 | BK44: =AVERAGE(BK21,BK35,BK43) -> 0 | BP44: =AVERAGE(BP21,BP35,BP43) -> 0 | BU44: =AVERAGE(BU21,BU35,BU43) -> 0 | BZ44: =AVERAGE(BZ21,BZ35,BZ43) -> 0 | CE44: =AVERAGE(CE21,CE35,CE43) -> 0 | CJ44: =AVERAGE(CJ21,CJ35,CJ43) -> 0 | CO44: =AVERAGE(CO21,CO35,CO43) -> 0 | CT44: =AVERAGE(CT21,CT35,CT43) -> 0 | CY44: =AVERAGE(CY21,CY35,CY43) -> 0 | DD44: =AVERAGE(DD21,DD35,DD43) -> 0 | DI44: =AVERAGE(DI21,DI35,DI43) -> 0 | DN44: =AVERAGE(DN21,DN35,DN43) -> 0 | DS44: =AVERAGE(DS21,DS35,DS43) -> 0 | DX44: =AVERAGE(DX21,DX35,DX43) -> 0 | EC44: =AVERAGE(EC21,EC35,EC43) -> 0 | EH44: =AVERAGE(EH21,EH35,EH43) -> 0 | EM44: =AVERAGE(EM21,EM35,EM43) -> 0 | ER44: =AVERAGE(ER21,ER35,ER43) -> 0 | EW44: =AVERAGE(EW21,EW35,EW43) -> 0 | FB44: =AVERAGE(FB21,FB35,FB43) -> 0 | FG44: =AVERAGE(FG21,FG35,FG43) -> 0 | FL44: =AVERAGE(FL21,FL35,FL43) -> 0 | FQ44: =AVERAGE(FQ21,FQ35,FQ43) -> 0 | FV44: =AVERAGE(FV21,FV35,FV43) -> 0 | GA44: =AVERAGE(GA21,GA35,GA43) -> 0 | GF44: =AVERAGE(GF21,GF35,GF43) -> 0 | GK44: =AVERAGE(GK21,GK35,GK43) -> 0 | GP44: =AVERAGE(GP21,GP35,GP43) -> 0 | GU44: =AVERAGE(GU21,GU35,GU43) -> 0 | GZ44: =AVERAGE(GZ21,GZ35,GZ43) -> 0 | HE44: =AVERAGE(HE21,HE35,HE43) -> 0 | HJ44: =AVERAGE(HJ21,HJ35,HJ43) -> 0 | HO44: =AVERAGE(HO21,HO35,HO43) -> 0 | HT44: =AVERAGE(HT21,HT35,HT43) -> 0 | HY44: =AVERAGE(HY21,HY35,HY43) -> 0 | ID44: =AVERAGE(ID21,ID35,ID43) -> 0 | II44: =AVERAGE(II21,II35,II43) -> 0 | IN44: =AVERAGE(IN21,IN35,IN43) -> 0 | IS44: =AVERAGE(IS21,IS35,IS43) -> 0 | IX44: =AVERAGE(IX21,IX35,IX43) -> 0 | JC44: =AVERAGE(JC21,JC35,JC43) -> 0 | JH44: =AVERAGE(JH21,JH35,JH43) -> 0 | JM44: =AVERAGE(JM21,JM35,JM43) -> 0 | JR44: =AVERAGE(JR21,JR35,JR43) -> 0
B45: Assessor | C45: Assessor Name: | H45: Assessor Name: | M45: Assessor Name: | R45: Assessor Name: | W45: Assessor Name: | AB45: Assessor Name: | AG45: Assessor Name: | AL45: Assessor Name: | AQ45: Assessor Name: | AV45: Assessor Name: | BA45: Assessor Name: | BF45: Assessor Name: | BK45: Assessor Name: | BP45: Assessor Name: | BU45: Assessor Name: | BZ45: Assessor Name: | CE45: Assessor Name: | CJ45: Assessor Name: | CO45: Assessor Name: | CT45: Assessor Name: | CY45: Assessor Name: | DD45: Assessor Name: | DI45: Assessor Name: | DN45: Assessor Name: | DS45: Assessor Name: | DX45: Assessor Name: | EC45: Assessor Name: | EH45: Assessor Name: | EM45: Assessor Name: | ER45: Assessor Name: | EW45: Assessor Name: | FB45: Assessor Name: | FG45: Assessor Name: | FL45: Assessor Name: | FQ45: Assessor Name: | FV45: Assessor Name: | GA45: Assessor Name: | GF45: Assessor Name: | GK45: Assessor Name: | GP45: Assessor Name: | GU45: Assessor Name: | GZ45: Assessor Name: | HE45: Assessor Name: | HJ45: Assessor Name: | HO45: Assessor Name: | HT45: Assessor Name: | HY45: Assessor Name: | ID45: Assessor Name: | II45: Assessor Name: | IN45: Assessor Name: | IS45: Assessor Name: | IX45: Assessor Name: | JC45: Assessor Name: | JH45: Assessor Name: | JM45: Assessor Name: | JR45: Assessor Name:

Sheet setting (hidden)
A1: # | B1: Ch | C1: En
A2: 1 | B2: 调查数
A3: 2 | B3: 合格数
A4: 3 | B4: 文件
A5: 4 | B5: 备注

Sheet Laboratory
B1: Date viewing mode
B2: Laboratory | C2: 1. Laboratory 1 | M2: 1. Laboratory 1
B3: Assessment phase | C3: Basic | H3: 3 months | M3: 6 months | R3: 9 months | W3: 12 months | AB3: 15 months | AG3: 18 months | AL3: Basic | AQ3: 3 months | AV3: 6 months | BA3: 9 months | BF3: 12 months | BK3: 15 months | BP3: 18 months | BU3: Basic | BZ3: 3 months | CE3: 6 months | CJ3: 9 months | CO3: 12 months | CT3: 15 months | CY3: 18 months | DD3: Basic | DI3: 3 months | DN3: 6 months | DS3: 9 months | DX3: 12 months | EC3: 15 months | EH3: 18 months | EM3: Basic | ER3: 3 months | EW3: 6 months | FB3: 9 months | FG3: 12 months | FL3: 15 months | FQ3: 18 months | FV3: Basic | GA3: 3 months | GF3: 6 months | GK3: 9 months | GP3: 12 months | GU3: 15 months | GZ3: 18 months | HE3: Basic | HJ3: 3 months | HO3: 6 months | HT3: 9 months | HY3: 12 months | ID3: 15 months | II3: 18 months | IN3: Basic | IS3: 3 months | IX3: 6 months | JC3: 9 months | JH3: 12 months | JM3: 15 months | JR3: 18 months
B4: Date of assessment | C4: Date | H4: Date | M4: Date | R4: Date | W4: Date | AB4: Date | AG4: Date | AL4: Date | AQ4: Date | AV4: Date | BA4: Date | BF4: Date | BK4: Date | BP4: Date | BU4: Date | BZ4: Date | CE4: Date | CJ4: Date | CO4: Date | CT4: Date | CY4: Date | DD4: Date | DI4: Date | DN4: Date | DS4: Date | DX4: Date | EC4: Date | EH4: Date | EM4: Date | ER4: Date | EW4: Date | FB4: Date | FG4: Date | FL4: Date | FQ4: Date | FV4: Date | GA4: Date | GF4: Date | GK4: Date | GP4: Date | GU4: Date | GZ4: Date | HE4: Date | HJ4: Date | HO4: Date | HT4: Date | HY4: Date | ID4: Date | II4: Date | IN4: Date | IS4: Date | IX4: Date | JC4: Date | JH4: Date | JM4: Date | JR4: Date
B5: Administrative controls indicators | C5: Rate | D5: Investigation | E5: Qualification | F5: Attachment | G5: Remark | H5: Rate | I5: Investigation | J5: Qualification | K5: Attachment | L5: Remark | M5: Rate | N5: Investigation | O5: Qualification | P5: Attachment | Q5: Remark | R5: Rate | S5: Investigation | T5: Qualification | U5: Attachment | V5: Remark | W5: Rate | X5: Investigation | Y5: Qualification | Z5: Attachment | AA5: Remark | AB5: Rate | AC5: Investigation | AD5: Qualification | AE5: Attachment | AF5: Remark | AH5: Investigation | AI5: Qualification | AJ5: Attachment | AK5: Remark | AL5: Rate | AM5: Investigation | AN5: Qualification | AO5: Attachment | AP5: Remark | AQ5: Rate | AR5: Investigation | AS5: Qualification | AT5: Attachment | AU5: Remark | AV5: Rate | AW5: Investigation | AX5: Qualification | AY5: Attachment | AZ5: Remark | BA5: Rate | BB5: Investigation | BC5: Qualification | BD5: Attachment | BE5: Remark | BF5: Rate | BG5: Investigation | BH5: Qualification | BI5: Attachment | BJ5: Remark | BK5: Rate | BL5: Investigation | BM5: Qualification | BN5: Attachment | BO5: Remark | BP5: Rate | BQ5: Investigation | BR5: Qualification | BS5: Attachment | BT5: Remark | BU5: Rate | BV5: Investigation | BW5: Qualification | BX5: Attachment | BY5: Remark | BZ5: Rate | CA5: Investigation | CB5: Qualification | CC5: Attachment | CD5: Remark | CE5: Rate | CF5: Investigation | CG5: Qualification | CH5: Attachment | CI5: Remark | CJ5: Rate | CK5: Investigation | CL5: Qualification | CM5: Attachment | CN5: Remark | CO5: Rate | CP5: Investigation | CQ5: Qualification | CR5: Attachment | CS5: Remark | CU5: Investigation | CV5: Qualification | CW5: Attachment | CX5: Remark | CY5: Rate | CZ5: Investigation | DA5: Qualification | DB5: Attachment | DC5: Remark | DD5: Rate | DE5: Investigation | DF5: Qualification | DG5: Attachment | DH5: Remark | DI5: Rate | DJ5: Investigation | DK5: Qualification | DL5: Attachment | DM5: Remark | DN5: Rate | DO5: Investigation | DP5: Qualification | DQ5: Attachment | DR5: Remark | DS5: Rate | DT5: Investigation | DU5: Qualification | DV5: Attachment | DW5: Remark | DX5: Rate | DY5: Investigation | DZ5: Qualification | EA5: Attachment | EB5: Remark | EC5: Rate | ED5: Investigation | EE5: Qualification | EF5: Attachment | EG5: Remark | EH5: Rate | EI5: Investigation | EJ5: Qualification | EK5: Attachment | EL5: Remark | EM5: Rate | EN5: Investigation | EO5: Qualification | EP5: Attachment | EQ5: Remark | ER5: Rate | ES5: Investigation | ET5: Qualification | EU5: Attachment | EV5: Remark | EW5: Rate | EX5: Investigation | EY5: Qualification | EZ5: Attachment | FA5: Remark | FB5: Rate | FC5: Investigation | FD5: Qualification | FE5: Attachment | FF5: Remark | FH5: Investigation | FI5: Qualification | FJ5: Attachment | FK5: Remark | FL5: Rate | FM5: Investigation | FN5: Qualification | FO5: Attachment | FP5: Remark | FQ5: Rate | FR5: Investigation | FS5: Qualification | FT5: Attachment | FU5: Remark | FV5: Rate | FW5: Investigation | FX5: Qualification | FY5: Attachment | FZ5: Remark | GA5: Rate | GB5: Investigation | GC5: Qualification | GD5: Attachment | GE5: Remark | GF5: Rate | GG5: Investigation | GH5: Qualification | GI5: Attachment | GJ5: Remark | GK5: Rate | GL5: Investigation | GM5: Qualification | GN5: Attachment | GO5: Remark | GP5: Rate | GQ5: Investigation | GR5: Qualification | GS5: Attachment | GT5: Remark | GU5: Rate | GV5: Investigation | GW5: Qualification | GX5: Attachment | GY5: Remark | GZ5: Rate | HA5: Investigation | HB5: Qualification | HC5: Attachment | HD5: Remark | HE5: Rate | HF5: Investigation | HG5: Qualification | HH5: Attachment | HI5: Remark | HJ5: Rate | HK5: Investigation | HL5: Qualification | HM5: Attachment | HN5: Remark | HO5: Rate | HP5: Investigation | HQ5: Qualification | HR5: Attachment | HS5: Remark | HU5: Investigation | HV5: Qualification | HW5: Attachment | HX5: Remark | HY5: Rate | HZ5: Investigation | IA5: Qualification | IB5: Attachment | IC5: Remark | ID5: Rate | IE5: Investigation | IF5: Qualification | IG5: Attachment | IH5: Remark | II5: Rate | IJ5: Investigation | IK5: Qualification | IL5: Attachment | IM5: Remark | IN5: Rate | IO5: Investigation | IP5: Qualification | IQ5: Attachment | IR5: Remark | IS5: Rate | IT5: Investigation | IU5: Qualification | IV5: Attachment | IW5: Remark | IX5: Rate | IY5: Investigation | IZ5: Qualification | JA5: Attachment | JB5: Remark | JC5: Rate | JD5: Investigation | JE5: Qualification | JF5: Attachment | JG5: Remark | JH5: Rate | JI5: Investigation | JJ5: Qualification | JK5: Attachment | JL5: Remark | JM5: Rate | JN5: Investigation | JO5: Qualification | JP5: Attachment | JQ5: Remark | JR5: Rate | JS5: Investigation | JT5: Qualification | JU5: Attachment | JV5: Remark
A6: 1 | B6: Tracking mechanism of detecting results turn-around time of sputum specimens | C6: 2 | H6: 2 | M6: 2 | R6: 2 | W6: 2 | AB6: 2 | AG6: 2
A7: 2 | B7: Sputum smear test results can be obtained within 24 hours | C7: 2 | H7: 2 | M7: 2 | R7: 2 | W7: 2 | AB7: 2 | AG7: 2
A8: 3 | B8: Xpert Mtb/rif test results can be obtained within 24 hours | C8: NA | H8: NA | M8: NA | R8: NA | W8: NA | AB8: NA | AG8: NA
A9: 4 | B9: Sputum specimens are delivered to the laboratory by the health care provider rather than the patient | C9: 2 | H9: 2 | M9: 2 | R9: 2 | W9: 2 | AB9: 2 | AG9: 2
A10: 5 | B10: Detection of drug resistance in patients with suspected drug-resistant TB | C10: 2 | H10: 2 | M10: 2 | R10: 2 | W10: 2 | AB10: 2 | AG10: 2
B11: The implementation of administrative controls indicators | C11: =SUM(C6:C10)/(2*(COUNTIF(C6:C10,"<>NA"))) -> 1 | H11: =SUM(H6:H10)/(2*(COUNTIF(H6:H10,"<>NA"))) -> 1 | M11: =SUM(M6:M10)/(2*(COUNTIF(M6:M10,"<>NA"))) -> 1 | R11: =SUM(R6:R10)/(2*(COUNTIF(R6:R10,"<>NA"))) -> 1 | W11: =SUM(W6:W10)/(2*(COUNTIF(W6:W10,"<>NA"))) -> 1 | AB11: =SUM(AB6:AB10)/(2*(COUNTIF(AB6:AB10,"<>NA"))) -> 1 | AG11: =SUM(AG6:AG10)/(2*(COUNTIF(AG6:AG10,"<>NA"))) -> 1 | AL11: =SUM(AL6:AL10)/(2*(COUNTIF(AL6:AL10,"<>NA"))) -> 0 | AQ11: =SUM(AQ6:AQ10)/(2*(COUNTIF(AQ6:AQ10,"<>NA"))) -> 0 | AV11: =SUM(AV6:AV10)/(2*(COUNTIF(AV6:AV10,"<>NA"))) -> 0 | BA11: =SUM(BA6:BA10)/(2*(COUNTIF(BA6:BA10,"<>NA"))) -> 0 | BF11: =SUM(BF6:BF10)/(2*(COUNTIF(BF6:BF10,"<>NA"))) -> 0 | BK11: =SUM(BK6:BK10)/(2*(COUNTIF(BK6:BK10,"<>NA"))) -> 0 | BP11: =SUM(BP6:BP10)/(2*(COUNTIF(BP6:BP10,"<>NA"))) -> 0 | BU11: =SUM(BU6:BU10)/(2*(COUNTIF(BU6:BU10,"<>NA"))) -> 0 | BZ11: =SUM(BZ6:BZ10)/(2*(COUNTIF(BZ6:BZ10,"<>NA"))) -> 0 | CE11: =SUM(CE6:CE10)/(2*(COUNTIF(CE6:CE10,"<>NA"))) -> 0 | CJ11: =SUM(CJ6:CJ10)/(2*(COUNTIF(CJ6:CJ10,"<>NA"))) -> 0 | CO11: =SUM(CO6:CO10)/(2*(COUNTIF(CO6:CO10,"<>NA"))) -> 0 | CT11: =SUM(CT6:CT10)/(2*(COUNTIF(CT6:CT10,"<>NA"))) -> 0 | CY11: =SUM(CY6:CY10)/(2*(COUNTIF(CY6:CY10,"<>NA"))) -> 0 | DD11: =SUM(DD6:DD10)/(2*(COUNTIF(DD6:DD10,"<>NA"))) -> 0 | DI11: =SUM(DI6:DI10)/(2*(COUNTIF(DI6:DI10,"<>NA"))) -> 0 | DN11: =SUM(DN6:DN10)/(2*(COUNTIF(DN6:DN10,"<>NA"))) -> 0 | DS11: =SUM(DS6:DS10)/(2*(COUNTIF(DS6:DS10,"<>NA"))) -> 0 | DX11: =SUM(DX6:DX10)/(2*(COUNTIF(DX6:DX10,"<>NA"))) -> 0 | EC11: =SUM(EC6:EC10)/(2*(COUNTIF(EC6:EC10,"<>NA"))) -> 0 | EH11: =SUM(EH6:EH10)/(2*(COUNTIF(EH6:EH10,"<>NA"))) -> 0 | EM11: =SUM(EM6:EM10)/(2*(COUNTIF(EM6:EM10,"<>NA"))) -> 0 | ER11: =SUM(ER6:ER10)/(2*(COUNTIF(ER6:ER10,"<>NA"))) -> 0 | EW11: =SUM(EW6:EW10)/(2*(COUNTIF(EW6:EW10,"<>NA"))) -> 0 | FB11: =SUM(FB6:FB10)/(2*(COUNTIF(FB6:FB10,"<>NA"))) -> 0 | FG11: =SUM(FG6:FG10)/(2*(COUNTIF(FG6:FG10,"<>NA"))) -> 0 | FL11: =SUM(FL6:FL10)/(2*(COUNTIF(FL6:FL10,"<>NA"))) -> 0 | FQ11: =SUM(FQ6:FQ10)/(2*(COUNTIF(FQ6:FQ10,"<>NA"))) -> 0 | FV11: =SUM(FV6:FV10)/(2*(COUNTIF(FV6:FV10,"<>NA"))) -> 0 | GA11: =SUM(GA6:GA10)/(2*(COUNTIF(GA6:GA10,"<>NA"))) -> 0 | GF11: =SUM(GF6:GF10)/(2*(COUNTIF(GF6:GF10,"<>NA"))) -> 0 | GK11: =SUM(GK6:GK10)/(2*(COUNTIF(GK6:GK10,"<>NA"))) -> 0 | GP11: =SUM(GP6:GP10)/(2*(COUNTIF(GP6:GP10,"<>NA"))) -> 0 | GU11: =SUM(GU6:GU10)/(2*(COUNTIF(GU6:GU10,"<>NA"))) -> 0 | GZ11: =SUM(GZ6:GZ10)/(2*(COUNTIF(GZ6:GZ10,"<>NA"))) -> 0 | HE11: =SUM(HE6:HE10)/(2*(COUNTIF(HE6:HE10,"<>NA"))) -> 0 | HJ11: =SUM(HJ6:HJ10)/(2*(COUNTIF(HJ6:HJ10,"<>NA"))) -> 0 | HO11: =SUM(HO6:HO10)/(2*(COUNTIF(HO6:HO10,"<>NA"))) -> 0 | HT11: =SUM(HT6:HT10)/(2*(COUNTIF(HT6:HT10,"<>NA"))) -> 0 | HY11: =SUM(HY6:HY10)/(2*(COUNTIF(HY6:HY10,"<>NA"))) -> 0 | ID11: =SUM(ID6:ID10)/(2*(COUNTIF(ID6:ID10,"<>NA"))) -> 0 | II11: =SUM(II6:II10)/(2*(COUNTIF(II6:II10,"<>NA"))) -> 0 | IN11: =SUM(IN6:IN10)/(2*(COUNTIF(IN6:IN10,"<>NA"))) -> 0 | IS11: =SUM(IS6:IS10)/(2*(COUNTIF(IS6:IS10,"<>NA"))) -> 0 | IX11: =SUM(IX6:IX10)/(2*(COUNTIF(IX6:IX10,"<>NA"))) -> 0 | JC11: =SUM(JC6:JC10)/(2*(COUNTIF(JC6:JC10,"<>NA"))) -> 0 | JH11: =SUM(JH6:JH10)/(2*(COUNTIF(JH6:JH10,"<>NA"))) -> 0 | JM11: =SUM(JM6:JM10)/(2*(COUNTIF(JM6:JM10,"<>NA"))) -> 0 | JR11: =SUM(JR6:JR10)/(2*(COUNTIF(JR6:JR10,"<>NA"))) -> 0
B12: Environmental controls indicators | C12: Rate | D12: Investigation | E12: Qualification | F12: Attachment | G12: Remark | H12: Rate | I12: Investigation | J12: Qualification | K12: Attachment | L12: Remark | M12: Rate | N12: Investigation | O12: Qualification | P12: Attachment | Q12: Remark | R12: Rate | S12: Investigation | T12: Qualification | U12: Attachment | V12: Remark | W12: Rate | X12: Investigation | Y12: Qualification | Z12: Attachment | AA12: Remark | AB12: Rate | AC12: Investigation | AD12: Qualification | AE12: Attachment | AF12: Remark | AH12: Investigation | AI12: Qualification | AJ12: Attachment | AK12: Remark | AL12: Rate | AM12: Investigation | AN12: Qualification | AO12: Attachment | AP12: Remark | AQ12: Rate | AR12: Investigation | AS12: Qualification | AT12: Attachment | AU12: Remark | AV12: Rate | AW12: Investigation | AX12: Qualification | AY12: Attachment | AZ12: Remark | BA12: Rate | BB12: Investigation | BC12: Qualification | BD12: Attachment | BE12: Remark | BF12: Rate | BG12: Investigation | BH12: Qualification | BI12: Attachment | BJ12: Remark | BK12: Rate | BL12: Investigation | BM12: Qualification | BN12: Attachment | BO12: Remark | BP12: Rate | BQ12: Investigation | BR12: Qualification | BS12: Attachment | BT12: Remark | BU12: Rate | BV12: Investigation | BW12: Qualification | BX12: Attachment | BY12: Remark | BZ12: Rate | CA12: Investigation | CB12: Qualification | CC12: Attachment | CD12: Remark | CE12: Rate | CF12: Investigation | CG12: Qualification | CH12: Attachment | CI12: Remark | CJ12: Rate | CK12: Investigation | CL12: Qualification | CM12: Attachment | CN12: Remark | CO12: Rate | CP12: Investigation | CQ12: Qualification | CR12: Attachment | CS12: Remark | CU12: Investigation | CV12: Qualification | CW12: Attachment | CX12: Remark | CY12: Rate | CZ12: Investigation | DA12: Qualification | DB12: Attachment | DC12: Remark | DD12: Rate | DE12: Investigation | DF12: Qualification | DG12: Attachment | DH12: Remark | DI12: Rate | DJ12: Investigation | DK12: Qualification | DL12: Attachment | DM12: Remark | DN12: Rate | DO12: Investigation | DP12: Qualification | DQ12: Attachment | DR12: Remark | DS12: Rate | DT12: Investigation | DU12: Qualification | DV12: Attachment | DW12: Remark | DX12: Rate | DY12: Investigation | DZ12: Qualification | EA12: Attachment | EB12: Remark | EC12: Rate | ED12: Investigation | EE12: Qualification | EF12: Attachment | EG12: Remark | EH12: Rate | EI12: Investigation | EJ12: Qualification | EK12: Attachment | EL12: Remark | EM12: Rate | EN12: Investigation | EO12: Qualification | EP12: Attachment | EQ12: Remark | ER12: Rate | ES12: Investigation | ET12: Qualification | EU12: Attachment | EV12: Remark | EW12: Rate | EX12: Investigation | EY12: Qualification | EZ12: Attachment | FA12: Remark | FB12: Rate | FC12: Investigation | FD12: Qualification | FE12: Attachment | FF12: Remark | FH12: Investigation | FI12: Qualification | FJ12: Attachment | FK12: Remark | FL12: Rate | FM12: Investigation | FN12: Qualification | FO12: Attachment | FP12: Remark | FQ12: Rate | FR12: Investigation | FS12: Qualification | FT12: Attachment | FU12: Remark | FV12: Rate | FW12: Investigation | FX12: Qualification | FY12: Attachment | FZ12: Remark | GA12: Rate | GB12: Investigation | GC12: Qualification | GD12: Attachment | GE12: Remark | GF12: Rate | GG12: Investigation | GH12: Qualification | GI12: Attachment | GJ12: Remark | GK12: Rate | GL12: Investigation | GM12: Qualification | GN12: Attachment | GO12: Remark | GP12: Rate | GQ12: Investigation | GR12: Qualification | GS12: Attachment | GT12: Remark | GU12: Rate | GV12: Investigation | GW12: Qualification | GX12: Attachment | GY12: Remark | GZ12: Rate | HA12: Investigation | HB12: Qualification | HC12: Attachment | HD12: Remark | HE12: Rate | HF12: Investigation | HG12: Qualification | HH12: Attachment | HI12: Remark | HJ12: Rate | HK12: Investigation | HL12: Qualification | HM12: Attachment | HN12: Remark | HO12: Rate | HP12: Investigation | HQ12: Qualification | HR12: Attachment | HS12: Remark | HU12: Investigation | HV12: Qualification | HW12: Attachment | HX12: Remark | HY12: Rate | HZ12: Investigation | IA12: Qualification | IB12: Attachment | IC12: Remark | ID12: Rate | IE12: Investigation | IF12: Qualification | IG12: Attachment | IH12: Remark | II12: Rate | IJ12: Investigation | IK12: Qualification | IL12: Attachment | IM12: Remark | IN12: Rate | IO12: Investigation | IP12: Qualification | IQ12: Attachment | IR12: Remark | IS12: Rate | IT12: Investigation | IU12: Qualification | IV12: Attachment | IW12: Remark | IX12: Rate | IY12: Investigation | IZ12: Qualification | JA12: Attachment | JB12: Remark | JC12: Rate | JD12: Investigation | JE12: Qualification | JF12: Attachment | JG12: Remark | JH12: Rate | JI12: Investigation | JJ12: Qualification | JK12: Attachment | JL12: Remark | JM12: Rate | JN12: Investigation | JO12: Qualification | JP12: Attachment | JQ12: Remark | JR12: Rate | JS12: Investigation | JT12: Qualification | JU12: Attachment | JV12: Remark
A13: 6 | B13: Natural ventilation: Openings on opposing walls of room | C13: 2 | H13: 2 | M13: 2 | R13: 2 | W13: 2 | AB13: 2 | AG13: 2
A14: 7 | B14: Natural ventilation: Areas of openings (window/door) of at least 10% of area of room (length*width of the floor) on opposing sides of room (total areas of windows and doors ≥20% total area of the floor) | C14: 1 | H14: 1 | M14: 1 | R14: 1 | W14: 1 | AB14: 2 | AG14: 2
A15: 8 | B15: Natural ventilation: Signage is in place to keep doors and windows open | C15: 0 | H15: 1 | M15: 1 | R15: 1 | W15: 1 | AB15: 1 | AG15: 1
A16: 9 | B16: Natural ventilation: All appropriate windows/doors are open on observation | C16: 1 | H16: 1 | M16: 1 | R16: 1 | W16: 1 | AB16: 1 | AG16: 1
A17: 10 | B17: Natural ventilation and mechanical ventilation: No chemical or human odors relative to the outdoors | C17: 2 | H17: 2 | M17: 2 | R17: 2 | W17: 2 | AB17: 2 | AG17: 2
A18: 11 | B18: Mechanical and natural ventilation: Visualization of airflow patterns with smoke from supply and exhaust grilles/openings (use smoke tube, incense etc. for smoke) | C18: 1 | H18: 1 | M18: 2 | R18: 2 | W18: 2 | AB18: 2 | AG18: 2
A19: 12 | B19: Mechanical ventilation: Regular maintenance for directional and extractor fans is conducted | C19: 1 | H19: 1 | M19: 1 | R19: 1 | W19: 1 | AB19: 2 | AG19: 2
A20: 13 | B20: Traditional UVGI is being used properly (based on China standards) | C20: 2 | H20: 2 | M20: 2 | R20: 2 | W20: 2 | AB20: 2 | AG20: 2
A21: 14 | B21: Upper-room UVGI is being used properly (based on China standards) | C21: NA | H21: NA | M21: NA | R21: NA | W21: NA | AB21: NA | AG21: NA
A22: 15 | B22: Biosafety cabinets: Records of maintenance and certification in the past year documented | C22: 1 | H22: 1 | M22: 1 | R22: 1 | W22: 1 | AB22: 2 | AG22: 2
B23: The implementation of environmental controls indicators | C23: =SUM(C13:C22)/(2*(COUNTIF(C13:C22,"<>NA"))) -> 0.6111111111 | H23: =SUM(H13:H22)/(2*(COUNTIF(H13:H22,"<>NA"))) -> 0.6666666667 | M23: =SUM(M13:M22)/(2*(COUNTIF(M13:M22,"<>NA"))) -> 0.7222222222 | R23: =SUM(R13:R22)/(2*(COUNTIF(R13:R22,"<>NA"))) -> 0.7222222222 | W23: =SUM(W13:W22)/(2*(COUNTIF(W13:W22,"<>NA"))) -> 0.7222222222 | AB23: =SUM(AB13:AB22)/(2*(COUNTIF(AB13:AB22,"<>NA"))) -> 0.8888888889 | AG23: =SUM(AG13:AG22)/(2*(COUNTIF(AG13:AG22,"<>NA"))) -> 0.8888888889 | AL23: =SUM(AL13:AL22)/(2*(COUNTIF(AL13:AL22,"<>NA"))) -> 0 | AQ23: =SUM(AQ13:AQ22)/(2*(COUNTIF(AQ13:AQ22,"<>NA"))) -> 0 | AV23: =SUM(AV13:AV22)/(2*(COUNTIF(AV13:AV22,"<>NA"))) -> 0 | BA23: =SUM(BA13:BA22)/(2*(COUNTIF(BA13:BA22,"<>NA"))) -> 0 | BF23: =SUM(BF13:BF22)/(2*(COUNTIF(BF13:BF22,"<>NA"))) -> 0 | BK23: =SUM(BK13:BK22)/(2*(COUNTIF(BK13:BK22,"<>NA"))) -> 0 | BP23: =SUM(BP13:BP22)/(2*(COUNTIF(BP13:BP22,"<>NA"))) -> 0 | BU23: =SUM(BU13:BU22)/(2*(COUNTIF(BU13:BU22,"<>NA"))) -> 0 | BZ23: =SUM(BZ13:BZ22)/(2*(COUNTIF(BZ13:BZ22,"<>NA"))) -> 0 | CE23: =SUM(CE13:CE22)/(2*(COUNTIF(CE13:CE22,"<>NA"))) -> 0 | CJ23: =SUM(CJ13:CJ22)/(2*(COUNTIF(CJ13:CJ22,"<>NA"))) -> 0 | CO23: =SUM(CO13:CO22)/(2*(COUNTIF(CO13:CO22,"<>NA"))) -> 0 | CT23: =SUM(CT13:CT22)/(2*(COUNTIF(CT13:CT22,"<>NA"))) -> 0 | CY23: =SUM(CY13:CY22)/(2*(COUNTIF(CY13:CY22,"<>NA"))) -> 0 | DD23: =SUM(DD13:DD22)/(2*(COUNTIF(DD13:DD22,"<>NA"))) -> 0 | DI23: =SUM(DI13:DI22)/(2*(COUNTIF(DI13:DI22,"<>NA"))) -> 0 | DN23: =SUM(DN13:DN22)/(2*(COUNTIF(DN13:DN22,"<>NA"))) -> 0 | DS23: =SUM(DS13:DS22)/(2*(COUNTIF(DS13:DS22,"<>NA"))) -> 0 | DX23: =SUM(DX13:DX22)/(2*(COUNTIF(DX13:DX22,"<>NA"))) -> 0 | EC23: =SUM(EC13:EC22)/(2*(COUNTIF(EC13:EC22,"<>NA"))) -> 0 | EH23: =SUM(EH13:EH22)/(2*(COUNTIF(EH13:EH22,"<>NA"))) -> 0 | EM23: =SUM(EM13:EM22)/(2*(COUNTIF(EM13:EM22,"<>NA"))) -> 0 | ER23: =SUM(ER13:ER22)/(2*(COUNTIF(ER13:ER22,"<>NA"))) -> 0 | EW23: =SUM(EW13:EW22)/(2*(COUNTIF(EW13:EW22,"<>NA"))) -> 0 | FB23: =SUM(FB13:FB22)/(2*(COUNTIF(FB13:FB22,"<>NA"))) -> 0 | FG23: =SUM(FG13:FG22)/(2*(COUNTIF(FG13:FG22,"<>NA"))) -> 0 | FL23: =SUM(FL13:FL22)/(2*(COUNTIF(FL13:FL22,"<>NA"))) -> 0 | FQ23: =SUM(FQ13:FQ22)/(2*(COUNTIF(FQ13:FQ22,"<>NA"))) -> 0 | FV23: =SUM(FV13:FV22)/(2*(COUNTIF(FV13:FV22,"<>NA"))) -> 0 | GA23: =SUM(GA13:GA22)/(2*(COUNTIF(GA13:GA22,"<>NA"))) -> 0 | GF23: =SUM(GF13:GF22)/(2*(COUNTIF(GF13:GF22,"<>NA"))) -> 0 | GK23: =SUM(GK13:GK22)/(2*(COUNTIF(GK13:GK22,"<>NA"))) -> 0 | GP23: =SUM(GP13:GP22)/(2*(COUNTIF(GP13:GP22,"<>NA"))) -> 0 | GU23: =SUM(GU13:GU22)/(2*(COUNTIF(GU13:GU22,"<>NA"))) -> 0 | GZ23: =SUM(GZ13:GZ22)/(2*(COUNTIF(GZ13:GZ22,"<>NA"))) -> 0 | HE23: =SUM(HE13:HE22)/(2*(COUNTIF(HE13:HE22,"<>NA"))) -> 0 | HJ23: =SUM(HJ13:HJ22)/(2*(COUNTIF(HJ13:HJ22,"<>NA"))) -> 0 | HO23: =SUM(HO13:HO22)/(2*(COUNTIF(HO13:HO22,"<>NA"))) -> 0 | HT23: =SUM(HT13:HT22)/(2*(COUNTIF(HT13:HT22,"<>NA"))) -> 0 | HY23: =SUM(HY13:HY22)/(2*(COUNTIF(HY13:HY22,"<>NA"))) -> 0 | ID23: =SUM(ID13:ID22)/(2*(COUNTIF(ID13:ID22,"<>NA"))) -> 0 | II23: =SUM(II13:II22)/(2*(COUNTIF(II13:II22,"<>NA"))) -> 0 | IN23: =SUM(IN13:IN22)/(2*(COUNTIF(IN13:IN22,"<>NA"))) -> 0 | IS23: =SUM(IS13:IS22)/(2*(COUNTIF(IS13:IS22,"<>NA"))) -> 0 | IX23: =SUM(IX13:IX22)/(2*(COUNTIF(IX13:IX22,"<>NA"))) -> 0 | JC23: =SUM(JC13:JC22)/(2*(COUNTIF(JC13:JC22,"<>NA"))) -> 0 | JH23: =SUM(JH13:JH22)/(2*(COUNTIF(JH13:JH22,"<>NA"))) -> 0 | JM23: =SUM(JM13:JM22)/(2*(COUNTIF(JM13:JM22,"<>NA"))) -> 0 | JR23: =SUM(JR13:JR22)/(2*(COUNTIF(JR13:JR22,"<>NA"))) -> 0
B24: Personal protective equipment indicators | C24: Rate | D24: Investigation | E24: Qualification | F24: Attachment | G24: Remark | H24: Rate | I24: Investigation | J24: Qualification | K24: Attachment | L24: Remark | M24: Rate | N24: Investigation | O24: Qualification | P24: Attachment | Q24: Remark | R24: Rate | S24: Investigation | T24: Qualification | U24: Attachment | V24: Remark | W24: Rate | X24: Investigation | Y24: Qualification | Z24: Attachment | AA24: Remark | AB24: Rate | AC24: Investigation | AD24: Qualification | AE24: Attachment | AF24: Remark | AH24: Investigation | AI24: Qualification | AJ24: Attachment | AK24: Remark | AL24: Rate | AM24: Investigation | AN24: Qualification | AO24: Attachment | AP24: Remark | AQ24: Rate | AR24: Investigation | AS24: Qualification | AT24: Attachment | AU24: Remark | AV24: Rate | AW24: Investigation | AX24: Qualification | AY24: Attachment | AZ24: Remark | BA24: Rate | BB24: Investigation | BC24: Qualification | BD24: Attachment | BE24: Remark | BF24: Rate | BG24: Investigation | BH24: Qualification | BI24: Attachment | BJ24: Remark | BK24: Rate | BL24: Investigation | BM24: Qualification | BN24: Attachment | BO24: Remark | BP24: Rate | BQ24: Investigation | BR24: Qualification | BS24: Attachment | BT24: Remark | BU24: Rate | BV24: Investigation | BW24: Qualification | BX24: Attachment | BY24: Remark | BZ24: Rate | CA24: Investigation | CB24: Qualification | CC24: Attachment | CD24: Remark | CE24: Rate | CF24: Investigation | CG24: Qualification | CH24: Attachment | CI24: Remark | CJ24: Rate | CK24: Investigation | CL24: Qualification | CM24: Attachment | CN24: Remark | CO24: Rate | CP24: Investigation | CQ24: Qualification | CR24: Attachment | CS24: Remark | CU24: Investigation | CV24: Qualification | CW24: Attachment | CX24: Remark | CY24: Rate | CZ24: Investigation | DA24: Qualification | DB24: Attachment | DC24: Remark | DD24: Rate | DE24: Investigation | DF24: Qualification | DG24: Attachment | DH24: Remark | DI24: Rate | DJ24: Investigation | DK24: Qualification | DL24: Attachment | DM24: Remark | DN24: Rate | DO24: Investigation | DP24: Qualification | DQ24: Attachment | DR24: Remark | DS24: Rate | DT24: Investigation | DU24: Qualification | DV24: Attachment | DW24: Remark | DX24: Rate | DY24: Investigation | DZ24: Qualification | EA24: Attachment | EB24: Remark | EC24: Rate | ED24: Investigation | EE24: Qualification | EF24: Attachment | EG24: Remark | EH24: Rate | EI24: Investigation | EJ24: Qualification | EK24: Attachment | EL24: Remark | EM24: Rate | EN24: Investigation | EO24: Qualification | EP24: Attachment | EQ24: Remark | ER24: Rate | ES24: Investigation | ET24: Qualification | EU24: Attachment | EV24: Remark | EW24: Rate | EX24: Investigation | EY24: Qualification | EZ24: Attachment | FA24: Remark | FB24: Rate | FC24: Investigation | FD24: Qualification | FE24: Attachment | FF24: Remark | FH24: Investigation | FI24: Qualification | FJ24: Attachment | FK24: Remark | FL24: Rate | FM24: Investigation | FN24: Qualification | FO24: Attachment | FP24: Remark | FQ24: Rate | FR24: Investigation | FS24: Qualification | FT24: Attachment | FU24: Remark | FV24: Rate | FW24: Investigation | FX24: Qualification | FY24: Attachment | FZ24: Remark | GA24: Rate | GB24: Investigation | GC24: Qualification | GD24: Attachment | GE24: Remark | GF24: Rate | GG24: Investigation | GH24: Qualification | GI24: Attachment | GJ24: Remark | GK24: Rate | GL24: Investigation | GM24: Qualification | GN24: Attachment | GO24: Remark | GP24: Rate | GQ24: Investigation | GR24: Qualification | GS24: Attachment | GT24: Remark | GU24: Rate | GV24: Investigation | GW24: Qualification | GX24: Attachment | GY24: Remark | GZ24: Rate | HA24: Investigation | HB24: Qualification | HC24: Attachment | HD24: Remark | HE24: Rate | HF24: Investigation | HG24: Qualification | HH24: Attachment | HI24: Remark | HJ24: Rate | HK24: Investigation | HL24: Qualification | HM24: Attachment | HN24: Remark | HO24: Rate | HP24: Investigation | HQ24: Qualification | HR24: Attachment | HS24: Remark | HU24: Investigation | HV24: Qualification | HW24: Attachment | HX24: Remark | HY24: Rate | HZ24: Investigation | IA24: Qualification | IB24: Attachment | IC24: Remark | ID24: Rate | IE24: Investigation | IF24: Qualification | IG24: Attachment | IH24: Remark | II24: Rate | IJ24: Investigation | IK24: Qualification | IL24: Attachment | IM24: Remark | IN24: Rate | IO24: Investigation | IP24: Qualification | IQ24: Attachment | IR24: Remark | IS24: Rate | IT24: Investigation | IU24: Qualification | IV24: Attachment | IW24: Remark | IX24: Rate | IY24: Investigation | IZ24: Qualification | JA24: Attachment | JB24: Remark | JC24: Rate | JD24: Investigation | JE24: Qualification | JF24: Attachment | JG24: Remark | JH24: Rate | JI24: Investigation | JJ24: Qualification | JK24: Attachment | JL24: Remark | JM24: Rate | JN24: Investigation | JO24: Qualification | JP24: Attachment | JQ24: Remark | JR24: Rate | JS24: Investigation | JT24: Qualification | JU24: Attachment | JV24: Remark
A25: 16 | B25: Respirators meet the national or international standard are readily available to all staff who have contact with patients with TB or suspected of having TB | C25: 2 | H25: 2 | M25: 2 | R25: 2 | W25: 2 | AB25: 2 | AG25: 2
A26: 17 | B26: Staff were trained on proper respirator use in the past year | C26: 2 | H26: 2 | M26: 2 | R26: 2 | W26: 2 | AB26: 2 | AG26: 2
A27: 18 | B27: Staff can demonstrate proper respirator use (i.e., putting on, removing, seal check, and storage) | C27: 2 | H27: 2 | M27: 2 | R27: 2 | W27: 2 | AB27: 2 | AG27: 2
A28: 19 | B28: There have been no stock-outs of respirators in the past 3 months | C28: 2 | H28: 2 | M28: 2 | R28: 2 | W28: 2 | AB28: 2 | AG28: 2
A29: 20 | B29: Lab staff wear respirators when perform procedures that have risk of generating TB aerosols from specimens | C29: 2 | H29: 2 | M29: 2 | R29: 2 | W29: 2 | AB29: 2 | AG29: 2
B30: The implementation of personal protective equipment indicators | C30: =SUM(C25:C29)/(2*(COUNTIF(C25:C29,"<>NA"))) -> 1 | H30: =SUM(H25:H29)/(2*(COUNTIF(H25:H29,"<>NA"))) -> 1 | M30: =SUM(M25:M29)/(2*(COUNTIF(M25:M29,"<>NA"))) -> 1 | R30: =SUM(R25:R29)/(2*(COUNTIF(R25:R29,"<>NA"))) -> 1 | W30: =SUM(W25:W29)/(2*(COUNTIF(W25:W29,"<>NA"))) -> 1 | AB30: =SUM(AB25:AB29)/(2*(COUNTIF(AB25:AB29,"<>NA"))) -> 1 | AG30: =SUM(AG25:AG29)/(2*(COUNTIF(AG25:AG29,"<>NA"))) -> 1 | AL30: =SUM(AL25:AL29)/(2*(COUNTIF(AL25:AL29,"<>NA"))) -> 0 | AQ30: =SUM(AQ25:AQ29)/(2*(COUNTIF(AQ25:AQ29,"<>NA"))) -> 0 | AV30: =SUM(AV25:AV29)/(2*(COUNTIF(AV25:AV29,"<>NA"))) -> 0 | BA30: =SUM(BA25:BA29)/(2*(COUNTIF(BA25:BA29,"<>NA"))) -> 0 | BF30: =SUM(BF25:BF29)/(2*(COUNTIF(BF25:BF29,"<>NA"))) -> 0 | BK30: =SUM(BK25:BK29)/(2*(COUNTIF(BK25:BK29,"<>NA"))) -> 0 | BP30: =SUM(BP25:BP29)/(2*(COUNTIF(BP25:BP29,"<>NA"))) -> 0 | BU30: =SUM(BU25:BU29)/(2*(COUNTIF(BU25:BU29,"<>NA"))) -> 0 | BZ30: =SUM(BZ25:BZ29)/(2*(COUNTIF(BZ25:BZ29,"<>NA"))) -> 0 | CE30: =SUM(CE25:CE29)/(2*(COUNTIF(CE25:CE29,"<>NA"))) -> 0 | CJ30: =SUM(CJ25:CJ29)/(2*(COUNTIF(CJ25:CJ29,"<>NA"))) -> 0 | CO30: =SUM(CO25:CO29)/(2*(COUNTIF(CO25:CO29,"<>NA"))) -> 0 | CT30: =SUM(CT25:CT29)/(2*(COUNTIF(CT25:CT29,"<>NA"))) -> 0 | CY30: =SUM(CY25:CY29)/(2*(COUNTIF(CY25:CY29,"<>NA"))) -> 0 | DD30: =SUM(DD25:DD29)/(2*(COUNTIF(DD25:DD29,"<>NA"))) -> 0 | DI30: =SUM(DI25:DI29)/(2*(COUNTIF(DI25:DI29,"<>NA"))) -> 0 | DN30: =SUM(DN25:DN29)/(2*(COUNTIF(DN25:DN29,"<>NA"))) -> 0 | DS30: =SUM(DS25:DS29)/(2*(COUNTIF(DS25:DS29,"<>NA"))) -> 0 | DX30: =SUM(DX25:DX29)/(2*(COUNTIF(DX25:DX29,"<>NA"))) -> 0 | EC30: =SUM(EC25:EC29)/(2*(COUNTIF(EC25:EC29,"<>NA"))) -> 0 | EH30: =SUM(EH25:EH29)/(2*(COUNTIF(EH25:EH29,"<>NA"))) -> 0 | EM30: =SUM(EM25:EM29)/(2*(COUNTIF(EM25:EM29,"<>NA"))) -> 0 | ER30: =SUM(ER25:ER29)/(2*(COUNTIF(ER25:ER29,"<>NA"))) -> 0 | EW30: =SUM(EW25:EW29)/(2*(COUNTIF(EW25:EW29,"<>NA"))) -> 0 | FB30: =SUM(FB25:FB29)/(2*(COUNTIF(FB25:FB29,"<>NA"))) -> 0 | FG30: =SUM(FG25:FG29)/(2*(COUNTIF(FG25:FG29,"<>NA"))) -> 0 | FL30: =SUM(FL25:FL29)/(2*(COUNTIF(FL25:FL29,"<>NA"))) -> 0 | FQ30: =SUM(FQ25:FQ29)/(2*(COUNTIF(FQ25:FQ29,"<>NA"))) -> 0 | FV30: =SUM(FV25:FV29)/(2*(COUNTIF(FV25:FV29,"<>NA"))) -> 0 | GA30: =SUM(GA25:GA29)/(2*(COUNTIF(GA25:GA29,"<>NA"))) -> 0 | GF30: =SUM(GF25:GF29)/(2*(COUNTIF(GF25:GF29,"<>NA"))) -> 0 | GK30: =SUM(GK25:GK29)/(2*(COUNTIF(GK25:GK29,"<>NA"))) -> 0 | GP30: =SUM(GP25:GP29)/(2*(COUNTIF(GP25:GP29,"<>NA"))) -> 0 | GU30: =SUM(GU25:GU29)/(2*(COUNTIF(GU25:GU29,"<>NA"))) -> 0 | GZ30: =SUM(GZ25:GZ29)/(2*(COUNTIF(GZ25:GZ29,"<>NA"))) -> 0 | HE30: =SUM(HE25:HE29)/(2*(COUNTIF(HE25:HE29,"<>NA"))) -> 0 | HJ30: =SUM(HJ25:HJ29)/(2*(COUNTIF(HJ25:HJ29,"<>NA"))) -> 0 | HO30: =SUM(HO25:HO29)/(2*(COUNTIF(HO25:HO29,"<>NA"))) -> 0 | HT30: =SUM(HT25:HT29)/(2*(COUNTIF(HT25:HT29,"<>NA"))) -> 0 | HY30: =SUM(HY25:HY29)/(2*(COUNTIF(HY25:HY29,"<>NA"))) -> 0 | ID30: =SUM(ID25:ID29)/(2*(COUNTIF(ID25:ID29,"<>NA"))) -> 0 | II30: =SUM(II25:II29)/(2*(COUNTIF(II25:II29,"<>NA"))) -> 0 | IN30: =SUM(IN25:IN29)/(2*(COUNTIF(IN25:IN29,"<>NA"))) -> 0 | IS30: =SUM(IS25:IS29)/(2*(COUNTIF(IS25:IS29,"<>NA"))) -> 0 | IX30: =SUM(IX25:IX29)/(2*(COUNTIF(IX25:IX29,"<>NA"))) -> 0 | JC30: =SUM(JC25:JC29)/(2*(COUNTIF(JC25:JC29,"<>NA"))) -> 0 | JH30: =SUM(JH25:JH29)/(2*(COUNTIF(JH25:JH29,"<>NA"))) -> 0 | JM30: =SUM(JM25:JM29)/(2*(COUNTIF(JM25:JM29,"<>NA"))) -> 0 | JR30: =SUM(JR25:JR29)/(2*(COUNTIF(JR25:JR29,"<>NA"))) -> 0
B31: The overall implementation of all indicators | C31: =AVERAGE(C11,C23,C30) -> 0.8703703704 | H31: =AVERAGE(H11,H23,H30) -> 0.8888888889 | M31: =AVERAGE(M11,M23,M30) -> 0.9074074074 | R31: =AVERAGE(R11,R23,R30) -> 0.9074074074 | W31: =AVERAGE(W11,W23,W30) -> 0.9074074074 | AB31: =AVERAGE(AB11,AB23,AB30) -> 0.962962963 | AG31: =AVERAGE(AG11,AG23,AG30) -> 0.962962963 | AL31: =AVERAGE(AL11,AL23,AL30) -> 0 | AQ31: =AVERAGE(AQ11,AQ23,AQ30) -> 0 | AV31: =AVERAGE(AV11,AV23,AV30) -> 0 | BA31: =AVERAGE(BA11,BA23,BA30) -> 0 | BF31: =AVERAGE(BF11,BF23,BF30) -> 0 | BK31: =AVERAGE(BK11,BK23,BK30) -> 0 | BP31: =AVERAGE(BP11,BP23,BP30) -> 0 | BU31: =AVERAGE(BU11,BU23,BU30) -> 0 | BZ31: =AVERAGE(BZ11,BZ23,BZ30) -> 0 | CE31: =AVERAGE(CE11,CE23,CE30) -> 0 | CJ31: =AVERAGE(CJ11,CJ23,CJ30) -> 0 | CO31: =AVERAGE(CO11,CO23,CO30) -> 0 | CT31: =AVERAGE(CT11,CT23,CT30) -> 0 | CY31: =AVERAGE(CY11,CY23,CY30) -> 0 | DD31: =AVERAGE(DD11,DD23,DD30) -> 0 | DI31: =AVERAGE(DI11,DI23,DI30) -> 0 | DN31: =AVERAGE(DN11,DN23,DN30) -> 0 | DS31: =AVERAGE(DS11,DS23,DS30) -> 0 | DX31: =AVERAGE(DX11,DX23,DX30) -> 0 | EC31: =AVERAGE(EC11,EC23,EC30) -> 0 | EH31: =AVERAGE(EH11,EH23,EH30) -> 0 | EM31: =AVERAGE(EM11,EM23,EM30) -> 0 | ER31: =AVERAGE(ER11,ER23,ER30) -> 0 | EW31: =AVERAGE(EW11,EW23,EW30) -> 0 | FB31: =AVERAGE(FB11,FB23,FB30) -> 0 | FG31: =AVERAGE(FG11,FG23,FG30) -> 0 | FL31: =AVERAGE(FL11,FL23,FL30) -> 0 | FQ31: =AVERAGE(FQ11,FQ23,FQ30) -> 0 | FV31: =AVERAGE(FV11,FV23,FV30) -> 0 | GA31: =AVERAGE(GA11,GA23,GA30) -> 0 | GF31: =AVERAGE(GF11,GF23,GF30) -> 0 | GK31: =AVERAGE(GK11,GK23,GK30) -> 0 | GP31: =AVERAGE(GP11,GP23,GP30) -> 0 | GU31: =AVERAGE(GU11,GU23,GU30) -> 0 | GZ31: =AVERAGE(GZ11,GZ23,GZ30) -> 0 | HE31: =AVERAGE(HE11,HE23,HE30) -> 0 | HJ31: =AVERAGE(HJ11,HJ23,HJ30) -> 0 | HO31: =AVERAGE(HO11,HO23,HO30) -> 0 | HT31: =AVERAGE(HT11,HT23,HT30) -> 0 | HY31: =AVERAGE(HY11,HY23,HY30) -> 0 | ID31: =AVERAGE(ID11,ID23,ID30) -> 0 | II31: =AVERAGE(II11,II23,II30) -> 0 | IN31: =AVERAGE(IN11,IN23,IN30) -> 0 | IS31: =AVERAGE(IS11,IS23,IS30) -> 0 | IX31: =AVERAGE(IX11,IX23,IX30) -> 0 | JC31: =AVERAGE(JC11,JC23,JC30) -> 0 | JH31: =AVERAGE(JH11,JH23,JH30) -> 0 | JM31: =AVERAGE(JM11,JM23,JM30) -> 0 | JR31: =AVERAGE(JR11,JR23,JR30) -> 0
B32: Assessor | C32: Assessor Name: | H32: Assessor Name: | M32: Assessor Name: | R32: Assessor Name: | W32: Assessor Name: | AB32: Assessor Name: | AG32: Assessor Name: | AL32: Assessor Name: | AQ32: Assessor Name: | AV32: Assessor Name: | BA32: Assessor Name: | BF32: Assessor Name: | BK32: Assessor Name: | BP32: Assessor Name: | BU32: Assessor Name: | BZ32: Assessor Name: | CE32: Assessor Name: | CJ32: Assessor Name: | CO32: Assessor Name: | CT32: Assessor Name: | CY32: Assessor Name: | DD32: Assessor Name: | DI32: Assessor Name: | DN32: Assessor Name: | DS32: Assessor Name: | DX32: Assessor Name: | EC32: Assessor Name: | EH32: Assessor Name: | EM32: Assessor Name: | ER32: Assessor Name: | EW32: Assessor Name: | FB32: Assessor Name: | FG32: Assessor Name: | FL32: Assessor Name: | FQ32: Assessor Name: | FV32: Assessor Name: | GA32: Assessor Name: | GF32: Assessor Name: | GK32: Assessor Name: | GP32: Assessor Name: | GU32: Assessor Name: | GZ32: Assessor Name: | HE32: Assessor Name: | HJ32: Assessor Name: | HO32: Assessor Name: | HT32: Assessor Name: | HY32: Assessor Name: | ID32: Assessor Name: | II32: Assessor Name: | IN32: Assessor Name: | IS32: Assessor Name: | IX32: Assessor Name: | JC32: Assessor Name: | JH32: Assessor Name: | JM32: Assessor Name: | JR32: Assessor Name:

Sheet 清单 (hidden)
A1: Response
A2: 0
A3: 1
A4: 2
A5: NA

Sheet droplist (hidden)
A1: 门诊 | B1: Outpatient | D1: Ward | G1: 实验室 | H1: Laboratory | J1: 评估时段 | M1: 进度 | O1: 是否有文件 | Q1: 查看模式
A2: 1 | B2: 1. Outpatient | C2: 1. 一实验室 | D2: 1 | E2: 1. Ward1 | G2: 1 | H2: 1. Laboratory 1 | J2: 1 | K2: Basic | M2: 0 | O2: Y | Q2: 1 | R2: Input data | BU2: 3. 普通内科二 | DD2: 4. 呼吸内科
A3: 2 | B3: 2. Internal Medicine 1 | J3: 2 | K3: 3 months | M3: 1 | O3: N | Q3: 2 | R3: View Data
A4: 3 | B4: 3. Internal Medicine 2 | J4: 3 | K4: 6 months | M4: 2
A5: 4 | B5: 4. Respiratory Medicine | J5: 4 | K5: 9 months | M5: NA
J6: 5 | K6: 12 months
J7: 6 | K7: 15 months
J8: 7 | K8: Final

Sheet 门诊区域 (2) (hidden)
B1: 门诊区 | C1: 1. 门诊大厅挂号/分诊区域
B2: 评估阶段 | E2: 0 | F2: 3 | I2: 6 | L2: 9 | O2: 12 | R2: 15 | U2: 18
B3: 评估时间
B4: 门诊/区域类型： 1. 门诊大厅挂号/分诊区域 2. 急诊 3. 发热门诊 4. 呼吸门诊 5. 放射科 6. 结核门诊 7. 药房 8.其他，请注明：
B5: 行政管理
A6: 1 | B6: 就诊者进入机构时，按照常规询问其咳嗽情况 | C6: 5 | D6: 1 | E6: =IF(D6<>0,ROUND(C6/D6,2),"") -> 5 | F6: 111
A7: 2 | B7: 为就诊者进行咳嗽礼仪指导和宣教 | C7: 5 | D7: 2 | E7: =IF(D7<>0,ROUND(C7/D7,2),"") -> 2.5
A8: 3 | B8: 有“咳嗽监察员”协助分诊，提供咳嗽礼仪指导 | C8: 5 | D8: 3 | E8: 1.67
A9: 4 | B9: 将有咳嗽或其他结核症状的就诊者及时与其他人分开 | C9: 5 | D9: 4 | E9: 1.25
A10: 5 | B10: 有咳嗽或其他结核症状的就诊者由“快速通道”交由医护人员接诊，或接受其他门诊服务 | C10: 5 | D10: 5 | E10: 1
A11: 6 | B11: 张贴咳嗽礼仪标识 | C11: 5 | D11: 5 | E11: 1
A12: 7 | B12: 向有咳嗽症状的就诊者提供相关用品（纸巾或口罩或手绢） | C12: 5 | D12: 6 | E12: 0.83
A13: 8 | B13: 有指定的留痰处，通风良好且远离其他人群 | C13: 5 | D13: 7 | E13: 0.71
A14: 9 | B14: 24小时内（从收痰时间到主治医生拿到结果的时间）收到痰涂片检测结果 | C14: 5 | D14: 8 | E14: 0.63
A15: 10 | B15: 24小时内（从收痰时间到主治医生拿到结果的时间）收到Xpert MTB/RIF检测结果 | C15: 5 | D15: 1 | E15: 5
A16: 11 | B16: 获得实验室结果后24小时内开始抗结核治疗，或根据结果24小时内调整原治疗方案 | C16: 5 | D16: 0
A17: 12 | B17: 对疑似耐药性结核的患者（五类人群：1．慢性排菌患者/复治失败患者；2．密切接触耐多药肺结核患者的涂阳肺结核患者；3．初治失败患者；4．复发与返回的患者；5．治疗3月末痰涂片仍阳性的初治涂阳患者）进行耐药性检测 | C17: 5 | D17: 0
A18: 13 | B18: 将疑似结核患者与其他患者分开就诊 | C18: 5 | D18: 2 | E18: 2.5
A19: 14 | B19: 将确诊结核患者与其他患者分开就诊 | C19: 5 | D19: 3 | E19: 1.67
A20: 15 | B20: 将疑似耐药结核患者（五类人群：1．慢性排菌患者/复治失败患者；2．密切接触耐多药肺结核患者的涂阳肺结核患者；3．初治失败患者；4．复发与返回的患者；5．治疗3月末痰涂片仍阳性的初治涂阳患者）与其他患者分开就诊 | C20: 5 | D20: 4 | E20: 1.25
A21: 16 | B21: 将确诊的耐药结核患者与其他患者分开就诊 | C21: 5 | D21: 1 | E21: 5
A22: 17 | B22: 免疫力低下（例如：糖尿病、HIV阳性、使用免疫抑制剂等）患者与疑似或确诊结核患者分开就诊 | C22: 5 | D22: 5 | E22: 1
A23: 18 | B23: 有一个正式系统将住院治疗的确诊结核患者与门诊治疗联系起来，用于后续跟踪随访（或者与结核/DOT诊室联系起来用于后续跟踪随访） | C23: 5 | D23: 2 | E23: 2.5
B24: 行政管理措施相关指标的执行情况 | E24: =SUM(E6:E23)/(2*(COUNTIF(E6:E23,"<>."))) -> 0.9308333333 | H24: =SUM(H6:H23)/(2*(COUNTIF(H6:H23,"<>."))) -> 0 | K24: =SUM(K6:K23)/(2*(COUNTIF(K6:K23,"<>."))) -> 0 | N24: =SUM(N6:N23)/(2*(COUNTIF(N6:N23,"<>."))) -> 0 | Q24: =SUM(Q6:Q23)/(2*(COUNTIF(Q6:Q23,"<>."))) -> 0 | T24: =SUM(T6:T23)/(2*(COUNTIF(T6:T23,"<>."))) -> 0 | W24: =SUM(W6:W23)/(2*(COUNTIF(W6:W23,"<>."))) -> 0
B25: 环境工程指标
A26: 19 | B26: 自然通风：房内两对立墙面上设有门窗通风
A27: 20 | B27: 自然通风：房内两对立墙面上可打开窗/门的面积至少达到房间地面面积（长*宽）的10%（开窗/门的总面积≥房间地面面积的20%）
A28: 21 | B28: 自然通风：标识提示开门、开窗
A29: 22 | B29: 自然通风：在访察时所有适合打开的门窗都被打开
A30: 23 | B30: 自然通风：相对于室外，没有化学气味或人体气味
A31: 24 | B31: 机械通风和自然通风：在送风口和排风口或开窗处使用发烟设备（例如：烟管、香等）观察空气流动情况，可以看到气流，且流向合理
A32: 25 | B32: 机械通风：定期维护定向风扇和排气风扇
A33: 26 | B33: 候诊区或走廊里的患者不拥挤
A34: 27 | B34: 正确使用传统的紫外线照射灭菌灯（根据下面的测量结果）
A35: 28 | B35: 正确对上层空间进行紫外线灯照射灭菌（根据下面的测量结果）
B36: 环境工程措施相关指标的执行情况 | E36: =SUM(E26:E35)/(2*(COUNTIF(E26:E35,"<>."))) -> 0 | H36: =SUM(H26:H35)/(2*(COUNTIF(H26:H35,"<>."))) -> 0 | K36: =SUM(K26:K35)/(2*(COUNTIF(K26:K35,"<>."))) -> 0 | N36: =SUM(N26:N35)/(2*(COUNTIF(N26:N35,"<>."))) -> 0 | Q36: =SUM(Q26:Q35)/(2*(COUNTIF(Q26:Q35,"<>."))) -> 0 | T36: =SUM(T26:T35)/(2*(COUNTIF(T26:T35,"<>."))) -> 0 | W36: =SUM(W26:W35)/(2*(COUNTIF(W26:W35,"<>."))) -> 0
B37: 个人防护指标
A38: 29 | B38: 有咳嗽症状的就诊者佩戴外科口罩
A39: 30 | B39: 所有与确诊或疑似的结核患者有接触的医护人员佩戴符合认证标准（例如：NIOSH N-95， 欧盟FFP2或GB 19083－2010 1级或更高级别的）的医用防护口罩
A40: 31 | B40: 医护人员在过去一年中接受了正确使用医用防护口罩的培训
A41: 32 | B41: 医护人员可以正确演示如何使用医用防护口罩（如，戴上、摘下、适合性检查和存放）
A42: 33 | B42: 过去三个月里没有发生外科口罩供应不足的问题
A43: 34 | B43: 过去三个月里没有发生医用防护口罩供应不足的问题
B44: 个人防护措施相关指标的执行情况 | E44: =SUM(E38:E43)/(2*(COUNTIF(E38:E43,"<>."))) -> 0 | H44: =SUM(H38:H43)/(2*(COUNTIF(H38:H43,"<>."))) -> 0 | K44: =SUM(K38:K43)/(2*(COUNTIF(K38:K43,"<>."))) -> 0 | N44: =SUM(N38:N43)/(2*(COUNTIF(N38:N43,"<>."))) -> 0 | Q44: =SUM(Q38:Q43)/(2*(COUNTIF(Q38:Q43,"<>."))) -> 0 | T44: =SUM(T38:T43)/(2*(COUNTIF(T38:T43,"<>."))) -> 0 | W44: =SUM(W38:W43)/(2*(COUNTIF(W38:W43,"<>."))) -> 0
B45: 指标执行的总体情况 | E45: =AVERAGE(E24,E36,E44) -> 0.3102777778 | H45: =AVERAGE(H24,H36,H44) -> 0 | K45: =AVERAGE(K24,K36,K44) -> 0 | N45: =AVERAGE(N24,N36,N44) -> 0 | Q45: =AVERAGE(Q24,Q36,Q44) -> 0 | T45: =AVERAGE(T24,T36,T44) -> 0 | W45: =AVERAGE(W24,W36,W44) -> 0

Sheet data (hidden)
A1: 门诊区域 | B1: ='Outpatient department & clinic'!C3 -> Basic | C1: ='Outpatient department & clinic'!$H$3 -> 3 months | D1: ='Outpatient department & clinic'!$M$3 -> 6 months | E1: ='Outpatient department & clinic'!$R$3 -> 9 months | F1: ='Outpatient department & clinic'!$W$3 -> 12 months | G1: ='Outpatient department & clinic'!$AB$3 -> 15 months | H1: ='Outpatient department & clinic'!$AG$3 -> 18 months | I1: ='Outpatient department & clinic'!B3 -> Assessment phase
A2: ='Outpatient department & clinic'!C2 -> 1. Outpatient | B2: ='Outpatient department & clinic'!C24 -> 0.4705882353 | C2: ='Outpatient department & clinic'!$H$24 -> 0.5294117647 | D2: ='Outpatient department & clinic'!$M$24 -> 0.5588235294 | E2: ='Outpatient department & clinic'!$R$24 -> 0.5882352941 | F2: ='Outpatient department & clinic'!$W$24 -> 0.5882352941 | G2: ='Outpatient department & clinic'!$AB$24 -> 0.6470588235 | H2: ='Outpatient department & clinic'!$AG$25 -> Rate | I2: ='Outpatient department & clinic'!B24 -> The implementation of administrative controls indicators | J2: 门诊区域
A3: ='Outpatient department & clinic'!C2 -> 1. Outpatient | B3: ='Outpatient department & clinic'!C36 -> 0.6666666667 | C3: ='Outpatient department & clinic'!$H$36 -> 0.6666666667 | D3: ='Outpatient department & clinic'!$M$36 -> 0.6666666667 | E3: ='Outpatient department & clinic'!$R$36 -> 0.6666666667 | F3: ='Outpatient department & clinic'!$W$36 -> 0.6666666667 | G3: ='Outpatient department & clinic'!$AB$36 -> 0.6666666667 | H3: ='Outpatient department & clinic'!$AG$37 -> Rate | I3: ='Outpatient department & clinic'!B36 -> The implementation of environmental controls indicators | J3: 门诊区域
A4: ='Outpatient department & clinic'!C2 -> 1. Outpatient | B4: ='Outpatient department & clinic'!C44 -> 0.9166666667 | C4: ='Outpatient department & clinic'!$H$44 -> 0.9166666667 | D4: ='Outpatient department & clinic'!$M$44 -> 0.9166666667 | E4: ='Outpatient department & clinic'!$R$44 -> 0.9166666667 | F4: ='Outpatient department & clinic'!$W$44 -> 0.9166666667 | G4: ='Outpatient department & clinic'!$AB$44 -> 0.9166666667 | H4: ='Outpatient department & clinic'!$AG$45 -> 0.8110021786 | I4: ='Outpatient department & clinic'!B44 -> The implementation of personal protective equipment indicators | J4: 门诊区域
A5: ='Outpatient department & clinic'!AL2 -> 2. Internal Medicine 1 | B5: ='Outpatient department & clinic'!$AL$24 -> 0.4705882353 | C5: ='Outpatient department & clinic'!$AQ$24 -> 0.5294117647 | D5: ='Outpatient department & clinic'!$AV$24 -> 0.5882352941 | E5: ='Outpatient department & clinic'!$BA$24 -> 0.6764705882 | F5: ='Outpatient department & clinic'!$BF$24 -> 0.7058823529 | G5: ='Outpatient department & clinic'!$BK$24 -> 0.7058823529 | H5: ='Outpatient department & clinic'!$BP$24 -> 0.7941176471 | I5: 行政管理措施相关指标的执行情况 | J5: 门诊区域
A6: ='Outpatient department & clinic'!AL2 -> 2. Internal Medicine 1 | B6: ='Outpatient department & clinic'!$AL$36 -> 0.625 | C6: ='Outpatient department & clinic'!$AQ$36 -> 0.6875 | D6: ='Outpatient department & clinic'!$AV$36 -> 0.6875 | E6: ='Outpatient department & clinic'!$BA$36 -> 0.6875 | F6: ='Outpatient department & clinic'!$BF$36 -> 0.75 | G6: ='Outpatient department & clinic'!$BK$36 -> 0.75 | H6: ='Outpatient department & clinic'!$BP$36 -> 0.875 | I6: 环境工程措施相关指标的执行情况 | J6: 门诊区域
A7: ='Outpatient department & clinic'!AL2 -> 2. Internal Medicine 1 | B7: ='Outpatient department & clinic'!$AL$44 -> 0.9166666667 | C7: ='Outpatient department & clinic'!$AQ$44 -> 0.9166666667 | D7: ='Outpatient department & clinic'!$AV$44 -> 0.9166666667 | E7: ='Outpatient department & clinic'!$BA$44 -> 0.9166666667 | F7: ='Outpatient department & clinic'!$BF$44 -> 0.9166666667 | G7: ='Outpatient department & clinic'!$BK$44 -> 0.9166666667 | H7: ='Outpatient department & clinic'!$BP$44 -> 1 | I7: 个人防护措施相关指标的执行情况 | J7: 门诊区域
A8: ='Outpatient department & clinic'!BU2 -> 3. Internal Medicine 2 | B8: ='Outpatient department & clinic'!$BU$24 -> 0.4705882353 | C8: ='Outpatient department & clinic'!$BZ$24 -> 0.5 | D8: ='Outpatient department & clinic'!$CE$24 -> 0.5 | E8: ='Outpatient department & clinic'!$CJ$24 -> 0.6176470588 | F8: ='Outpatient department & clinic'!$CO$24 -> 0.6176470588 | G8: ='Outpatient department & clinic'!$CT$24 -> 0.7058823529 | H8: ='Outpatient department & clinic'!$CY$24 -> 0.7941176471 | I8: 行政管理措施相关指标的执行情况 | J8: 门诊区域
A9: ='Outpatient department & clinic'!BU2 -> 3. Internal Medicine 2 | B9: ='Outpatient department & clinic'!$BU$36 -> 0.625 | C9: ='Outpatient department & clinic'!$BZ$36 -> 0.6875 | D9: ='Outpatient department & clinic'!$CE$36 -> 0.6875 | E9: ='Outpatient department & clinic'!$CJ$36 -> 0.6875 | F9: ='Outpatient department & clinic'!$CO$36 -> 0.6875 | G9: ='Outpatient department & clinic'!$CT$36 -> 0.75 | H9: ='Outpatient department & clinic'!$CY$36 -> 0.875 | I9: 环境工程措施相关指标的执行情况 | J9: 门诊区域
A10: ='Outpatient department & clinic'!BU2 -> 3. Internal Medicine 2 | B10: ='Outpatient department & clinic'!$BU$44 -> 0.9166666667 | C10: ='Outpatient department & clinic'!$BZ$44 -> 0.9166666667 | D10: ='Outpatient department & clinic'!$CE$44 -> 0.9166666667 | E10: ='Outpatient department & clinic'!$CJ$44 -> 0.9166666667 | F10: ='Outpatient department & clinic'!$CO$44 -> 0.9166666667 | G10: ='Outpatient department & clinic'!$CT$44 -> 0.9166666667 | H10: ='Outpatient department & clinic'!$CY$44 -> 1 | I10: 个人防护措施相关指标的执行情况 | J10: 门诊区域
A11: ='Outpatient department & clinic'!DD2 -> 4. Respiratory Medicine | B11: ='Outpatient department & clinic'!$DD$24 -> 0.4705882353 | C11: ='Outpatient department & clinic'!$DI$24 -> 0.5588235294 | D11: ='Outpatient department & clinic'!$DN$24 -> 0.6470588235 | E11: ='Outpatient department & clinic'!$DS$24 -> 0.6764705882 | F11: ='Outpatient department & clinic'!$DX$24 -> 0.6764705882 | G11: ='Outpatient department & clinic'!$EC$24 -> 1 | H11: ='Outpatient department & clinic'!$EH$24 -> 1 | I11: 行政管理措施相关指标的执行情况 | J11: 门诊区域
A12: ='Outpatient department & clinic'!DD2 -> 4. Respiratory Medicine | B12: ='Outpatient department & clinic'!$DD$36 -> 0.7222222222 | C12: ='Outpatient department & clinic'!$DI$36 -> 0.7222222222 | D12: ='Outpatient department & clinic'!$DN$36 -> 0.7222222222 | E12: ='Outpatient department & clinic'!$DS$36 -> 0.7222222222 | F12: ='Outpatient department & clinic'!$DX$36 -> 0.7222222222 | G12: ='Outpatient department & clinic'!$EC$36 -> 0.9444444444 | H12: ='Outpatient department & clinic'!$EH$36 -> 0.9444444444 | I12: 环境工程措施相关指标的执行情况 | J12: 门诊区域
A13: ='Outpatient department & clinic'!DD2 -> 4. Respiratory Medicine | B13: ='Outpatient department & clinic'!$DD$44 -> 0.9166666667 | C13: ='Outpatient department & clinic'!$DI$44 -> 0.9166666667 | D13: ='Outpatient department & clinic'!$DN$44 -> 0.9166666667 | E13: ='Outpatient department & clinic'!$DS$44 -> 0.9166666667 | F13: ='Outpatient department & clinic'!$DX$44 -> 0.9166666667 | G13: ='Outpatient department & clinic'!$EC$44 -> 1 | H13: ='Outpatient department & clinic'!$EH$44 -> 1 | I13: 个人防护措施相关指标的执行情况 | J13: 门诊区域
A14: ='Outpatient department & clinic'!EM2 -> 0 | B14: ='Outpatient department & clinic'!$EM$24 -> 0 | C14: ='Outpatient department & clinic'!$ER$24 -> 0 | D14: ='Outpatient department & clinic'!$EW$24 -> 0 | E14: ='Outpatient department & clinic'!$FB$24 -> 0 | F14: ='Outpatient department & clinic'!$FG$24 -> 0 | G14: ='Outpatient department & clinic'!$FL$24 -> 0 | H14: ='Outpatient department & clinic'!$FQ$24 -> 0 | I14: 行政管理措施相关指标的执行情况 | J14: 门诊区域
A15: ='Outpatient department & clinic'!EM2 -> 0 | B15: ='Outpatient department & clinic'!$EM$36 -> 0 | C15: ='Outpatient department & clinic'!$ER$36 -> 0 | D15: ='Outpatient department & clinic'!$EW$36 -> 0 | E15: ='Outpatient department & clinic'!$FB$36 -> 0 | F15: ='Outpatient department & clinic'!$FG$36 -> 0 | G15: ='Outpatient department & clinic'!$FL$36 -> 0 | H15: ='Outpatient department & clinic'!$FQ$36 -> 0 | I15: 环境工程措施相关指标的执行情况 | J15: 门诊区域
A16: ='Outpatient department & clinic'!EM2 -> 0 | B16: ='Outpatient department & clinic'!$EM$44 -> 0 | C16: ='Outpatient department & clinic'!$ER$44 -> 0 | D16: ='Outpatient department & clinic'!$EW$44 -> 0 | E16: ='Outpatient department & clinic'!$FB$44 -> 0 | F16: ='Outpatient department & clinic'!$FG$44 -> 0 | G16: ='Outpatient department & clinic'!$FL$44 -> 0 | H16: ='Outpatient department & clinic'!$FQ$44 -> 0 | I16: 个人防护措施相关指标的执行情况 | J16: 门诊区域
A17: ='Outpatient department & clinic'!FV2 -> 0 | B17: ='Outpatient department & clinic'!$FV$24 -> 0 | C17: ='Outpatient department & clinic'!$GA$24 -> 0 | D17: ='Outpatient department & clinic'!$GF$24 -> 0 | E17: ='Outpatient department & clinic'!$GK$24 -> 0 | F17: ='Outpatient department & clinic'!$GP$24 -> 0 | G17: ='Outpatient department & clinic'!$GU$24 -> 0 | H17: ='Outpatient department & clinic'!$GZ$24 -> 0 | I17: 行政管理措施相关指标的执行情况 | J17: 门诊区域
A18: ='Outpatient department & clinic'!FV2 -> 0 | B18: ='Outpatient department & clinic'!$FV$36 -> 0 | C18: ='Outpatient department & clinic'!$GA$36 -> 0 | D18: ='Outpatient department & clinic'!$GF$36 -> 0 | E18: ='Outpatient department & clinic'!$GK$36 -> 0 | F18: ='Outpatient department & clinic'!$GP$36 -> 0 | G18: ='Outpatient department & clinic'!$GU$36 -> 0 | H18: ='Outpatient department & clinic'!$GZ$36 -> 0 | I18: 环境工程措施相关指标的执行情况 | J18: 门诊区域
A19: ='Outpatient department & clinic'!FV2 -> 0 | B19: ='Outpatient department & clinic'!$FV$44 -> 0 | C19: ='Outpatient department & clinic'!$GA$44 -> 0 | D19: ='Outpatient department & clinic'!$GF$44 -> 0 | E19: ='Outpatient department & clinic'!$GK$44 -> 0 | F19: ='Outpatient department & clinic'!$GP$44 -> 0 | G19: ='Outpatient department & clinic'!$GU$44 -> 0 | H19: ='Outpatient department & clinic'!$GZ$44 -> 0 | I19: 个人防护措施相关指标的执行情况 | J19: 门诊区域
A20: ='Outpatient department & clinic'!HE2 -> 0 | B20: ='Outpatient department & clinic'!$HE$24 -> 0.4705882353 | C20: ='Outpatient department & clinic'!$HJ$24 -> 0.5588235294 | D20: ='Outpatient department & clinic'!$HO$24 -> 0.6470588235 | E20: ='Outpatient department & clinic'!$HT$24 -> 0.6764705882 | F20: ='Outpatient department & clinic'!$HY$24 -> 0.6764705882 | G20: ='Outpatient department & clinic'!$ID$24 -> 0.9705882353 | H20: ='Outpatient department & clinic'!$II$24 -> 0.9705882353 | I20: 行政管理措施相关指标的执行情况 | J20: 门诊区域
A21: ='Outpatient department & clinic'!HE2 -> 0 | B21: ='Outpatient department & clinic'!$HE$36 -> 0.625 | C21: ='Outpatient department & clinic'!$HJ$36 -> 0.6875 | D21: ='Outpatient department & clinic'!$HO$36 -> 0.6875 | E21: ='Outpatient department & clinic'!$HT$36 -> 0.6875 | F21: ='Outpatient department & clinic'!$HY$36 -> 0.6875 | G21: ='Outpatient department & clinic'!$ID$36 -> 0.9375 | H21: ='Outpatient department & clinic'!$II$36 -> 0.9375 | I21: 环境工程措施相关指标的执行情况 | J21: 门诊区域
A22: ='Outpatient department & clinic'!HE2 -> 0 | B22: ='Outpatient department & clinic'!$HE$44 -> 0.9166666667 | C22: ='Outpatient department & clinic'!$HJ$44 -> 0.9166666667 | D22: ='Outpatient department & clinic'!$HO$44 -> 0.9166666667 | E22: ='Outpatient department & clinic'!$HT$44 -> 0.9166666667 | F22: ='Outpatient department & clinic'!$HY$44 -> 0.9166666667 | G22: ='Outpatient department & clinic'!$ID$44 -> 1 | H22: ='Outpatient department & clinic'!$II$44 -> 1 | I22: 个人防护措施相关指标的执行情况 | J22: 门诊区域
A23: ='Outpatient department & clinic'!IN2 -> 0 | B23: ='Outpatient department & clinic'!$IN$24 -> 0 | C23: ='Outpatient department & clinic'!$IS$24 -> 0 | D23: ='Outpatient department & clinic'!$IX$24 -> 0 | E23: ='Outpatient department & clinic'!$JC$24 -> 0 | F23: ='Outpatient department & clinic'!$JH$24 -> 0 | G23: ='Outpatient department & clinic'!$JM$24 -> 0 | H23: ='Outpatient department & clinic'!$JR$24 -> 0 | I23: 行政管理措施相关指标的执行情况 | J23: 门诊区域
A24: ='Outpatient department & clinic'!IN2 -> 0 | B24: ='Outpatient department & clinic'!$IN$36 -> 0 | C24: ='Outpatient department & clinic'!$IS$36 -> 0 | D24: ='Outpatient department & clinic'!$IX$36 -> 0 | E24: ='Outpatient department & clinic'!$JC$36 -> 0 | F24: ='Outpatient department & clinic'!$JH$36 -> 0 | G24: ='Outpatient department & clinic'!$JM$36 -> 0 | H24: ='Outpatient department & clinic'!$JR$36 -> 0 | I24: 环境工程措施相关指标的执行情况 | J24: 门诊区域
A25: ='Outpatient department & clinic'!IN2 -> 0 | B25: ='Outpatient department & clinic'!$IN$44 -> 0 | C25: ='Outpatient department & clinic'!$IS$44 -> 0 | D25: ='Outpatient department & clinic'!$IX$44 -> 0 | E25: ='Outpatient department & clinic'!$JC$44 -> 0 | F25: ='Outpatient department & clinic'!$JH$44 -> 0 | G25: ='Outpatient department & clinic'!$JM$44 -> 0 | H25: ='Outpatient department & clinic'!$JR$44 -> 0 | I25: 个人防护措施相关指标的执行情况 | J25: 门诊区域

Sheet rules (hidden)
A1: 门诊区域 | B1: limitedNum | C1: gLine | D1: yLine | F1: 住院病区 | G1: limitedNum | H1: gLine | I1: yLine | K1: 实验室 | L1: limitedNum | M1: gLine | N1: yLine | P1: 整体机构 | Q1: limitedNum | R1: gLine | S1: yLine
A2: 1 | B2: 5 | C2: 0.8 | D2: 0.4 | F2: 1 | G2: 5 | H2: 0.8 | I2: 0.4 | K2: 1 | L2: 5 | M2: 0.8 | N2: 0.4 | P2: 1 | Q2: 5 | R2: 0.8 | S2: 0.4
A3: 2 | B3: 5 | C3: 0.8 | D3: 0.4 | F3: 2 | G3: 5 | H3: 0.8 | I3: 0.4 | K3: 2 | L3: 5 | M3: 0.8 | N3: 0.4 | P3: 2 | Q3: 5 | R3: 0.8 | S3: 0.4
A4: 3 | B4: 5 | C4: 0.8 | D4: 0.4 | F4: 3 | G4: 5 | H4: 0.8 | I4: 0.4 | K4: 3 | L4: 5 | M4: 0.8 | N4: 0.4 | P4: 3 | Q4: 5 | R4: 0.8 | S4: 0.4
A5: 4 | B5: 5 | C5: 0.8 | D5: 0.4 | F5: 4 | G5: 5 | H5: 0.8 | I5: 0.4 | K5: 4 | L5: 5 | M5: 0.8 | N5: 0.4 | P5: 4 | Q5: 5 | R5: 0.8 | S5: 0.4
A6: 5 | B6: 5 | C6: 0.8 | D6: 0.4 | F6: 5 | G6: 5 | H6: 0.8 | I6: 0.4 | K6: 5 | L6: 5 | M6: 0.8 | N6: 0.4 | P6: 5 | Q6: 5 | R6: 0.8 | S6: 0.4
A7: 6 | B7: 5 | C7: 0.8 | D7: 0.4 | F7: 6 | G7: 5 | H7: 0.8 | I7: 0.4 | K7: 6 | L7: 5 | M7: 0.8 | N7: 0.4 | P7: 6 | Q7: 5 | R7: 0.8 | S7: 0.4
A8: 7 | B8: 5 | C8: 0.8 | D8: 0.4 | F8: 7 | G8: 5 | H8: 0.8 | I8: 0.4 | K8: 7 | L8: 5 | M8: 0.8 | N8: 0.4 | P8: 7 | Q8: 5 | R8: 0.8 | S8: 0.4
A9: 8 | B9: 5 | C9: 0.8 | D9: 0.4 | F9: 8 | G9: 5 | H9: 0.8 | I9: 0.4 | K9: 8 | L9: 5 | M9: 0.8 | N9: 0.4 | P9: 8 | Q9: 5 | R9: 0.8 | S9: 0.4
A10: 9 | B10: 5 | C10: 0.8 | D10: 0.4 | F10: 9 | G10: 5 | H10: 0.8 | I10: 0.4 | K10: 9 | L10: 5 | M10: 0.8 | N10: 0.4 | P10: 9 | Q10: 5 | R10: 0.8 | S10: 0.4
A11: 10 | B11: 5 | C11: 0.8 | D11: 0.4 | F11: 10 | G11: 5 | H11: 0.8 | I11: 0.4 | K11: 10 | L11: 5 | M11: 0.8 | N11: 0.4 | P11: 10 | Q11: 5 | R11: 0.8 | S11: 0.4
A12: 11 | B12: 5 | C12: 0.8 | D12: 0.4 | F12: 11 | G12: 5 | H12: 0.8 | I12: 0.4 | K12: 11 | L12: 5 | M12: 0.8 | N12: 0.4 | P12: 11 | Q12: 5 | R12: 0.8 | S12: 0.4
A13: 12 | B13: 5 | C13: 0.8 | D13: 0.4 | F13: 12 | G13: 5 | H13: 0.8 | I13: 0.4 | K13: 12 | L13: 5 | M13: 0.8 | N13: 0.4 | P13: 12 | Q13: 5 | R13: 0.8 | S13: 0.4
A14: 13 | B14: 5 | C14: 0.8 | D14: 0.4 | F14: 13 | G14: 5 | H14: 0.8 | I14: 0.4 | K14: 13 | L14: 5 | M14: 0.8 | N14: 0.4 | P14: 13 | Q14: 5 | R14: 0.8 | S14: 0.4
A15: 14 | B15: 5 | C15: 0.8 | D15: 0.4 | F15: 14 | G15: 5 | H15: 0.8 | I15: 0.4 | K15: 14 | L15: 5 | M15: 0.8 | N15: 0.4 | P15: 14 | Q15: 5 | R15: 0.8 | S15: 0.4
A16: 15 | B16: 5 | C16: 0.8 | D16: 0.4 | F16: 15 | G16: 5 | H16: 0.8 | I16: 0.4 | K16: 15 | L16: 5 | M16: 0.8 | N16: 0.4 | P16: 15 | Q16: 5 | R16: 0.8 | S16: 0.4
A17: 16 | B17: 5 | C17: 0.8 | D17: 0.4 | F17: 16 | G17: 5 | H17: 0.8 | I17: 0.4 | K17: 16 | L17: 5 | M17: 0.8 | N17: 0.4 | P17: 16 | Q17: 5 | R17: 0.8 | S17: 0.4
A18: 17 | B18: 5 | C18: 0.8 | D18: 0.4 | F18: 17 | G18: 5 | H18: 0.8 | I18: 0.4 | K18: 17 | L18: 5 | M18: 0.8 | N18: 0.4
A19: 18 | B19: 5 | C19: 0.8 | D19: 0.4 | F19: 18 | G19: 5 | H19: 0.8 | I19: 0.4 | K19: 18 | L19: 5 | M19: 0.8 | N19: 0.4
A20: 19 | B20: 5 | C20: 0.8 | D20: 0.4 | F20: 19 | G20: 5 | H20: 0.8 | I20: 0.4 | K20: 19 | L20: 5 | M20: 0.8 | N20: 0.4
A21: 20 | B21: 5 | C21: 0.8 | D21: 0.4 | F21: 20 | G21: 5 | H21: 0.8 | I21: 0.4 | K21: 20 | L21: 5 | M21: 0.8 | N21: 0.4
A22: 21 | B22: 5 | C22: 0.8 | D22: 0.4 | F22: 21 | G22: 5 | H22: 0.8 | I22: 0.4
A23: 22 | B23: 5 | C23: 0.8 | D23: 0.4 | F23: 22 | G23: 5 | H23: 0.8 | I23: 0.4
A24: 23 | B24: 5 | C24: 0.8 | D24: 0.4 | F24: 23 | G24: 5 | H24: 0.8 | I24: 0.4
A25: 24 | B25: 5 | C25: 0.8 | D25: 0.4 | F25: 24 | G25: 5 | H25: 0.8 | I25: 0.4
A26: 25 | B26: 5 | C26: 0.8 | D26: 0.4 | F26: 25 | G26: 5 | H26: 0.8 | I26: 0.4
A27: 26 | B27: 5 | C27: 0.8 | D27: 0.4 | F27: 26 | G27: 5 | H27: 0.8 | I27: 0.4
A28: 27 | B28: 5 | C28: 0.8 | D28: 0.4 | F28: 27 | G28: 5 | H28: 0.8 | I28: 0.4
A29: 28 | B29: 5 | C29: 0.8 | D29: 0.4 | F29: 28 | G29: 5 | H29: 0.8 | I29: 0.4
A30: 29 | B30: 5 | C30: 0.8 | D30: 0.4 | F30: 29 | G30: 5 | H30: 0.8 | I30: 0.4
A31: 30 | B31: 5 | C31: 0.8 | D31: 0.4 | F31: 30 | G31: 5 | H31: 0.8 | I31: 0.4
A32: 31 | B32: 5 | C32: 0.8 | D32: 0.4 | F32: 31 | G32: 5 | H32: 0.8 | I32: 0.4
A33: 32 | B33: 5 | C33: 0.8 | D33: 0.4 | F33: 32 | G33: 5 | H33: 0.8 | I33: 0.4
A34: 33 | B34: 5 | C34: 0.8 | D34: 0.4 | F34: 33 | G34: 5 | H34: 0.8 | I34: 0.4
A35: 34 | B35: 5 | C35: 0.8 | D35: 0.4
